Workbook

Sheet Simulador
R1: . | AN1: .
T3: 7 años | U3: 10 años | V3: 15 años | W3: 20 años | AE3: =IF(OR(U35=4,U35=5),"SI","") -> 
S4: Tasa | T4: 0.103 | U4: 0.103 | V4: 0.105 | W4: 0.105 | AE4: =IF(OR(U35=4,U35=5),"NO","") -> 
C5: FINANCIAMIENTO SCOTIABANK - FOVISSSTE | S5: Pago por mil | T5: 16.84 | U5: 13.47 | V5: 11.16 | W5: 10.1
S6: Ingreso Mínimo | T6: =$I$26/1000*T5/$AC$35 -> 0 | U6: =$I$26/1000*U5/$AC$35 -> 0 | V6: =$I$26/1000*V5/$AC$35 -> 0 | W6: =$I$26/1000*W5/$AC$35 -> 0
C8: =TODAY() -> 2024-03-22 | S8: Tasa | T8: =IF(T22=1,T4,IF(T22=2,U4,IF(T22=3,V4,W4))) -> 0.105
S9: PPM | T9: =IF(T22=1,T5,IF(T22=2,U5,IF(T22=3,V5,W5))) -> 10.1
S10: Ingreso Mínimo | T10: =IF(T22=1,T6,IF(T22=2,U6,IF(T22=3,V6,W6))) -> 0
C11: Nombre del Ejecutivo Especializado / Broker Hipotecario | G11: Nombre del cliente / Conyuge en su caso
S12: Contratación de Seguro Daños | V12: Daños | W12: 0.00031 | X12: =W12 -> 0.00031
S13: =IF(U35=2,"FOVISSSTE","Externo") -> FOVISSSTE | T13: 1
C14: Sucursal | G14: Teléfonos | L14: Fecha Firma | S14: =+IF(U35=1,"Scotiabank","") -> 
S17: Contratación de Seguro Vida | V17: Vida | W17: =+IF(U35=1,X17,X18) -> 0.0002525 | X17: =X18*2 -> 0.000505
S18: Scotiabank | T18: 1 | X18: 0.0002525
C19: Escoja la opción de su interés: | G19: Detalle | S19: Externo
C21: Como desea hacer su cálculo | G21: Producto | H21: =IF(U35=2,"Fovissste para todos","Fovissste - prestadores de servicios") -> Fovissste para todos | L21: % de financiamiento Banco | S21: Plazo
G22: Plazo | H22: =IFERROR(INDEX($S$22:$S$25,$T$22),"") -> 20 años | M22: =+IF(N25=0,0,IF(O27="",I26/N25,O27/N25)) -> 0 | S22: 7 años | T22: 4
C23: =IF(Y37=1,"Valor de la vivienda",IF(Y37=2,"Ingresos Mensuales","Monto de Crédito")) -> Monto de Crédito | S23: 10 años
C24: Valor Destructible | H24: Recursos | S24: 15 años
C25: =IF(D23=0,"",IF(AND($Y$37=1,D23<$AB$35),AD37,IF(D23<$Y$35,AD38,""))) ->  | G25: Crédito Máximo posible | I25: =IF(AC71="",AD35,AC71) -> 0 | K25: Valor de vivienda | N25: =AA71 -> 0 | S25: 20 años
G26: Crédito solicitado | I26: =I25 -> 0
C27: Plazo del crédito | G27: =IF(I26=0,"",IF(I26>I25,$AD$39,IF(I26<Z35,"Crédito debajo del mínimo",""))) ->  | I27: =IF(I26=0,"",IF($I$26<$Z$35,$Z$35,"")) ->  | K27: Gastos de Originación | S27: Cuenta | V27: Nombre | W27: NUMERO DE RECA ACTUAL
C28: Tipo de comisión | G28: =IF(D23="","",IF(AND(Y37=3,I26>AD40),"El crédito solicitado debe ser igual al máximo",IF(I26+I31>N25,"El crédito SB + SSV no debe ser mayor al valor de la vivienda",""))) ->  | S28: Individual | T28: 1 | U28: 1 | V28: =RECAS!C3 -> Fovissste para todos Individual | W28: =RECAS!D3 -> 0319-138-034644/07-00094-0124
G29: =IF(S58=1,"Ajustar monto del crédito a:","") ->  | I29: =IF(S58=1,N25-T55,"") ->  | K29: =IF($U$35=3,"Infonavit impuestos y derechos","Impuestos y derechos") -> Impuestos y derechos | N29: =IFERROR(IF(M29="",O29/N$25,""),0) -> 0 | O29: =IFERROR(IF(M29="",N25*$AB$38,N25*M29),0) -> 0 | S29: Mancomunada | U29: 2 | V29: =RECAS!C4 -> Fovissste para todos Mancomunado | W29: =RECAS!D4 -> 0319-138-034645/07-00095-0124
C30: Tipo de Seguro de Daños | G30: =IF(U35=1,"","Total Subcuenta vivienda") -> Total Subcuenta vivienda | I30: =IF(U35=2,T55,"") -> 0 | K30: Honorarios notariales | N30: =IFERROR(IF(M30="",O30/N$25,""),0) -> 0 | O30: =IFERROR(IF(M30="",N25*$AB$39,N25*M30),0) -> 0
C31: Tipo de Seguro de Vida | K31: =IF(U35=2,"Descuento (50% Honorarios Credito Fovissste)","") -> Descuento (50% Honorarios Credito Fovissste) | O31: =IF(U35=2,(IF(M30="",N30,M30)*(D39+D45))/2*-1,"") -> 0
C32: Cuenta | T32: Tipo de Crédito | V32: Com Apert | W32: Coms. prepago | X32: LTV | Y32: Ingresos min. | Z32: Monto min. | AA32: Monto max | AB32: Valor min. viv. | AC32: PTI | AD32: Crédito máximo disponible
L33: Costo Avalúo | M33: =IF(N25>$T$96,"'Favor de Cotizar'. Val. apróx.","") ->  | O33: =IFERROR(IF(U35=1,0,VLOOKUP(N25,$S$76:$U$97,3)),0) -> 0 | S33: 1 | T33: Honorarios | V33: 0 | W33: 0.03 | X33: 0.95 | Y33: 7500 | Z33: 250000 | AA33: 15000000 | AB33: 300000 | AC33: 0.55 | AD33: =$W$71 -> 0 | AE33: CREDIRESIDENCIAL
C34: =IF(U35=2,"Información Fovissste","") -> Información Fovissste | L34: Comisión por apertura | O34: =IFERROR(IF(T37=2,0,I26*V35),0) -> 0 | S34: 2 | T34: Empleado | V34: 0 | W34: 0 | X34: 0.95 | Y34: 7500 | Z34: 120000 | AA34: 15000000 | AB34: 300000 | AC34: 0.55 | AD34: =$W$71 -> 0 | AE34: CREDIRESIDENCIAL
T35: Selección | U35: 2 | V35: =IFERROR(IF(#REF!<>"",#REF!,VLOOKUP($U35,$S$33:$AC$34,4,0)),0) -> 0 | W35: =IFERROR(VLOOKUP($U35,$S$33:$AC$34,5,0),0) -> 0 | X35: =IFERROR(VLOOKUP($U35,$S$33:$AB$34,6,0),0) -> 0.95 | Y35: =IFERROR(VLOOKUP($U35,$S$33:$AB$34,7,0),0) -> 7500 | Z35: =IFERROR(VLOOKUP($U35,$S$33:$AB$34,8,0),0) -> 120000 | AA35: =IFERROR(VLOOKUP($U35,$S$33:$AB$34,9,0),0) -> 15000000 | AB35: =IFERROR(VLOOKUP($U35,$S$33:$AB$34,10,0),0) -> 300000 | AC35: =IFERROR(VLOOKUP($U35,$S$33:$AC$34,11,0),0) -> 0.55 | AD35: =IFERROR(VLOOKUP($U35,$S$33:$AD$34,12,0),0) -> 0
C36: =IF(U35=2,"Cofinanciamientos (datos del titular)","") -> Cofinanciamientos (datos del titular) | G36: =IF(U35=2,"Recursos Totales:","Crédito Banco:") -> Recursos Totales: | I36: =IF(I26>I25,"Crédito solicitado fuera de rango",IF(U35=2,I26+I30,I26)) -> 0 | L36: =+IF(OR(U35=4,U35=5),"Gastos de originación - Gastos Financiados","Gastos de originación") -> Gastos de originación | O36: =+SUM(O29:O34) -> 0
G37: =IF($U$35=2,"Crédito SB + SSV al frente","") -> Crédito SB + SSV al frente | I37: =IFERROR(IF(U35=2,I36/N25,""),0) -> 0 | S37: COMISION | T37: 1 | W37: CALCULO | Y37: 3 | AA37: =IF($U$35=3,"Infonavit gastos de originación","") ->  | AB37: 0.05 | AD37: CDMX, GDL, MTY $300,000 / Resto $275,000
C38: Salario base | S38: No aplica | W38: Por Valor del Inmueble | AA38: =IF($U$35=3,"Infonavit impuestos y derechos","Impuestos y derechos") -> Impuestos y derechos | AB38: 0.05 | AD38: Ingresos menores al mínimo
C39: =IF(U35=1,"","Subcuenta de vivienda") -> Subcuenta de vivienda | I39: =IFERROR(IF($U$35=6,"",IF(OR(U35=4,U35=5),"Desembolso",IF(I36-N25>0,"Monto Remanente","Enganche para la compra"))),0) -> Enganche para la compra | L39: =IFERROR(IF(OR(U35=4,U35=5),0,$N$25-$I$36),0) -> 0 | M39: =IF(L39<0,"negativo significa remanente para el cliente","") ->  | S39: Apertura | W39: Por Ingresos | AA39: Honorarios notariales | AB39: 0.02 | AD39: Crédito fuera de rango
I40: Gastos de originación | L40: =O36 -> 0 | S40: Prepago | W40: Por Importe de Crédito | AD40: =IF(T57=5,7000000,15000000) -> 15000000 | AE40: Rango de Política por monto máximo
I41: Inversión cliente | L41: =IF($U$35=6,L40,L39+L40) -> 0
C42: =IF(U35=2,"Cofinanciamiento (datos del conyuge, si aplica))","") -> Cofinanciamiento (datos del conyuge, si aplica)) | G42: CAT | I42: ='Tabla de amortizacion'!B10 -> 0 | M42: Parámetros de crédito
G43: Mensualidad | I43: =IF(I26>I25,"Crédito solicitado fuera de rango",'Tabla de amortizacion'!D15+'Tabla de amortizacion'!T15+'Tabla de amortizacion'!V15) -> 0 | M43: Crédito mínimo | N43: =$Z$35 -> 120000
C44: Salario base | G44: Tasa | I44: =T8 -> 0.105 | M44: Enganche mínimo | N44: =IF($X$35=0,0,1-$X$35) -> 0.05 | S44: CALCULO PARA EL IMPORTE MAXIMO DE APORTACION PATRONAL
C45: =IF(U35=1,"","Subcuenta de vivienda") -> Subcuenta de vivienda | G45: Pago al millar $ | I45: =+T9 -> 10.1 | M45: Valor mínimo inmueble | N45: CDMX, GDL, MTY $300,000 Resto $275,000 | S45: Salario diario nominal (enero 2021) | U45: 1000 | V45: No existe tope
G46: Ingreso mínimo | I46: =T10 -> 0 | S46: Tope de aportación patronal (Veces el SMGVDF) | U46: 25
S47: Aportación patronal | U47: =+U45*U46 -> 25000
G48: =IF($U$35=3,"Cofinavit (Ajustado al 100% de los gastos)","") ->  | L48: =IF($U$35=3,"SI NO","") ->  | S48: Aportación Patronal 5% | U48: =+U47*0.05 -> 1250
S49: (Crédito para vivienda) | T49: 0.05
C50: Observaciones: | S50: No. de días del bimestre (promedio 60 días) | U50: 60
C51: - Los impuestos y derechos están calculados al 5.00% del valor del inmueble, pueden cambiar dependiendo de la entidad federativa. | S51: Aportación Patronal bimestral | U51: =+U48*U50 -> 75000 | V51: No existe tope
C52: - Los honorarios notariales en los créditos en cofinanciamiento están calculados al 2.00% del valor del inmueble, pueden variar dependiendo de la entidad federativa. | S52: Incremento anual promedio para las aportaciones = | U52: 0.03
C53: - El crédito solicitado dependerá de la capacidad de pago de cada cliente | U53: Max, Salario Base
C54: - Scotiabank se reserva el derecho de solicitar información adicional y/o restringir parámetros de enganche, monto, plazo o tasa en función de las características específicas | S54: Total Salario Base | T54: =+D44+D38 -> 0 | U54: =IF(Y37=2,I46-D44,1000000) -> 1000000 | V54: =IF(Y37=2,I46-D38,1000000) -> 1000000
C55: del solicitante y del inmueble objeto de la operación. | S55: Total Subcuenta de vivienda | T55: =+D39+D45 -> 0
C56: - En caso de que aplique, la comisión por pagos anticipados causa I.V.A.
C57: - Esta cotización tiene carácter informativo, Scotiabank se reserva el derecho de cambiar cualquier condición sin previo aviso. | S57: Tope Máximo SSV + Crédito SBI
C58: - Este documento NO implica que el crédito ha sido autorizado, ni establece obligación alguna para Scotiabank. | O58: v2024.01 | S58: =IF(D23="","",IF(I26+T55>N25,1,0)) -> 
T65: Selección
S66: Esquema | T66: Fovissste | W66: Cred. max | Y66: Erogación | AA66: Valor de vivienda | AC66: Ingresos
S67: Plazo | T67: =IF($T$22=1,S22,IF($T$22=2,S23,IF($T$22=3,S24,S25))) -> 20 años | V67: Por Valor Inmueble | W67: =IFERROR(IF($Y$37=3,D23,MIN(D23*X35,D23-D39-D45)),0) -> 0 | Y67: =W67/1000*$T$69 -> 0 | AA67: =IFERROR(IF($Y$37=3,MAX(D23/X35,D23+D39+D45),D23),0) -> 0 | AC67: =W67/1000*$T$71/$AC$35 -> 0 | AD67: =$Y$35 -> 7500 | AE67: =MAX(AC67:AD67) -> 7500
S68: Tasa | T68: =T8 -> 0.105 | V68: Por Ingresos | W68: =IFERROR(Y68/(T71/1000),0) -> 0 | Y68: =IFERROR(D23*AC35,0) -> 0 | AA68: =MAX(W68/$X$35,W68+D39+D45) -> 0 | AC68: =D23 -> 0 | AD68: =$Y$35 -> 7500 | AE68: =MAX(AC68:AD68) -> 7500
S69: PPM | T69: =+T9 -> 10.1
S70: Inc anual | T70: 0
S71: ppm (cap pago) | T71: =+T69 -> 10.1 | V71: Cred. máximo | W71: =IF(OR($Y$37=1,$Y$37=3),W67,W68) -> 0 | AA71: =IF(OR($Y$37=1,$Y$37=3),AA67,AA68) -> 0 | AC71: =IF(AND(Y37=2,T53=1,T57>3,SUM(Z30:Z31)>0),AC68*25,"") ->  | AE71: =IF($Y$37=1,AE67,AE68) -> 7500
V72: Cred. Máximo Pago de Pasivos | AC72: LTI
S74: AVALUO
S75: Mayor a | T75: Hasta a | U75: Importe | AB75: 25 | AC75: 1250000
S76: 0.01 | T76: 500000 | U76: 1900 | AB76: 25.9 | AC76: 1295000 | AD76: =+AC76-AC75 -> 45000
S77: 500001 | T77: 1000000 | U77: 3300 | AB77: 26 | AC77: 1300000
S78: 1000001 | T78: 1500000 | U78: 4500
S79: 1500001 | T79: 2000000 | U79: 5750
S80: 2000001 | T80: 2500000 | U80: 7000
S81: 2500001 | T81: 3000000 | U81: 8200
S82: 3000001 | T82: 4000000 | U82: 11000
S83: 4000001 | T83: 5000000 | U83: 13900
S84: 5000001 | T84: 6000000 | U84: 15500
S85: 6000001 | T85: 7000000 | U85: 19000
S86: 7000001 | T86: 8000000 | U86: 20000
S87: 8000001 | T87: 9000000 | U87: 20100
S88: 9000001 | T88: 10000000 | U88: 22500
S89: 10000001 | T89: 11000000 | U89: 27000
S90: 11000001 | T90: 12000000 | U90: 28000
S91: 12000001 | T91: 13000000 | U91: 30000
S92: 13000001 | T92: 14000000 | U92: 32000
S93: 14000001 | T93: 15000000 | U93: 34000
S94: 15000001 | T94: 20000000 | U94: 37000
S95: 20000001 | T95: 25000000 | U95: 39000
S96: 25000001 | T96: 30000000 | U96: 40000
S97: 30000001 | T97: 30000000 | U97: 40000

Sheet Tabla de amortizacion
A1: Scotiabank Inverlat, S.A., Institución de Banca Múltiple, Grupo Financiero Scotiabank Inverlat | BF1: -
A2: =PROPER("FINANCIAMIENTO SCOTIABANK - Fovissste") -> Financiamiento Scotiabank - Fovissste
A3: =PROPER("TABLA DE AMORTIZACION") -> Tabla De Amortizacion | AH3: Comisión por apertura | AI3: =IFERROR(Simulador!O34*1,0) -> 0
A4: ="Esquema FOVISSSTE - "&IF(Simulador!T22=1,Simulador!S22,IF(Simulador!T22=2,Simulador!S23,IF(Simulador!T22=3,Simulador!S24,Simulador!S25))) -> Esquema FOVISSSTE - 20 años | AB4: 1 | AH4: Avalúo | AI4: =IFERROR(Simulador!O33*1,0) -> 0
A5: Observaciones | L5: =Simulador!C8 -> 2024-03-22 | AB5: Disminución de plazo | AH5: Total | AI5: =+AI4+AI3 -> 0
A6: - En caso de que aplique la comisión por prepagos causa IVA y en la corrida ya lo incluye | AB6: =IF(Simulador!U35=2,"","Disminución de pago") -> 
A7: - El escenario que se presenta en la tabla de amortización siempre es considerando que se paga de manera puntual el crédito. | AT7: =AT11*12 -> 0
A8: - Esta cotización tiene carácter informativo, Scotiabank se reserva el derecho de cambiar cualquier condición sin previo aviso. | AT8: =((1+AT11)^12)-1 -> 0
A9: - Este documento NO implica que el crédito ha sido autorizado, ni establece obligación alguna para Scotiabank. | V9: El crédito se liquida en: | Y9: =AD13 -> 0 | AT9: Corrida para CAT
A10: - CAT =. | B10: =AT8 -> 0 | C10: "Para fines informativos de comparación exclusivamente sin IVA" | Y10: =AE13 -> 0 | AT10: TIR
A11: =IF(Simulador!U35=2,"","- En caso de anticipos a capital escoja la opción:") ->  | AT11: =IFERROR(IRR(AT12:AT254,0),0) -> 0
Z12: . | AK12: . | AT12: =AI5-AL15 -> 0
A13: Período | B13: Saldo Inicial | D13: Erogación | F13: Interés | H13: Amortización | J13: Prepagos a capital | L13: Comisión por prepagos | N13: Aportación Bimestral | P13: Tasa aplicada | R13: Saldo Final | T13: Seguro de vida y desempleo | V13: Seguro de daños | Y13: Pago Mensual | AA13: años | AB13: meses | AC13: =SUM(AC15:AC254) -> 1 | AD13: =SUM(AD15:AD254) -> 0 | AE13: =SUM(AE15:AE254) -> 0 | AF13: =AI5-B15 -> 0 | AG13: Tasa aplicar | AJ13: factor de pago - Valora | AL13: Saldo Inicial | AM13: Erogación | AN13: Interés | AO13: Amortización | AP13: Saldo Final | AQ13: Tasa Aplic. | AR13: Seguros | AS13: Incremento Pago | AT13: Pago Mensual | AV13: Fecha | AW13: Dias | AX13: Período | AY13: Año actual | AZ13: Mes actual | BA13: Día actual | BB13: Dia/corte | BC13: sumar a mes
A14: =IF(AND(Simulador!U35=2,DAY(Simulador!L15)=3),"",IF(AND(Simulador!U35=1,(OR(DAY(Simulador!L15)=3,DAY(Simulador!L15)=17))),"",0)) -> 0 | B14: =IF(A14="","",IFERROR(IF(Simulador!O27="",Simulador!I26,Simulador!O27),0)) -> 0 | D14: =IF(A14="","",F14+H14) -> 0 | F14: =IFERROR(IF(A14="","",P14/360*AW14*B14),0) -> 0 | H14: =IF(A14="","",0) -> 0 | L14: =IF(A14="","",IF(Simulador!$T$37<3,0,J14*Simulador!$W$35*1.16)) -> 0 | P14: =IF(A14="","",AG14) -> 0.105 | R14: =IFERROR(IF(A14="","",B14-H14-J14+L14-N14),0) -> 0 | T14: =IFERROR(IF(A14="","",IF(Simulador!$T$18=2,0,IF($B14<=0,0,$B14*Simulador!$W$17/30*AW14))),0) -> 0 | V14: =IFERROR(IF(A14="","",IF($B14<=0,0,IF(Simulador!$T$13=1,0,IF(Simulador!$D$24>0,Simulador!$D$24,Simulador!$N$25)*Simulador!$W$12/30*AW14))),0) -> 0 | Y14: =IFERROR(IF(B14<=0,0,D14+J14+T14+V14),"") -> 0 | AG14: =Simulador!T8 -> 0.105 | AT14: =IF(A14="","",Y14) -> 0 | AV14: =DATE(AY14,AZ14+BC14,BB14) -> 1900-02-03 | AW14: =AV14-Simulador!L15 -> 34 | AX14: 0 | AY14: =IFERROR(YEAR(Simulador!L15),YEAR(TODAY())) -> 1900 | AZ14: =IFERROR(MONTH(Simulador!L15),MONTH(TODAY())) -> 1 | BA14: =IFERROR(DAY(Simulador!L15),DAY(TODAY())) -> 0 | BB14: =IF(Simulador!U35=2,3,IF(AND(DAY(Simulador!L15)>=3,DAY(Simulador!L15)<=16),3,17)) -> 3 | BC14: =IF(BA14=BB14,0,1) -> 1
A15: 1 | B15: =IF(A14="",Simulador!I26,'Tabla de amortizacion'!R14) -> 0 | D15: =IFERROR(B15/1000*Simulador!T9,0) -> 0 | F15: =IFERROR(IF(B15=0,0,P15/360*AW15*B15),0) -> 0 | H15: =D15-F15 -> 0 | L15: =IF(Simulador!$T$37<3,0,J15*Simulador!$W$35*1.16) -> 0 | P15: =IF(B15=0,"",AG15) ->  | R15: =IFERROR(B15-H15-J15+L15-N15,0) -> 0 | T15: =IFERROR(IF(Simulador!$T$18=2,0,IF($B15<=0,0,$B15*Simulador!$W$17)),0) -> 0 | V15: =IFERROR(IF($B15<=0,0,IF(Simulador!$T$13=1,0,IF(Simulador!$D$24>0,Simulador!$D$24,Simulador!$N$25)*Simulador!$W$12)),0) -> 0 | Y15: =IF(B15<=0,0,D15+J15+T15+V15) -> 0 | AA15: 0 | AB15: =IF(B15=0,0,1) -> 0 | AC15: =IF(R15<=0,IF(R13>0,A15,0),0) -> 1 | AD15: =IF(AC15>0,AA15,0) -> 0 | AE15: =IF(AC15>0,AB15,0) -> 0 | AF15: =Y15 -> 0 | AG15: =AG14 -> 0.105 | AJ15: =IFERROR((AM15/AL15),0) -> 0 | AL15: =B15 -> 0 | AM15: =D15 -> 0 | AN15: =IFERROR((AQ15/360*AW15*AL15),0) -> 0 | AO15: =+AM15-AN15 -> 0 | AP15: =+AL15-AO15 -> 0 | AQ15: =IF(AL15=0,"",AG15) ->  | AR15: =IFERROR(IF(Simulador!$T$18=2,0,IF($AL15<=0.01,0,$AL15*Simulador!$W$17)),0)+IFERROR(IF(Simulador!$T$13=1,17,IF($AL15<=0.01,0,IF(Simulador!$D$24>0,Simulador!$D$24,Simulador!$N$25)*Simulador!$W$12)),0) -> 17 | AT15: =AN15+AO15+AR15 -> 17 | AV15: =IF(AL15=0,"",DATE(YEAR(AV14),MONTH(AV14)+1,1)) ->  | AW15: =IFERROR(DAY(DATE(YEAR(AV15),MONTH(AV15),0)),0) -> 0 | AX15: 1
A16: 2 | B16: =IF(R15<=0,0,R15) -> 0 | D16: =IF(B16+F16-D15<=0,B16+F16,IF($AB$4=2,B16*AJ16,D15)) -> 0 | F16: 0 | H16: =D16-F16 -> 0 | L16: =IF(Simulador!$T$37<3,0,J16*Simulador!$W$35*1.16) -> 0 | R16: =B16-H16-J16+L16-N16 -> 0 | T16: =IFERROR(IF(Simulador!$T$18=2,0,IF($B16<=0,0,$B16*Simulador!$W$17)),0) -> 0 | V16: =IFERROR(IF($B16<=0,0,IF(Simulador!$T$13=1,0,IF(Simulador!$D$24>0,Simulador!$D$24,Simulador!$N$25)*Simulador!$W$12)),0) -> 0 | Y16: =IF(B16<=0,0,D16+J16+T16+V16) -> 0 | AA16: 0 | AB16: 2 | AC16: =IF(R16<=0,IF(R15>0,A16,0),0) -> 0 | AD16: =IF(AC16>0,AA16,0) -> 0 | AE16: =IF(AC16>0,AB16,0) -> 0 | AF16: 0 | AG16: =AG15 -> 0.105 | AJ16: =IFERROR((AM16/AL16),0) -> 0 | AL16: =+AP15 -> 0 | AM16: =IFERROR((IF(AL16+AN16-AM15<0, AL16+AN16, AM15*(1+AS16))),0) -> 0 | AN16: 0 | AO16: 0 | AP16: =+AL16-AO16 -> 0 | AR16: =IFERROR(IF(Simulador!$T$18=2,0,IF($AL16<=0.01,0,$AL16*Simulador!$W$17)),0)+IFERROR(IF(Simulador!$T$13=1,17,IF($AL16<=0.01,0,IF(Simulador!$D$24>0,Simulador!$D$24,Simulador!$N$25)*Simulador!$W$12)),0) -> 17 | AT16: =AN16+AO16+AR16 -> 17 | AV16: =IF(AL16=0,"",DATE(YEAR(AV15),MONTH(AV15)+1,1)) ->  | AW16: =IFERROR(DAY(DATE(YEAR(AV16),MONTH(AV16),0)),0) -> 0 | AX16: 2
A17: 3 | B17: =IF(R16<=0,0,R16) -> 0 | D17: =IF(B17+F17-D16<=0,B17+F17,IF($AB$4=2,B17*AJ17,D16)) -> 0 | F17: 0 | H17: =D17-F17 -> 0 | L17: =IF(Simulador!$T$37<3,0,J17*Simulador!$W$35*1.16) -> 0 | R17: 0 | T17: =IFERROR(IF(Simulador!$T$18=2,0,IF($B17<=0,0,$B17*Simulador!$W$17)),0) -> 0 | V17: =IFERROR(IF($B17<=0,0,IF(Simulador!$T$13=1,0,IF(Simulador!$D$24>0,Simulador!$D$24,Simulador!$N$25)*Simulador!$W$12)),0) -> 0 | Y17: 0 | AA17: 0 | AB17: 3 | AC17: 0 | AD17: 0 | AE17: 0 | AF17: 0 | AG17: =AG16 -> 0.105 | AJ17: 0 | AL17: 0 | AM17: 0 | AN17: 0 | AO17: 0 | AP17: 0 | AR17: =IFERROR(IF(Simulador!$T$18=2,0,IF($AL17<=0.01,0,$AL17*Simulador!$W$17)),0)+IFERROR(IF(Simulador!$T$13=1,17,IF($AL17<=0.01,0,IF(Simulador!$D$24>0,Simulador!$D$24,Simulador!$N$25)*Simulador!$W$12)),0) -> 17 | AT17: =AN17+AO17+AR17 -> 17 | AV17: =IF(AL17=0,"",DATE(YEAR(AV16),MONTH(AV16)+1,1)) ->  | AW17: =IFERROR(DAY(DATE(YEAR(AV17),MONTH(AV17),0)),0) -> 0 | AX17: 3 | AY17: Días/Mes | AZ17: =365.25/12 -> 30.4375
A18: 4 | B18: 0 | D18: 0 | F18: 0 | H18: 0 | L18: =IF(Simulador!$T$37<3,0,J18*Simulador!$W$35*1.16) -> 0 | N18: =IF(Simulador!U35=1,0,IF(Simulador!$T$54*Simulador!$T$49*2>Simulador!$U$51,Simulador!$U$51,IF(B18=0,0,Simulador!$T$54*Simulador!$T$49*2))) -> 0 | R18: 0 | T18: =IFERROR(IF(Simulador!$T$18=2,0,IF($B18<=0,0,$B18*Simulador!$W$17)),0) -> 0 | V18: =IFERROR(IF($B18<=0,0,IF(Simulador!$T$13=1,0,IF(Simulador!$D$24>0,Simulador!$D$24,Simulador!$N$25)*Simulador!$W$12)),0) -> 0 | Y18: 0 | AA18: 0 | AB18: 4 | AC18: 0 | AD18: 0 | AE18: 0 | AF18: 0 | AG18: 0.105 | AJ18: 0 | AL18: 0 | AM18: 0 | AN18: 0 | AO18: 0 | AP18: 0 | AR18: =IFERROR(IF(Simulador!$T$18=2,0,IF($AL18<=0.01,0,$AL18*Simulador!$W$17)),0)+IFERROR(IF(Simulador!$T$13=1,17,IF($AL18<=0.01,0,IF(Simulador!$D$24>0,Simulador!$D$24,Simulador!$N$25)*Simulador!$W$12)),0) -> 17 | AT18: =AN18+AO18+AR18 -> 17 | AW18: 0 | AX18: 4 | AZ18: Interés mensual = Sdo inicial x tasa / 360 x # días del mes
A19: 5 | B19: 0 | D19: 0 | F19: 0 | H19: 0 | L19: =IF(Simulador!$T$37<3,0,J19*Simulador!$W$35*1.16) -> 0 | R19: 0 | T19: =IFERROR(IF(Simulador!$T$18=2,0,IF($B19<=0,0,$B19*Simulador!$W$17)),0) -> 0 | V19: =IFERROR(IF($B19<=0,0,IF(Simulador!$T$13=1,0,IF(Simulador!$D$24>0,Simulador!$D$24,Simulador!$N$25)*Simulador!$W$12)),0) -> 0 | Y19: 0 | AA19: 0 | AB19: 5 | AC19: 0 | AD19: 0 | AE19: 0 | AF19: 0 | AG19: 0.105 | AJ19: 0 | AL19: 0 | AM19: 0 | AN19: 0 | AO19: 0 | AP19: 0 | AR19: =IFERROR(IF(Simulador!$T$18=2,0,IF($AL19<=0.01,0,$AL19*Simulador!$W$17)),0)+IFERROR(IF(Simulador!$T$13=1,17,IF($AL19<=0.01,0,IF(Simulador!$D$24>0,Simulador!$D$24,Simulador!$N$25)*Simulador!$W$12)),0) -> 17 | AT19: =AN19+AO19+AR19 -> 17 | AW19: 0 | AX19: 5
A20: 6 | B20: 0 | D20: 0 | F20: 0 | H20: 0 | L20: =IF(Simulador!$T$37<3,0,J20*Simulador!$W$35*1.16) -> 0 | N20: =IF(B20-H20=0,0,N18) -> 0 | R20: 0 | T20: =IFERROR(IF(Simulador!$T$18=2,0,IF($B20<=0,0,$B20*Simulador!$W$17)),0) -> 0 | V20: =IFERROR(IF($B20<=0,0,IF(Simulador!$T$13=1,0,IF(Simulador!$D$24>0,Simulador!$D$24,Simulador!$N$25)*Simulador!$W$12)),0) -> 0 | Y20: 0 | AA20: 0 | AB20: 6 | AC20: 0 | AD20: 0 | AE20: 0 | AF20: 0 | AG20: 0.105 | AJ20: 0 | AL20: 0 | AM20: 0 | AN20: 0 | AO20: 0 | AP20: 0 | AR20: =IFERROR(IF(Simulador!$T$18=2,0,IF($AL20<=0.01,0,$AL20*Simulador!$W$17)),0)+IFERROR(IF(Simulador!$T$13=1,17,IF($AL20<=0.01,0,IF(Simulador!$D$24>0,Simulador!$D$24,Simulador!$N$25)*Simulador!$W$12)),0) -> 17 | AT20: 17 | AW20: 0 | AX20: 6
A21: 7 | B21: 0 | D21: 0 | F21: 0 | H21: 0 | L21: =IF(Simulador!$T$37<3,0,J21*Simulador!$W$35*1.16) -> 0 | R21: 0 | T21: =IFERROR(IF(Simulador!$T$18=2,0,IF($B21<=0,0,$B21*Simulador!$W$17)),0) -> 0 | V21: =IFERROR(IF($B21<=0,0,IF(Simulador!$T$13=1,0,IF(Simulador!$D$24>0,Simulador!$D$24,Simulador!$N$25)*Simulador!$W$12)),0) -> 0 | Y21: 0 | AA21: 0 | AB21: 7 | AC21: 0 | AD21: 0 | AE21: 0 | AF21: 0 | AG21: 0.105 | AJ21: 0 | AL21: 0 | AM21: 0 | AN21: 0 | AO21: 0 | AP21: 0 | AR21: =IFERROR(IF(Simulador!$T$18=2,0,IF($AL21<=0.01,0,$AL21*Simulador!$W$17)),0)+IFERROR(IF(Simulador!$T$13=1,17,IF($AL21<=0.01,0,IF(Simulador!$D$24>0,Simulador!$D$24,Simulador!$N$25)*Simulador!$W$12)),0) -> 17 | AT21: 17 | AW21: 0 | AX21: 7
A22: 8 | B22: 0 | D22: 0 | F22: 0 | H22: 0 | L22: =IF(Simulador!$T$37<3,0,J22*Simulador!$W$35*1.16) -> 0 | N22: =IF(B22-H22=0,0,N20) -> 0 | R22: 0 | T22: =IFERROR(IF(Simulador!$T$18=2,0,IF($B22<=0,0,$B22*Simulador!$W$17)),0) -> 0 | V22: =IFERROR(IF($B22<=0,0,IF(Simulador!$T$13=1,0,IF(Simulador!$D$24>0,Simulador!$D$24,Simulador!$N$25)*Simulador!$W$12)),0) -> 0 | Y22: 0 | AA22: 0 | AB22: 8 | AC22: 0 | AD22: 0 | AE22: 0 | AF22: 0 | AG22: 0.105 | AJ22: 0 | AL22: 0 | AM22: 0 | AN22: 0 | AO22: 0 | AP22: 0 | AR22: =IFERROR(IF(Simulador!$T$18=2,0,IF($AL22<=0.01,0,$AL22*Simulador!$W$17)),0)+IFERROR(IF(Simulador!$T$13=1,17,IF($AL22<=0.01,0,IF(Simulador!$D$24>0,Simulador!$D$24,Simulador!$N$25)*Simulador!$W$12)),0) -> 17 | AT22: 17 | AW22: 0 | AX22: 8
A23: 9 | B23: 0 | D23: 0 | F23: 0 | H23: 0 | L23: =IF(Simulador!$T$37<3,0,J23*Simulador!$W$35*1.16) -> 0 | R23: 0 | T23: =IFERROR(IF(Simulador!$T$18=2,0,IF($B23<=0,0,$B23*Simulador!$W$17)),0) -> 0 | V23: =IFERROR(IF($B23<=0,0,IF(Simulador!$T$13=1,0,IF(Simulador!$D$24>0,Simulador!$D$24,Simulador!$N$25)*Simulador!$W$12)),0) -> 0 | Y23: 0 | AA23: 0 | AB23: 9 | AC23: 0 | AD23: 0 | AE23: 0 | AF23: 0 | AG23: 0.105 | AJ23: 0 | AL23: 0 | AM23: 0 | AN23: 0 | AO23: 0 | AP23: 0 | AR23: =IFERROR(IF(Simulador!$T$18=2,0,IF($AL23<=0.01,0,$AL23*Simulador!$W$17)),0)+IFERROR(IF(Simulador!$T$13=1,17,IF($AL23<=0.01,0,IF(Simulador!$D$24>0,Simulador!$D$24,Simulador!$N$25)*Simulador!$W$12)),0) -> 17 | AT23: 17 | AW23: 0 | AX23: 9
A24: 10 | B24: 0 | D24: 0 | F24: 0 | H24: 0 | L24: =IF(Simulador!$T$37<3,0,J24*Simulador!$W$35*1.16) -> 0 | N24: =IF(B24-H24=0,0,N22) -> 0 | R24: 0 | T24: =IFERROR(IF(Simulador!$T$18=2,0,IF($B24<=0,0,$B24*Simulador!$W$17)),0) -> 0 | V24: =IFERROR(IF($B24<=0,0,IF(Simulador!$T$13=1,0,IF(Simulador!$D$24>0,Simulador!$D$24,Simulador!$N$25)*Simulador!$W$12)),0) -> 0 | Y24: 0 | AA24: 0 | AB24: 10 | AC24: 0 | AD24: 0 | AE24: 0 | AF24: 0 | AG24: 0.105 | AJ24: 0 | AL24: 0 | AM24: 0 | AN24: 0 | AO24: 0 | AP24: 0 | AR24: =IFERROR(IF(Simulador!$T$18=2,0,IF($AL24<=0.01,0,$AL24*Simulador!$W$17)),0)+IFERROR(IF(Simulador!$T$13=1,17,IF($AL24<=0.01,0,IF(Simulador!$D$24>0,Simulador!$D$24,Simulador!$N$25)*Simulador!$W$12)),0) -> 17 | AT24: 17 | AW24: 0 | AX24: 10
A25: 11 | B25: 0 | D25: 0 | F25: 0 | H25: 0 | L25: =IF(Simulador!$T$37<3,0,J25*Simulador!$W$35*1.16) -> 0 | R25: 0 | T25: =IFERROR(IF(Simulador!$T$18=2,0,IF($B25<=0,0,$B25*Simulador!$W$17)),0) -> 0 | V25: =IFERROR(IF($B25<=0,0,IF(Simulador!$T$13=1,0,IF(Simulador!$D$24>0,Simulador!$D$24,Simulador!$N$25)*Simulador!$W$12)),0) -> 0 | Y25: 0 | AA25: 0 | AB25: 11 | AC25: 0 | AD25: 0 | AE25: 0 | AF25: 0 | AG25: 0.105 | AJ25: 0 | AL25: 0 | AM25: 0 | AN25: 0 | AO25: 0 | AP25: 0 | AR25: =IFERROR(IF(Simulador!$T$18=2,0,IF($AL25<=0.01,0,$AL25*Simulador!$W$17)),0)+IFERROR(IF(Simulador!$T$13=1,17,IF($AL25<=0.01,0,IF(Simulador!$D$24>0,Simulador!$D$24,Simulador!$N$25)*Simulador!$W$12)),0) -> 17 | AT25: 17 | AW25: 0 | AX25: 11
A26: 12 | B26: 0 | D26: 0 | F26: 0 | H26: 0 | L26: =IF(Simulador!$T$37<3,0,J26*Simulador!$W$35*1.16) -> 0 | N26: =IF(B26-H26=0,0,N24) -> 0 | R26: 0 | T26: =IFERROR(IF(Simulador!$T$18=2,0,IF($B26<=0,0,$B26*Simulador!$W$17)),0) -> 0 | V26: =IFERROR(IF($B26<=0,0,IF(Simulador!$T$13=1,0,IF(Simulador!$D$24>0,Simulador!$D$24,Simulador!$N$25)*Simulador!$W$12)),0) -> 0 | Y26: 0 | AA26: 1 | AB26: 0 | AC26: 0 | AD26: 0 | AE26: 0 | AF26: 0 | AG26: 0.105 | AJ26: 0 | AL26: 0 | AM26: 0 | AN26: 0 | AO26: 0 | AP26: 0 | AR26: =IFERROR(IF(Simulador!$T$18=2,0,IF($AL26<=0.01,0,$AL26*Simulador!$W$17)),0)+IFERROR(IF(Simulador!$T$13=1,17,IF($AL26<=0.01,0,IF(Simulador!$D$24>0,Simulador!$D$24,Simulador!$N$25)*Simulador!$W$12)),0) -> 17 | AT26: 17 | AW26: 0 | AX26: 12
A27: 13 | B27: 0 | D27: 0 | F27: 0 | H27: 0 | L27: =IF(Simulador!$T$37<3,0,J27*Simulador!$W$35*1.16) -> 0 | R27: 0 | T27: =IFERROR(IF(Simulador!$T$18=2,0,IF($B27<=0,0,$B27*Simulador!$W$17)),0) -> 0 | V27: =IFERROR(IF($B27<=0,0,IF(Simulador!$T$13=1,0,IF(Simulador!$D$24>0,Simulador!$D$24,Simulador!$N$25)*Simulador!$W$12)),0) -> 0 | Y27: 0 | AA27: 1 | AB27: 1 | AC27: 0 | AD27: 0 | AE27: 0 | AF27: 0 | AG27: 0.105 | AJ27: 0 | AL27: 0 | AM27: 0 | AN27: 0 | AO27: 0 | AP27: 0 | AR27: =IFERROR(IF(Simulador!$T$18=2,0,IF($AL27<=0.01,0,$AL27*Simulador!$W$17)),0)+IFERROR(IF(Simulador!$T$13=1,17,IF($AL27<=0.01,0,IF(Simulador!$D$24>0,Simulador!$D$24,Simulador!$N$25)*Simulador!$W$12)),0) -> 17 | AS27: 0 | AT27: 17 | AW27: 0 | AX27: 13
A28: 14 | B28: 0 | D28: 0 | F28: 0 | H28: 0 | L28: =IF(Simulador!$T$37<3,0,J28*Simulador!$W$35*1.16) -> 0 | N28: =IF(B28-H28=0,0,N26*(1+(Simulador!$U$52))) -> 0 | R28: 0 | T28: =IFERROR(IF(Simulador!$T$18=2,0,IF($B28<=0,0,$B28*Simulador!$W$17)),0) -> 0 | V28: =IFERROR(IF($B28<=0,0,IF(Simulador!$T$13=1,0,IF(Simulador!$D$24>0,Simulador!$D$24,Simulador!$N$25)*Simulador!$W$12)),0) -> 0 | Y28: 0 | AA28: 1 | AB28: 2 | AC28: 0 | AD28: 0 | AE28: 0 | AF28: 0 | AG28: 0.105 | AJ28: 0 | AL28: 0 | AM28: 0 | AN28: 0 | AO28: 0 | AP28: 0 | AR28: =IFERROR(IF(Simulador!$T$18=2,0,IF($AL28<=0.01,0,$AL28*Simulador!$W$17)),0)+IFERROR(IF(Simulador!$T$13=1,17,IF($AL28<=0.01,0,IF(Simulador!$D$24>0,Simulador!$D$24,Simulador!$N$25)*Simulador!$W$12)),0) -> 17 | AT28: 17 | AW28: 0 | AX28: 14
A29: 15 | B29: 0 | D29: 0 | F29: 0 | H29: 0 | L29: =IF(Simulador!$T$37<3,0,J29*Simulador!$W$35*1.16) -> 0 | R29: 0 | T29: =IFERROR(IF(Simulador!$T$18=2,0,IF($B29<=0,0,$B29*Simulador!$W$17)),0) -> 0 | V29: =IFERROR(IF($B29<=0,0,IF(Simulador!$T$13=1,0,IF(Simulador!$D$24>0,Simulador!$D$24,Simulador!$N$25)*Simulador!$W$12)),0) -> 0 | Y29: 0 | AA29: 1 | AB29: 3 | AC29: 0 | AD29: 0 | AE29: 0 | AF29: 0 | AG29: 0.105 | AJ29: 0 | AL29: =IF(AP28<=0,0,AP28) -> 0 | AM29: 0 | AN29: 0 | AO29: 0 | AP29: 0 | AR29: =IFERROR(IF(Simulador!$T$18=2,0,IF($AL29<=0.01,0,$AL29*Simulador!$W$17)),0)+IFERROR(IF(Simulador!$T$13=1,17,IF($AL29<=0.01,0,IF(Simulador!$D$24>0,Simulador!$D$24,Simulador!$N$25)*Simulador!$W$12)),0) -> 17 | AT29: 17 | AW29: 0 | AX29: 15
A30: 16 | B30: 0 | D30: 0 | F30: 0 | H30: 0 | L30: =IF(Simulador!$T$37<3,0,J30*Simulador!$W$35*1.16) -> 0 | N30: =IF(B30-H30=0,0,N28) -> 0 | R30: 0 | T30: =IFERROR(IF(Simulador!$T$18=2,0,IF($B30<=0,0,$B30*Simulador!$W$17)),0) -> 0 | V30: =IFERROR(IF($B30<=0,0,IF(Simulador!$T$13=1,0,IF(Simulador!$D$24>0,Simulador!$D$24,Simulador!$N$25)*Simulador!$W$12)),0) -> 0 | Y30: 0 | AA30: 1 | AB30: 4 | AC30: 0 | AD30: 0 | AE30: 0 | AF30: 0 | AG30: 0.105 | AJ30: 0 | AL30: 0 | AM30: 0 | AN30: 0 | AO30: 0 | AP30: 0 | AR30: =IFERROR(IF(Simulador!$T$18=2,0,IF($AL30<=0.01,0,$AL30*Simulador!$W$17)),0)+IFERROR(IF(Simulador!$T$13=1,17,IF($AL30<=0.01,0,IF(Simulador!$D$24>0,Simulador!$D$24,Simulador!$N$25)*Simulador!$W$12)),0) -> 17 | AT30: 17 | AW30: 0 | AX30: 16
A31: 17 | B31: 0 | D31: 0 | F31: 0 | H31: 0 | L31: =IF(Simulador!$T$37<3,0,J31*Simulador!$W$35*1.16) -> 0 | R31: 0 | T31: =IFERROR(IF(Simulador!$T$18=2,0,IF($B31<=0,0,$B31*Simulador!$W$17)),0) -> 0 | V31: =IFERROR(IF($B31<=0,0,IF(Simulador!$T$13=1,0,IF(Simulador!$D$24>0,Simulador!$D$24,Simulador!$N$25)*Simulador!$W$12)),0) -> 0 | Y31: 0 | AA31: 1 | AB31: 5 | AC31: 0 | AD31: 0 | AE31: 0 | AF31: 0 | AG31: 0.105 | AJ31: 0 | AL31: 0 | AM31: 0 | AN31: 0 | AO31: 0 | AP31: 0 | AR31: =IFERROR(IF(Simulador!$T$18=2,0,IF($AL31<=0.01,0,$AL31*Simulador!$W$17)),0)+IFERROR(IF(Simulador!$T$13=1,17,IF($AL31<=0.01,0,IF(Simulador!$D$24>0,Simulador!$D$24,Simulador!$N$25)*Simulador!$W$12)),0) -> 17 | AT31: 17 | AW31: 0 | AX31: 17
A32: 18 | B32: 0 | D32: 0 | F32: 0 | H32: 0 | L32: =IF(Simulador!$T$37<3,0,J32*Simulador!$W$35*1.16) -> 0 | N32: =IF(B32-H32=0,0,N30) -> 0 | R32: 0 | T32: =IFERROR(IF(Simulador!$T$18=2,0,IF($B32<=0,0,$B32*Simulador!$W$17)),0) -> 0 | V32: =IFERROR(IF($B32<=0,0,IF(Simulador!$T$13=1,0,IF(Simulador!$D$24>0,Simulador!$D$24,Simulador!$N$25)*Simulador!$W$12)),0) -> 0 | Y32: 0 | AA32: 1 | AB32: 6 | AC32: 0 | AD32: 0 | AE32: 0 | AF32: 0 | AG32: 0.105 | AJ32: 0 | AL32: 0 | AM32: 0 | AN32: 0 | AO32: 0 | AP32: 0 | AR32: =IFERROR(IF(Simulador!$T$18=2,0,IF($AL32<=0.01,0,$AL32*Simulador!$W$17)),0)+IFERROR(IF(Simulador!$T$13=1,17,IF($AL32<=0.01,0,IF(Simulador!$D$24>0,Simulador!$D$24,Simulador!$N$25)*Simulador!$W$12)),0) -> 17 | AT32: 17 | AW32: 0 | AX32: 18
A33: 19 | B33: 0 | D33: 0 | F33: 0 | H33: 0 | L33: =IF(Simulador!$T$37<3,0,J33*Simulador!$W$35*1.16) -> 0 | R33: 0 | T33: =IFERROR(IF(Simulador!$T$18=2,0,IF($B33<=0,0,$B33*Simulador!$W$17)),0) -> 0 | V33: =IFERROR(IF($B33<=0,0,IF(Simulador!$T$13=1,0,IF(Simulador!$D$24>0,Simulador!$D$24,Simulador!$N$25)*Simulador!$W$12)),0) -> 0 | Y33: 0 | AA33: 1 | AB33: 7 | AC33: 0 | AD33: 0 | AE33: 0 | AF33: 0 | AG33: 0.105 | AJ33: 0 | AL33: 0 | AM33: 0 | AN33: 0 | AO33: 0 | AP33: 0 | AR33: =IFERROR(IF(Simulador!$T$18=2,0,IF($AL33<=0.01,0,$AL33*Simulador!$W$17)),0)+IFERROR(IF(Simulador!$T$13=1,17,IF($AL33<=0.01,0,IF(Simulador!$D$24>0,Simulador!$D$24,Simulador!$N$25)*Simulador!$W$12)),0) -> 17 | AT33: 17 | AW33: 0 | AX33: 19
A34: 20 | B34: 0 | D34: 0 | F34: 0 | H34: 0 | L34: =IF(Simulador!$T$37<3,0,J34*Simulador!$W$35*1.16) -> 0 | N34: =IF(B34-H34=0,0,N32) -> 0 | R34: 0 | T34: =IFERROR(IF(Simulador!$T$18=2,0,IF($B34<=0,0,$B34*Simulador!$W$17)),0) -> 0 | V34: =IFERROR(IF($B34<=0,0,IF(Simulador!$T$13=1,0,IF(Simulador!$D$24>0,Simulador!$D$24,Simulador!$N$25)*Simulador!$W$12)),0) -> 0 | Y34: 0 | AA34: 1 | AB34: 8 | AC34: 0 | AD34: 0 | AE34: 0 | AF34: 0 | AG34: 0.105 | AJ34: 0 | AL34: 0 | AM34: 0 | AN34: 0 | AO34: 0 | AP34: 0 | AR34: =IFERROR(IF(Simulador!$T$18=2,0,IF($AL34<=0.01,0,$AL34*Simulador!$W$17)),0)+IFERROR(IF(Simulador!$T$13=1,17,IF($AL34<=0.01,0,IF(Simulador!$D$24>0,Simulador!$D$24,Simulador!$N$25)*Simulador!$W$12)),0) -> 17 | AT34: 17 | AW34: 0 | AX34: 20
A35: 21 | B35: 0 | D35: 0 | F35: 0 | H35: 0 | L35: =IF(Simulador!$T$37<3,0,J35*Simulador!$W$35*1.16) -> 0 | R35: 0 | T35: =IFERROR(IF(Simulador!$T$18=2,0,IF($B35<=0,0,$B35*Simulador!$W$17)),0) -> 0 | V35: =IFERROR(IF($B35<=0,0,IF(Simulador!$T$13=1,0,IF(Simulador!$D$24>0,Simulador!$D$24,Simulador!$N$25)*Simulador!$W$12)),0) -> 0 | Y35: 0 | AA35: 1 | AB35: 9 | AC35: 0 | AD35: 0 | AE35: 0 | AF35: 0 | AG35: 0.105 | AJ35: 0 | AL35: 0 | AM35: 0 | AN35: 0 | AO35: 0 | AP35: 0 | AR35: =IFERROR(IF(Simulador!$T$18=2,0,IF($AL35<=0.01,0,$AL35*Simulador!$W$17)),0)+IFERROR(IF(Simulador!$T$13=1,17,IF($AL35<=0.01,0,IF(Simulador!$D$24>0,Simulador!$D$24,Simulador!$N$25)*Simulador!$W$12)),0) -> 17 | AT35: 17 | AW35: 0 | AX35: 21
A36: 22 | B36: 0 | D36: 0 | F36: 0 | H36: 0 | L36: =IF(Simulador!$T$37<3,0,J36*Simulador!$W$35*1.16) -> 0 | N36: =IF(B36-H36=0,0,N34) -> 0 | R36: 0 | T36: =IFERROR(IF(Simulador!$T$18=2,0,IF($B36<=0,0,$B36*Simulador!$W$17)),0) -> 0 | V36: =IFERROR(IF($B36<=0,0,IF(Simulador!$T$13=1,0,IF(Simulador!$D$24>0,Simulador!$D$24,Simulador!$N$25)*Simulador!$W$12)),0) -> 0 | Y36: 0 | AA36: 1 | AB36: 10 | AC36: 0 | AD36: 0 | AE36: 0 | AF36: 0 | AG36: 0.105 | AJ36: 0 | AL36: 0 | AM36: 0 | AN36: 0 | AO36: 0 | AP36: 0 | AR36: =IFERROR(IF(Simulador!$T$18=2,0,IF($AL36<=0.01,0,$AL36*Simulador!$W$17)),0)+IFERROR(IF(Simulador!$T$13=1,17,IF($AL36<=0.01,0,IF(Simulador!$D$24>0,Simulador!$D$24,Simulador!$N$25)*Simulador!$W$12)),0) -> 17 | AT36: 17 | AW36: 0 | AX36: 22
A37: 23 | B37: 0 | D37: 0 | F37: 0 | H37: 0 | L37: =IF(Simulador!$T$37<3,0,J37*Simulador!$W$35*1.16) -> 0 | R37: 0 | T37: =IFERROR(IF(Simulador!$T$18=2,0,IF($B37<=0,0,$B37*Simulador!$W$17)),0) -> 0 | V37: =IFERROR(IF($B37<=0,0,IF(Simulador!$T$13=1,0,IF(Simulador!$D$24>0,Simulador!$D$24,Simulador!$N$25)*Simulador!$W$12)),0) -> 0 | Y37: 0 | AA37: 1 | AB37: 11 | AC37: 0 | AD37: 0 | AE37: 0 | AF37: 0 | AG37: 0.105 | AJ37: 0 | AL37: 0 | AM37: 0 | AN37: 0 | AO37: 0 | AP37: 0 | AR37: =IFERROR(IF(Simulador!$T$18=2,0,IF($AL37<=0.01,0,$AL37*Simulador!$W$17)),0)+IFERROR(IF(Simulador!$T$13=1,17,IF($AL37<=0.01,0,IF(Simulador!$D$24>0,Simulador!$D$24,Simulador!$N$25)*Simulador!$W$12)),0) -> 17 | AT37: 17 | AW37: 0 | AX37: 23
A38: 24 | B38: 0 | D38: 0 | F38: 0 | H38: 0 | L38: =IF(Simulador!$T$37<3,0,J38*Simulador!$W$35*1.16) -> 0 | N38: =IF(B38-H38=0,0,N36) -> 0 | R38: 0 | T38: =IFERROR(IF(Simulador!$T$18=2,0,IF($B38<=0,0,$B38*Simulador!$W$17)),0) -> 0 | V38: =IFERROR(IF($B38<=0,0,IF(Simulador!$T$13=1,0,IF(Simulador!$D$24>0,Simulador!$D$24,Simulador!$N$25)*Simulador!$W$12)),0) -> 0 | Y38: 0 | AA38: 2 | AB38: 0 | AC38: 0 | AD38: 0 | AE38: 0 | AF38: 0 | AG38: 0.105 | AJ38: 0 | AL38: 0 | AM38: 0 | AN38: 0 | AO38: 0 | AP38: 0 | AR38: =IFERROR(IF(Simulador!$T$18=2,0,IF($AL38<=0.01,0,$AL38*Simulador!$W$17)),0)+IFERROR(IF(Simulador!$T$13=1,17,IF($AL38<=0.01,0,IF(Simulador!$D$24>0,Simulador!$D$24,Simulador!$N$25)*Simulador!$W$12)),0) -> 17 | AT38: 17 | AW38: 0 | AX38: 24
A39: 25 | B39: 0 | D39: 0 | F39: 0 | H39: 0 | L39: =IF(Simulador!$T$37<3,0,J39*Simulador!$W$35*1.16) -> 0 | R39: 0 | T39: =IFERROR(IF(Simulador!$T$18=2,0,IF($B39<=0,0,$B39*Simulador!$W$17)),0) -> 0 | V39: =IFERROR(IF($B39<=0,0,IF(Simulador!$T$13=1,0,IF(Simulador!$D$24>0,Simulador!$D$24,Simulador!$N$25)*Simulador!$W$12)),0) -> 0 | Y39: 0 | AA39: 2 | AB39: 1 | AC39: 0 | AD39: 0 | AE39: 0 | AF39: 0 | AG39: 0.105 | AJ39: 0 | AL39: 0 | AM39: 0 | AN39: 0 | AO39: 0 | AP39: 0 | AR39: =IFERROR(IF(Simulador!$T$18=2,0,IF($AL39<=0.01,0,$AL39*Simulador!$W$17)),0)+IFERROR(IF(Simulador!$T$13=1,17,IF($AL39<=0.01,0,IF(Simulador!$D$24>0,Simulador!$D$24,Simulador!$N$25)*Simulador!$W$12)),0) -> 17 | AS39: =IF(AL39<=0,0,$AS$27) -> 0 | AT39: 17 | AW39: 0 | AX39: 25
A40: 26 | B40: 0 | D40: 0 | F40: 0 | H40: 0 | L40: =IF(Simulador!$T$37<3,0,J40*Simulador!$W$35*1.16) -> 0 | N40: =IF(B40-H40=0,0,N38*(1+(Simulador!$U$52))) -> 0 | R40: 0 | T40: =IFERROR(IF(Simulador!$T$18=2,0,IF($B40<=0,0,$B40*Simulador!$W$17)),0) -> 0 | V40: =IFERROR(IF($B40<=0,0,IF(Simulador!$T$13=1,0,IF(Simulador!$D$24>0,Simulador!$D$24,Simulador!$N$25)*Simulador!$W$12)),0) -> 0 | Y40: 0 | AA40: 2 | AB40: 2 | AC40: 0 | AD40: 0 | AE40: 0 | AF40: 0 | AG40: 0.105 | AJ40: 0 | AL40: 0 | AM40: 0 | AN40: 0 | AO40: 0 | AP40: 0 | AR40: =IFERROR(IF(Simulador!$T$18=2,0,IF($AL40<=0.01,0,$AL40*Simulador!$W$17)),0)+IFERROR(IF(Simulador!$T$13=1,17,IF($AL40<=0.01,0,IF(Simulador!$D$24>0,Simulador!$D$24,Simulador!$N$25)*Simulador!$W$12)),0) -> 17 | AT40: 17 | AW40: 0 | AX40: 26
A41: 27 | B41: 0 | D41: 0 | F41: 0 | H41: 0 | L41: =IF(Simulador!$T$37<3,0,J41*Simulador!$W$35*1.16) -> 0 | R41: 0 | T41: =IFERROR(IF(Simulador!$T$18=2,0,IF($B41<=0,0,$B41*Simulador!$W$17)),0) -> 0 | V41: =IFERROR(IF($B41<=0,0,IF(Simulador!$T$13=1,0,IF(Simulador!$D$24>0,Simulador!$D$24,Simulador!$N$25)*Simulador!$W$12)),0) -> 0 | Y41: 0 | AA41: 2 | AB41: 3 | AC41: 0 | AD41: 0 | AE41: 0 | AF41: 0 | AG41: 0.105 | AJ41: 0 | AL41: 0 | AM41: 0 | AN41: 0 | AO41: 0 | AP41: 0 | AR41: =IFERROR(IF(Simulador!$T$18=2,0,IF($AL41<=0.01,0,$AL41*Simulador!$W$17)),0)+IFERROR(IF(Simulador!$T$13=1,17,IF($AL41<=0.01,0,IF(Simulador!$D$24>0,Simulador!$D$24,Simulador!$N$25)*Simulador!$W$12)),0) -> 17 | AT41: 17 | AW41: 0 | AX41: 27
A42: 28 | B42: 0 | D42: 0 | F42: 0 | H42: 0 | L42: =IF(Simulador!$T$37<3,0,J42*Simulador!$W$35*1.16) -> 0 | N42: =IF(B42-H42=0,0,N40) -> 0 | R42: 0 | T42: =IFERROR(IF(Simulador!$T$18=2,0,IF($B42<=0,0,$B42*Simulador!$W$17)),0) -> 0 | V42: =IFERROR(IF($B42<=0,0,IF(Simulador!$T$13=1,0,IF(Simulador!$D$24>0,Simulador!$D$24,Simulador!$N$25)*Simulador!$W$12)),0) -> 0 | Y42: 0 | AA42: 2 | AB42: 4 | AC42: 0 | AD42: 0 | AE42: 0 | AF42: 0 | AG42: 0.105 | AJ42: 0 | AL42: 0 | AM42: 0 | AN42: 0 | AO42: 0 | AP42: 0 | AR42: =IFERROR(IF(Simulador!$T$18=2,0,IF($AL42<=0.01,0,$AL42*Simulador!$W$17)),0)+IFERROR(IF(Simulador!$T$13=1,17,IF($AL42<=0.01,0,IF(Simulador!$D$24>0,Simulador!$D$24,Simulador!$N$25)*Simulador!$W$12)),0) -> 17 | AT42: 17 | AW42: 0 | AX42: 28
A43: 29 | B43: 0 | D43: 0 | F43: 0 | H43: 0 | L43: =IF(Simulador!$T$37<3,0,J43*Simulador!$W$35*1.16) -> 0 | R43: 0 | T43: =IFERROR(IF(Simulador!$T$18=2,0,IF($B43<=0,0,$B43*Simulador!$W$17)),0) -> 0 | V43: =IFERROR(IF($B43<=0,0,IF(Simulador!$T$13=1,0,IF(Simulador!$D$24>0,Simulador!$D$24,Simulador!$N$25)*Simulador!$W$12)),0) -> 0 | Y43: 0 | AA43: 2 | AB43: 5 | AC43: 0 | AD43: 0 | AE43: 0 | AF43: 0 | AG43: 0.105 | AJ43: 0 | AL43: 0 | AM43: 0 | AN43: 0 | AO43: 0 | AP43: 0 | AR43: =IFERROR(IF(Simulador!$T$18=2,0,IF($AL43<=0.01,0,$AL43*Simulador!$W$17)),0)+IFERROR(IF(Simulador!$T$13=1,17,IF($AL43<=0.01,0,IF(Simulador!$D$24>0,Simulador!$D$24,Simulador!$N$25)*Simulador!$W$12)),0) -> 17 | AT43: 17 | AW43: 0 | AX43: 29
A44: 30 | B44: 0 | D44: 0 | F44: 0 | H44: 0 | L44: =IF(Simulador!$T$37<3,0,J44*Simulador!$W$35*1.16) -> 0 | N44: =IF(B44-H44=0,0,N42) -> 0 | R44: 0 | T44: =IFERROR(IF(Simulador!$T$18=2,0,IF($B44<=0,0,$B44*Simulador!$W$17)),0) -> 0 | V44: =IFERROR(IF($B44<=0,0,IF(Simulador!$T$13=1,0,IF(Simulador!$D$24>0,Simulador!$D$24,Simulador!$N$25)*Simulador!$W$12)),0) -> 0 | Y44: 0 | AA44: 2 | AB44: 6 | AC44: 0 | AD44: 0 | AE44: 0 | AF44: 0 | AG44: 0.105 | AJ44: 0 | AL44: 0 | AM44: 0 | AN44: 0 | AO44: 0 | AP44: 0 | AR44: =IFERROR(IF(Simulador!$T$18=2,0,IF($AL44<=0.01,0,$AL44*Simulador!$W$17)),0)+IFERROR(IF(Simulador!$T$13=1,17,IF($AL44<=0.01,0,IF(Simulador!$D$24>0,Simulador!$D$24,Simulador!$N$25)*Simulador!$W$12)),0) -> 17 | AT44: 17 | AW44: 0 | AX44: 30
A45: 31 | B45: 0 | D45: 0 | F45: 0 | H45: 0 | L45: =IF(Simulador!$T$37<3,0,J45*Simulador!$W$35*1.16) -> 0 | R45: 0 | T45: =IFERROR(IF(Simulador!$T$18=2,0,IF($B45<=0,0,$B45*Simulador!$W$17)),0) -> 0 | V45: =IFERROR(IF($B45<=0,0,IF(Simulador!$T$13=1,0,IF(Simulador!$D$24>0,Simulador!$D$24,Simulador!$N$25)*Simulador!$W$12)),0) -> 0 | Y45: 0 | AA45: 2 | AB45: 7 | AC45: 0 | AD45: 0 | AE45: 0 | AF45: 0 | AG45: 0.105 | AJ45: 0 | AL45: 0 | AM45: 0 | AN45: 0 | AO45: 0 | AP45: 0 | AR45: =IFERROR(IF(Simulador!$T$18=2,0,IF($AL45<=0.01,0,$AL45*Simulador!$W$17)),0)+IFERROR(IF(Simulador!$T$13=1,17,IF($AL45<=0.01,0,IF(Simulador!$D$24>0,Simulador!$D$24,Simulador!$N$25)*Simulador!$W$12)),0) -> 17 | AT45: 17 | AW45: 0 | AX45: 31
A46: 32 | B46: 0 | D46: 0 | F46: 0 | H46: 0 | L46: =IF(Simulador!$T$37<3,0,J46*Simulador!$W$35*1.16) -> 0 | N46: =IF(B46-H46=0,0,N44) -> 0 | R46: 0 | T46: =IFERROR(IF(Simulador!$T$18=2,0,IF($B46<=0,0,$B46*Simulador!$W$17)),0) -> 0 | V46: =IFERROR(IF($B46<=0,0,IF(Simulador!$T$13=1,0,IF(Simulador!$D$24>0,Simulador!$D$24,Simulador!$N$25)*Simulador!$W$12)),0) -> 0 | Y46: 0 | AA46: 2 | AB46: 8 | AC46: 0 | AD46: 0 | AE46: 0 | AF46: 0 | AG46: 0.105 | AJ46: 0 | AL46: 0 | AM46: 0 | AN46: 0 | AO46: 0 | AP46: 0 | AR46: =IFERROR(IF(Simulador!$T$18=2,0,IF($AL46<=0.01,0,$AL46*Simulador!$W$17)),0)+IFERROR(IF(Simulador!$T$13=1,17,IF($AL46<=0.01,0,IF(Simulador!$D$24>0,Simulador!$D$24,Simulador!$N$25)*Simulador!$W$12)),0) -> 17 | AT46: 17 | AW46: 0 | AX46: 32
A47: 33 | B47: 0 | D47: 0 | F47: 0 | H47: 0 | L47: =IF(Simulador!$T$37<3,0,J47*Simulador!$W$35*1.16) -> 0 | R47: 0 | T47: =IFERROR(IF(Simulador!$T$18=2,0,IF($B47<=0,0,$B47*Simulador!$W$17)),0) -> 0 | V47: =IFERROR(IF($B47<=0,0,IF(Simulador!$T$13=1,0,IF(Simulador!$D$24>0,Simulador!$D$24,Simulador!$N$25)*Simulador!$W$12)),0) -> 0 | Y47: 0 | AA47: 2 | AB47: 9 | AC47: 0 | AD47: 0 | AE47: 0 | AF47: 0 | AG47: 0.105 | AJ47: 0 | AL47: 0 | AM47: 0 | AN47: 0 | AO47: 0 | AP47: 0 | AR47: =IFERROR(IF(Simulador!$T$18=2,0,IF($AL47<=0.01,0,$AL47*Simulador!$W$17)),0)+IFERROR(IF(Simulador!$T$13=1,17,IF($AL47<=0.01,0,IF(Simulador!$D$24>0,Simulador!$D$24,Simulador!$N$25)*Simulador!$W$12)),0) -> 17 | AT47: 17 | AW47: 0 | AX47: 33
A48: 34 | B48: 0 | D48: 0 | F48: 0 | H48: 0 | L48: =IF(Simulador!$T$37<3,0,J48*Simulador!$W$35*1.16) -> 0 | N48: =IF(B48-H48=0,0,N46) -> 0 | R48: 0 | T48: =IFERROR(IF(Simulador!$T$18=2,0,IF($B48<=0,0,$B48*Simulador!$W$17)),0) -> 0 | V48: =IFERROR(IF($B48<=0,0,IF(Simulador!$T$13=1,0,IF(Simulador!$D$24>0,Simulador!$D$24,Simulador!$N$25)*Simulador!$W$12)),0) -> 0 | Y48: 0 | AA48: 2 | AB48: 10 | AC48: 0 | AD48: 0 | AE48: 0 | AF48: 0 | AG48: 0.105 | AJ48: 0 | AL48: 0 | AM48: 0 | AN48: 0 | AO48: 0 | AP48: 0 | AR48: =IFERROR(IF(Simulador!$T$18=2,0,IF($AL48<=0.01,0,$AL48*Simulador!$W$17)),0)+IFERROR(IF(Simulador!$T$13=1,17,IF($AL48<=0.01,0,IF(Simulador!$D$24>0,Simulador!$D$24,Simulador!$N$25)*Simulador!$W$12)),0) -> 17 | AT48: 17 | AW48: 0 | AX48: 34
A49: 35 | B49: 0 | D49: 0 | F49: 0 | H49: 0 | L49: =IF(Simulador!$T$37<3,0,J49*Simulador!$W$35*1.16) -> 0 | R49: 0 | T49: =IFERROR(IF(Simulador!$T$18=2,0,IF($B49<=0,0,$B49*Simulador!$W$17)),0) -> 0 | V49: =IFERROR(IF($B49<=0,0,IF(Simulador!$T$13=1,0,IF(Simulador!$D$24>0,Simulador!$D$24,Simulador!$N$25)*Simulador!$W$12)),0) -> 0 | Y49: 0 | AA49: 2 | AB49: 11 | AC49: 0 | AD49: 0 | AE49: 0 | AF49: 0 | AG49: 0.105 | AJ49: 0 | AL49: 0 | AM49: 0 | AN49: 0 | AO49: 0 | AP49: 0 | AR49: =IFERROR(IF(Simulador!$T$18=2,0,IF($AL49<=0.01,0,$AL49*Simulador!$W$17)),0)+IFERROR(IF(Simulador!$T$13=1,17,IF($AL49<=0.01,0,IF(Simulador!$D$24>0,Simulador!$D$24,Simulador!$N$25)*Simulador!$W$12)),0) -> 17 | AT49: 17 | AW49: 0 | AX49: 35
A50: 36 | B50: 0 | D50: 0 | F50: 0 | H50: 0 | L50: =IF(Simulador!$T$37<3,0,J50*Simulador!$W$35*1.16) -> 0 | N50: =IF(B50-H50=0,0,N48) -> 0 | R50: 0 | T50: =IFERROR(IF(Simulador!$T$18=2,0,IF($B50<=0,0,$B50*Simulador!$W$17)),0) -> 0 | V50: =IFERROR(IF($B50<=0,0,IF(Simulador!$T$13=1,0,IF(Simulador!$D$24>0,Simulador!$D$24,Simulador!$N$25)*Simulador!$W$12)),0) -> 0 | Y50: 0 | AA50: 3 | AB50: 0 | AC50: 0 | AD50: 0 | AE50: 0 | AF50: 0 | AG50: 0.105 | AJ50: 0 | AL50: 0 | AM50: 0 | AN50: 0 | AO50: 0 | AP50: 0 | AR50: =IFERROR(IF(Simulador!$T$18=2,0,IF($AL50<=0.01,0,$AL50*Simulador!$W$17)),0)+IFERROR(IF(Simulador!$T$13=1,17,IF($AL50<=0.01,0,IF(Simulador!$D$24>0,Simulador!$D$24,Simulador!$N$25)*Simulador!$W$12)),0) -> 17 | AT50: 17 | AW50: 0 | AX50: 36
A51: 37 | B51: 0 | D51: 0 | F51: 0 | H51: 0 | L51: =IF(Simulador!$T$37<3,0,J51*Simulador!$W$35*1.16) -> 0 | R51: 0 | T51: =IFERROR(IF(Simulador!$T$18=2,0,IF($B51<=0,0,$B51*Simulador!$W$17)),0) -> 0 | V51: =IFERROR(IF($B51<=0,0,IF(Simulador!$T$13=1,0,IF(Simulador!$D$24>0,Simulador!$D$24,Simulador!$N$25)*Simulador!$W$12)),0) -> 0 | Y51: 0 | AA51: 3 | AB51: 1 | AC51: 0 | AD51: 0 | AE51: 0 | AF51: 0 | AG51: 0.105 | AJ51: 0 | AL51: 0 | AM51: 0 | AN51: 0 | AO51: 0 | AP51: 0 | AR51: =IFERROR(IF(Simulador!$T$18=2,0,IF($AL51<=0.01,0,$AL51*Simulador!$W$17)),0)+IFERROR(IF(Simulador!$T$13=1,17,IF($AL51<=0.01,0,IF(Simulador!$D$24>0,Simulador!$D$24,Simulador!$N$25)*Simulador!$W$12)),0) -> 17 | AS51: =IF(AL51<=0,0,$AS$27) -> 0 | AT51: 17 | AW51: 0 | AX51: 37
A52: 38 | B52: 0 | D52: 0 | F52: 0 | H52: 0 | L52: =IF(Simulador!$T$37<3,0,J52*Simulador!$W$35*1.16) -> 0 | N52: =IF(B52-H52=0,0,N50*(1+(Simulador!$U$52))) -> 0 | R52: 0 | T52: =IFERROR(IF(Simulador!$T$18=2,0,IF($B52<=0,0,$B52*Simulador!$W$17)),0) -> 0 | V52: =IFERROR(IF($B52<=0,0,IF(Simulador!$T$13=1,0,IF(Simulador!$D$24>0,Simulador!$D$24,Simulador!$N$25)*Simulador!$W$12)),0) -> 0 | Y52: 0 | AA52: 3 | AB52: 2 | AC52: 0 | AD52: 0 | AE52: 0 | AF52: 0 | AG52: 0.105 | AJ52: 0 | AL52: 0 | AM52: 0 | AN52: 0 | AO52: 0 | AP52: 0 | AR52: =IFERROR(IF(Simulador!$T$18=2,0,IF($AL52<=0.01,0,$AL52*Simulador!$W$17)),0)+IFERROR(IF(Simulador!$T$13=1,17,IF($AL52<=0.01,0,IF(Simulador!$D$24>0,Simulador!$D$24,Simulador!$N$25)*Simulador!$W$12)),0) -> 17 | AT52: 17 | AW52: 0 | AX52: 38
A53: 39 | B53: 0 | D53: 0 | F53: 0 | H53: 0 | L53: =IF(Simulador!$T$37<3,0,J53*Simulador!$W$35*1.16) -> 0 | R53: 0 | T53: =IFERROR(IF(Simulador!$T$18=2,0,IF($B53<=0,0,$B53*Simulador!$W$17)),0) -> 0 | V53: =IFERROR(IF($B53<=0,0,IF(Simulador!$T$13=1,0,IF(Simulador!$D$24>0,Simulador!$D$24,Simulador!$N$25)*Simulador!$W$12)),0) -> 0 | Y53: 0 | AA53: 3 | AB53: 3 | AC53: 0 | AD53: 0 | AE53: 0 | AF53: 0 | AG53: 0.105 | AJ53: 0 | AL53: 0 | AM53: 0 | AN53: 0 | AO53: 0 | AP53: 0 | AR53: =IFERROR(IF(Simulador!$T$18=2,0,IF($AL53<=0.01,0,$AL53*Simulador!$W$17)),0)+IFERROR(IF(Simulador!$T$13=1,17,IF($AL53<=0.01,0,IF(Simulador!$D$24>0,Simulador!$D$24,Simulador!$N$25)*Simulador!$W$12)),0) -> 17 | AT53: 17 | AW53: 0 | AX53: 39
A54: 40 | B54: 0 | D54: 0 | F54: 0 | H54: 0 | L54: =IF(Simulador!$T$37<3,0,J54*Simulador!$W$35*1.16) -> 0 | N54: =IF(B54-H54=0,0,N52) -> 0 | R54: 0 | T54: =IFERROR(IF(Simulador!$T$18=2,0,IF($B54<=0,0,$B54*Simulador!$W$17)),0) -> 0 | V54: =IFERROR(IF($B54<=0,0,IF(Simulador!$T$13=1,0,IF(Simulador!$D$24>0,Simulador!$D$24,Simulador!$N$25)*Simulador!$W$12)),0) -> 0 | Y54: 0 | AA54: 3 | AB54: 4 | AC54: 0 | AD54: 0 | AE54: 0 | AF54: 0 | AG54: 0.105 | AJ54: 0 | AL54: 0 | AM54: 0 | AN54: 0 | AO54: 0 | AP54: 0 | AR54: =IFERROR(IF(Simulador!$T$18=2,0,IF($AL54<=0.01,0,$AL54*Simulador!$W$17)),0)+IFERROR(IF(Simulador!$T$13=1,17,IF($AL54<=0.01,0,IF(Simulador!$D$24>0,Simulador!$D$24,Simulador!$N$25)*Simulador!$W$12)),0) -> 17 | AT54: 17 | AW54: 0 | AX54: 40
A55: 41 | B55: 0 | D55: 0 | F55: 0 | H55: 0 | L55: =IF(Simulador!$T$37<3,0,J55*Simulador!$W$35*1.16) -> 0 | R55: 0 | T55: =IFERROR(IF(Simulador!$T$18=2,0,IF($B55<=0,0,$B55*Simulador!$W$17)),0) -> 0 | V55: =IFERROR(IF($B55<=0,0,IF(Simulador!$T$13=1,0,IF(Simulador!$D$24>0,Simulador!$D$24,Simulador!$N$25)*Simulador!$W$12)),0) -> 0 | Y55: 0 | AA55: 3 | AB55: 5 | AC55: 0 | AD55: 0 | AE55: 0 | AF55: 0 | AG55: 0.105 | AJ55: 0 | AL55: 0 | AM55: 0 | AN55: 0 | AO55: 0 | AP55: 0 | AR55: =IFERROR(IF(Simulador!$T$18=2,0,IF($AL55<=0.01,0,$AL55*Simulador!$W$17)),0)+IFERROR(IF(Simulador!$T$13=1,17,IF($AL55<=0.01,0,IF(Simulador!$D$24>0,Simulador!$D$24,Simulador!$N$25)*Simulador!$W$12)),0) -> 17 | AT55: 17 | AW55: 0 | AX55: 41
A56: 42 | B56: 0 | D56: 0 | F56: 0 | H56: 0 | L56: =IF(Simulador!$T$37<3,0,J56*Simulador!$W$35*1.16) -> 0 | N56: =IF(B56-H56=0,0,N54) -> 0 | R56: 0 | T56: =IFERROR(IF(Simulador!$T$18=2,0,IF($B56<=0,0,$B56*Simulador!$W$17)),0) -> 0 | V56: =IFERROR(IF($B56<=0,0,IF(Simulador!$T$13=1,0,IF(Simulador!$D$24>0,Simulador!$D$24,Simulador!$N$25)*Simulador!$W$12)),0) -> 0 | Y56: 0 | AA56: 3 | AB56: 6 | AC56: 0 | AD56: 0 | AE56: 0 | AF56: 0 | AG56: 0.105 | AJ56: 0 | AL56: 0 | AM56: 0 | AN56: 0 | AO56: 0 | AP56: 0 | AR56: =IFERROR(IF(Simulador!$T$18=2,0,IF($AL56<=0.01,0,$AL56*Simulador!$W$17)),0)+IFERROR(IF(Simulador!$T$13=1,17,IF($AL56<=0.01,0,IF(Simulador!$D$24>0,Simulador!$D$24,Simulador!$N$25)*Simulador!$W$12)),0) -> 17 | AT56: 17 | AW56: 0 | AX56: 42
A57: 43 | B57: 0 | D57: 0 | F57: 0 | H57: 0 | L57: =IF(Simulador!$T$37<3,0,J57*Simulador!$W$35*1.16) -> 0 | R57: 0 | T57: =IFERROR(IF(Simulador!$T$18=2,0,IF($B57<=0,0,$B57*Simulador!$W$17)),0) -> 0 | V57: =IFERROR(IF($B57<=0,0,IF(Simulador!$T$13=1,0,IF(Simulador!$D$24>0,Simulador!$D$24,Simulador!$N$25)*Simulador!$W$12)),0) -> 0 | Y57: 0 | AA57: 3 | AB57: 7 | AC57: 0 | AD57: 0 | AE57: 0 | AF57: 0 | AG57: 0.105 | AJ57: 0 | AL57: 0 | AM57: 0 | AN57: 0 | AO57: 0 | AP57: 0 | AR57: =IFERROR(IF(Simulador!$T$18=2,0,IF($AL57<=0.01,0,$AL57*Simulador!$W$17)),0)+IFERROR(IF(Simulador!$T$13=1,17,IF($AL57<=0.01,0,IF(Simulador!$D$24>0,Simulador!$D$24,Simulador!$N$25)*Simulador!$W$12)),0) -> 17 | AT57: 17 | AW57: 0 | AX57: 43
A58: 44 | B58: 0 | D58: 0 | F58: 0 | H58: 0 | L58: =IF(Simulador!$T$37<3,0,J58*Simulador!$W$35*1.16) -> 0 | N58: =IF(B58-H58=0,0,N56) -> 0 | R58: 0 | T58: =IFERROR(IF(Simulador!$T$18=2,0,IF($B58<=0,0,$B58*Simulador!$W$17)),0) -> 0 | V58: =IFERROR(IF($B58<=0,0,IF(Simulador!$T$13=1,0,IF(Simulador!$D$24>0,Simulador!$D$24,Simulador!$N$25)*Simulador!$W$12)),0) -> 0 | Y58: 0 | AA58: 3 | AB58: 8 | AC58: 0 | AD58: 0 | AE58: 0 | AF58: 0 | AG58: 0.105 | AJ58: 0 | AL58: 0 | AM58: 0 | AN58: 0 | AO58: 0 | AP58: 0 | AR58: =IFERROR(IF(Simulador!$T$18=2,0,IF($AL58<=0.01,0,$AL58*Simulador!$W$17)),0)+IFERROR(IF(Simulador!$T$13=1,17,IF($AL58<=0.01,0,IF(Simulador!$D$24>0,Simulador!$D$24,Simulador!$N$25)*Simulador!$W$12)),0) -> 17 | AT58: 17 | AW58: 0 | AX58: 44
A59: 45 | B59: 0 | D59: 0 | F59: 0 | H59: 0 | L59: =IF(Simulador!$T$37<3,0,J59*Simulador!$W$35*1.16) -> 0 | R59: 0 | T59: =IFERROR(IF(Simulador!$T$18=2,0,IF($B59<=0,0,$B59*Simulador!$W$17)),0) -> 0 | V59: =IFERROR(IF($B59<=0,0,IF(Simulador!$T$13=1,0,IF(Simulador!$D$24>0,Simulador!$D$24,Simulador!$N$25)*Simulador!$W$12)),0) -> 0 | Y59: 0 | AA59: 3 | AB59: 9 | AC59: 0 | AD59: 0 | AE59: 0 | AF59: 0 | AG59: 0.105 | AJ59: 0 | AL59: 0 | AM59: 0 | AN59: 0 | AO59: 0 | AP59: 0 | AR59: =IFERROR(IF(Simulador!$T$18=2,0,IF($AL59<=0.01,0,$AL59*Simulador!$W$17)),0)+IFERROR(IF(Simulador!$T$13=1,17,IF($AL59<=0.01,0,IF(Simulador!$D$24>0,Simulador!$D$24,Simulador!$N$25)*Simulador!$W$12)),0) -> 17 | AT59: 17 | AW59: 0 | AX59: 45
A60: 46 | B60: 0 | D60: 0 | F60: 0 | H60: 0 | L60: =IF(Simulador!$T$37<3,0,J60*Simulador!$W$35*1.16) -> 0 | N60: =IF(B60-H60=0,0,N58) -> 0 | R60: 0 | T60: =IFERROR(IF(Simulador!$T$18=2,0,IF($B60<=0,0,$B60*Simulador!$W$17)),0) -> 0 | V60: =IFERROR(IF($B60<=0,0,IF(Simulador!$T$13=1,0,IF(Simulador!$D$24>0,Simulador!$D$24,Simulador!$N$25)*Simulador!$W$12)),0) -> 0 | Y60: 0 | AA60: 3 | AB60: 10 | AC60: 0 | AD60: 0 | AE60: 0 | AF60: 0 | AG60: 0.105 | AJ60: 0 | AL60: 0 | AM60: 0 | AN60: 0 | AO60: 0 | AP60: 0 | AR60: =IFERROR(IF(Simulador!$T$18=2,0,IF($AL60<=0.01,0,$AL60*Simulador!$W$17)),0)+IFERROR(IF(Simulador!$T$13=1,17,IF($AL60<=0.01,0,IF(Simulador!$D$24>0,Simulador!$D$24,Simulador!$N$25)*Simulador!$W$12)),0) -> 17 | AT60: 17 | AW60: 0 | AX60: 46
A61: 47 | B61: 0 | D61: 0 | F61: 0 | H61: 0 | L61: =IF(Simulador!$T$37<3,0,J61*Simulador!$W$35*1.16) -> 0 | R61: 0 | T61: =IFERROR(IF(Simulador!$T$18=2,0,IF($B61<=0,0,$B61*Simulador!$W$17)),0) -> 0 | V61: =IFERROR(IF($B61<=0,0,IF(Simulador!$T$13=1,0,IF(Simulador!$D$24>0,Simulador!$D$24,Simulador!$N$25)*Simulador!$W$12)),0) -> 0 | Y61: 0 | AA61: 3 | AB61: 11 | AC61: 0 | AD61: 0 | AE61: 0 | AF61: 0 | AG61: 0.105 | AJ61: 0 | AL61: 0 | AM61: 0 | AN61: 0 | AO61: 0 | AP61: 0 | AR61: =IFERROR(IF(Simulador!$T$18=2,0,IF($AL61<=0.01,0,$AL61*Simulador!$W$17)),0)+IFERROR(IF(Simulador!$T$13=1,17,IF($AL61<=0.01,0,IF(Simulador!$D$24>0,Simulador!$D$24,Simulador!$N$25)*Simulador!$W$12)),0) -> 17 | AT61: 17 | AW61: 0 | AX61: 47
A62: 48 | B62: 0 | D62: 0 | F62: 0 | H62: 0 | L62: =IF(Simulador!$T$37<3,0,J62*Simulador!$W$35*1.16) -> 0 | N62: =IF(B62-H62=0,0,N60) -> 0 | R62: 0 | T62: =IFERROR(IF(Simulador!$T$18=2,0,IF($B62<=0,0,$B62*Simulador!$W$17)),0) -> 0 | V62: =IFERROR(IF($B62<=0,0,IF(Simulador!$T$13=1,0,IF(Simulador!$D$24>0,Simulador!$D$24,Simulador!$N$25)*Simulador!$W$12)),0) -> 0 | Y62: 0 | AA62: 4 | AB62: 0 | AC62: 0 | AD62: 0 | AE62: 0 | AF62: 0 | AG62: 0.105 | AJ62: 0 | AL62: 0 | AM62: 0 | AN62: 0 | AO62: 0 | AP62: 0 | AR62: =IFERROR(IF(Simulador!$T$18=2,0,IF($AL62<=0.01,0,$AL62*Simulador!$W$17)),0)+IFERROR(IF(Simulador!$T$13=1,17,IF($AL62<=0.01,0,IF(Simulador!$D$24>0,Simulador!$D$24,Simulador!$N$25)*Simulador!$W$12)),0) -> 17 | AT62: 17 | AW62: 0 | AX62: 48
A63: 49 | B63: 0 | D63: 0 | F63: 0 | H63: 0 | L63: =IF(Simulador!$T$37<3,0,J63*Simulador!$W$35*1.16) -> 0 | R63: 0 | T63: =IFERROR(IF(Simulador!$T$18=2,0,IF($B63<=0,0,$B63*Simulador!$W$17)),0) -> 0 | V63: =IFERROR(IF($B63<=0,0,IF(Simulador!$T$13=1,0,IF(Simulador!$D$24>0,Simulador!$D$24,Simulador!$N$25)*Simulador!$W$12)),0) -> 0 | Y63: 0 | AA63: 4 | AB63: 1 | AC63: 0 | AD63: 0 | AE63: 0 | AF63: 0 | AG63: 0.105 | AJ63: 0 | AL63: 0 | AM63: 0 | AN63: 0 | AO63: 0 | AP63: 0 | AR63: =IFERROR(IF(Simulador!$T$18=2,0,IF($AL63<=0.01,0,$AL63*Simulador!$W$17)),0)+IFERROR(IF(Simulador!$T$13=1,17,IF($AL63<=0.01,0,IF(Simulador!$D$24>0,Simulador!$D$24,Simulador!$N$25)*Simulador!$W$12)),0) -> 17 | AS63: =IF(AL63<=0,0,$AS$27) -> 0 | AT63: 17 | AW63: 0 | AX63: 49
A64: 50 | B64: 0 | D64: 0 | F64: 0 | H64: 0 | L64: =IF(Simulador!$T$37<3,0,J64*Simulador!$W$35*1.16) -> 0 | N64: =IF(B64-H64=0,0,N62*(1+(Simulador!$U$52))) -> 0 | R64: 0 | T64: =IFERROR(IF(Simulador!$T$18=2,0,IF($B64<=0,0,$B64*Simulador!$W$17)),0) -> 0 | V64: =IFERROR(IF($B64<=0,0,IF(Simulador!$T$13=1,0,IF(Simulador!$D$24>0,Simulador!$D$24,Simulador!$N$25)*Simulador!$W$12)),0) -> 0 | Y64: 0 | AA64: 4 | AB64: 2 | AC64: 0 | AD64: 0 | AE64: 0 | AF64: 0 | AG64: 0.105 | AJ64: 0 | AL64: 0 | AM64: 0 | AN64: 0 | AO64: 0 | AP64: 0 | AR64: =IFERROR(IF(Simulador!$T$18=2,0,IF($AL64<=0.01,0,$AL64*Simulador!$W$17)),0)+IFERROR(IF(Simulador!$T$13=1,17,IF($AL64<=0.01,0,IF(Simulador!$D$24>0,Simulador!$D$24,Simulador!$N$25)*Simulador!$W$12)),0) -> 17 | AT64: 17 | AW64: 0 | AX64: 50
A65: 51 | B65: 0 | D65: 0 | F65: 0 | H65: 0 | L65: =IF(Simulador!$T$37<3,0,J65*Simulador!$W$35*1.16) -> 0 | R65: 0 | T65: =IFERROR(IF(Simulador!$T$18=2,0,IF($B65<=0,0,$B65*Simulador!$W$17)),0) -> 0 | V65: =IFERROR(IF($B65<=0,0,IF(Simulador!$T$13=1,0,IF(Simulador!$D$24>0,Simulador!$D$24,Simulador!$N$25)*Simulador!$W$12)),0) -> 0 | Y65: 0 | AA65: 4 | AB65: 3 | AC65: 0 | AD65: 0 | AE65: 0 | AF65: 0 | AG65: 0.105 | AJ65: 0 | AL65: 0 | AM65: 0 | AN65: 0 | AO65: 0 | AP65: 0 | AR65: =IFERROR(IF(Simulador!$T$18=2,0,IF($AL65<=0.01,0,$AL65*Simulador!$W$17)),0)+IFERROR(IF(Simulador!$T$13=1,17,IF($AL65<=0.01,0,IF(Simulador!$D$24>0,Simulador!$D$24,Simulador!$N$25)*Simulador!$W$12)),0) -> 17 | AT65: 17 | AW65: 0 | AX65: 51
A66: 52 | B66: 0 | D66: 0 | F66: 0 | H66: 0 | L66: =IF(Simulador!$T$37<3,0,J66*Simulador!$W$35*1.16) -> 0 | N66: =IF(B66-H66=0,0,N64) -> 0 | R66: 0 | T66: =IFERROR(IF(Simulador!$T$18=2,0,IF($B66<=0,0,$B66*Simulador!$W$17)),0) -> 0 | V66: =IFERROR(IF($B66<=0,0,IF(Simulador!$T$13=1,0,IF(Simulador!$D$24>0,Simulador!$D$24,Simulador!$N$25)*Simulador!$W$12)),0) -> 0 | Y66: 0 | AA66: 4 | AB66: 4 | AC66: 0 | AD66: 0 | AE66: 0 | AF66: 0 | AG66: 0.105 | AJ66: 0 | AL66: 0 | AM66: 0 | AN66: 0 | AO66: 0 | AP66: 0 | AR66: =IFERROR(IF(Simulador!$T$18=2,0,IF($AL66<=0.01,0,$AL66*Simulador!$W$17)),0)+IFERROR(IF(Simulador!$T$13=1,17,IF($AL66<=0.01,0,IF(Simulador!$D$24>0,Simulador!$D$24,Simulador!$N$25)*Simulador!$W$12)),0) -> 17 | AT66: 17 | AW66: 0 | AX66: 52
A67: 53 | B67: 0 | D67: 0 | F67: 0 | H67: 0 | L67: =IF(Simulador!$T$37<3,0,J67*Simulador!$W$35*1.16) -> 0 | R67: 0 | T67: =IFERROR(IF(Simulador!$T$18=2,0,IF($B67<=0,0,$B67*Simulador!$W$17)),0) -> 0 | V67: =IFERROR(IF($B67<=0,0,IF(Simulador!$T$13=1,0,IF(Simulador!$D$24>0,Simulador!$D$24,Simulador!$N$25)*Simulador!$W$12)),0) -> 0 | Y67: 0 | AA67: 4 | AB67: 5 | AC67: 0 | AD67: 0 | AE67: 0 | AF67: 0 | AG67: 0.105 | AJ67: 0 | AL67: 0 | AM67: 0 | AN67: 0 | AO67: 0 | AP67: 0 | AR67: =IFERROR(IF(Simulador!$T$18=2,0,IF($AL67<=0.01,0,$AL67*Simulador!$W$17)),0)+IFERROR(IF(Simulador!$T$13=1,17,IF($AL67<=0.01,0,IF(Simulador!$D$24>0,Simulador!$D$24,Simulador!$N$25)*Simulador!$W$12)),0) -> 17 | AT67: 17 | AW67: 0 | AX67: 53
A68: 54 | B68: 0 | D68: 0 | F68: 0 | H68: 0 | L68: =IF(Simulador!$T$37<3,0,J68*Simulador!$W$35*1.16) -> 0 | N68: =IF(B68-H68=0,0,N66) -> 0 | R68: 0 | T68: =IFERROR(IF(Simulador!$T$18=2,0,IF($B68<=0,0,$B68*Simulador!$W$17)),0) -> 0 | V68: =IFERROR(IF($B68<=0,0,IF(Simulador!$T$13=1,0,IF(Simulador!$D$24>0,Simulador!$D$24,Simulador!$N$25)*Simulador!$W$12)),0) -> 0 | Y68: 0 | AA68: 4 | AB68: 6 | AC68: 0 | AD68: 0 | AE68: 0 | AF68: 0 | AG68: 0.105 | AJ68: 0 | AL68: 0 | AM68: 0 | AN68: 0 | AO68: 0 | AP68: 0 | AR68: =IFERROR(IF(Simulador!$T$18=2,0,IF($AL68<=0.01,0,$AL68*Simulador!$W$17)),0)+IFERROR(IF(Simulador!$T$13=1,17,IF($AL68<=0.01,0,IF(Simulador!$D$24>0,Simulador!$D$24,Simulador!$N$25)*Simulador!$W$12)),0) -> 17 | AT68: 17 | AW68: 0 | AX68: 54
A69: 55 | B69: 0 | D69: 0 | F69: 0 | H69: 0 | L69: =IF(Simulador!$T$37<3,0,J69*Simulador!$W$35*1.16) -> 0 | R69: 0 | T69: =IFERROR(IF(Simulador!$T$18=2,0,IF($B69<=0,0,$B69*Simulador!$W$17)),0) -> 0 | V69: =IFERROR(IF($B69<=0,0,IF(Simulador!$T$13=1,0,IF(Simulador!$D$24>0,Simulador!$D$24,Simulador!$N$25)*Simulador!$W$12)),0) -> 0 | Y69: 0 | AA69: 4 | AB69: 7 | AC69: 0 | AD69: 0 | AE69: 0 | AF69: 0 | AG69: 0.105 | AJ69: 0 | AL69: 0 | AM69: 0 | AN69: 0 | AO69: 0 | AP69: 0 | AR69: =IFERROR(IF(Simulador!$T$18=2,0,IF($AL69<=0.01,0,$AL69*Simulador!$W$17)),0)+IFERROR(IF(Simulador!$T$13=1,17,IF($AL69<=0.01,0,IF(Simulador!$D$24>0,Simulador!$D$24,Simulador!$N$25)*Simulador!$W$12)),0) -> 17 | AT69: 17 | AW69: 0 | AX69: 55
A70: 56 | B70: 0 | D70: 0 | F70: 0 | H70: 0 | L70: =IF(Simulador!$T$37<3,0,J70*Simulador!$W$35*1.16) -> 0 | N70: =IF(B70-H70=0,0,N68) -> 0 | R70: 0 | T70: =IFERROR(IF(Simulador!$T$18=2,0,IF($B70<=0,0,$B70*Simulador!$W$17)),0) -> 0 | V70: =IFERROR(IF($B70<=0,0,IF(Simulador!$T$13=1,0,IF(Simulador!$D$24>0,Simulador!$D$24,Simulador!$N$25)*Simulador!$W$12)),0) -> 0 | Y70: 0 | AA70: 4 | AB70: 8 | AC70: 0 | AD70: 0 | AE70: 0 | AF70: 0 | AG70: 0.105 | AJ70: 0 | AL70: 0 | AM70: 0 | AN70: 0 | AO70: 0 | AP70: 0 | AR70: =IFERROR(IF(Simulador!$T$18=2,0,IF($AL70<=0.01,0,$AL70*Simulador!$W$17)),0)+IFERROR(IF(Simulador!$T$13=1,17,IF($AL70<=0.01,0,IF(Simulador!$D$24>0,Simulador!$D$24,Simulador!$N$25)*Simulador!$W$12)),0) -> 17 | AT70: 17 | AW70: 0 | AX70: 56
A71: 57 | B71: 0 | D71: 0 | F71: 0 | H71: 0 | L71: =IF(Simulador!$T$37<3,0,J71*Simulador!$W$35*1.16) -> 0 | R71: 0 | T71: =IFERROR(IF(Simulador!$T$18=2,0,IF($B71<=0,0,$B71*Simulador!$W$17)),0) -> 0 | V71: =IFERROR(IF($B71<=0,0,IF(Simulador!$T$13=1,0,IF(Simulador!$D$24>0,Simulador!$D$24,Simulador!$N$25)*Simulador!$W$12)),0) -> 0 | Y71: 0 | AA71: 4 | AB71: 9 | AC71: 0 | AD71: 0 | AE71: 0 | AF71: 0 | AG71: 0.105 | AJ71: 0 | AL71: 0 | AM71: 0 | AN71: 0 | AO71: 0 | AP71: 0 | AR71: =IFERROR(IF(Simulador!$T$18=2,0,IF($AL71<=0.01,0,$AL71*Simulador!$W$17)),0)+IFERROR(IF(Simulador!$T$13=1,17,IF($AL71<=0.01,0,IF(Simulador!$D$24>0,Simulador!$D$24,Simulador!$N$25)*Simulador!$W$12)),0) -> 17 | AT71: 17 | AW71: 0 | AX71: 57
A72: 58 | B72: 0 | D72: 0 | F72: 0 | H72: 0 | L72: =IF(Simulador!$T$37<3,0,J72*Simulador!$W$35*1.16) -> 0 | N72: =IF(B72-H72=0,0,N70) -> 0 | R72: 0 | T72: =IFERROR(IF(Simulador!$T$18=2,0,IF($B72<=0,0,$B72*Simulador!$W$17)),0) -> 0 | V72: =IFERROR(IF($B72<=0,0,IF(Simulador!$T$13=1,0,IF(Simulador!$D$24>0,Simulador!$D$24,Simulador!$N$25)*Simulador!$W$12)),0) -> 0 | Y72: 0 | AA72: 4 | AB72: 10 | AC72: 0 | AD72: 0 | AE72: 0 | AF72: 0 | AG72: 0.105 | AJ72: 0 | AL72: 0 | AM72: 0 | AN72: 0 | AO72: 0 | AP72: 0 | AR72: =IFERROR(IF(Simulador!$T$18=2,0,IF($AL72<=0.01,0,$AL72*Simulador!$W$17)),0)+IFERROR(IF(Simulador!$T$13=1,17,IF($AL72<=0.01,0,IF(Simulador!$D$24>0,Simulador!$D$24,Simulador!$N$25)*Simulador!$W$12)),0) -> 17 | AT72: 17 | AW72: 0 | AX72: 58
A73: 59 | B73: 0 | D73: 0 | F73: 0 | H73: 0 | L73: =IF(Simulador!$T$37<3,0,J73*Simulador!$W$35*1.16) -> 0 | R73: 0 | T73: =IFERROR(IF(Simulador!$T$18=2,0,IF($B73<=0,0,$B73*Simulador!$W$17)),0) -> 0 | V73: =IFERROR(IF($B73<=0,0,IF(Simulador!$T$13=1,0,IF(Simulador!$D$24>0,Simulador!$D$24,Simulador!$N$25)*Simulador!$W$12)),0) -> 0 | Y73: 0 | AA73: 4 | AB73: 11 | AC73: 0 | AD73: 0 | AE73: 0 | AF73: 0 | AG73: 0.105 | AJ73: 0 | AL73: 0 | AM73: 0 | AN73: 0 | AO73: 0 | AP73: 0 | AR73: =IFERROR(IF(Simulador!$T$18=2,0,IF($AL73<=0.01,0,$AL73*Simulador!$W$17)),0)+IFERROR(IF(Simulador!$T$13=1,17,IF($AL73<=0.01,0,IF(Simulador!$D$24>0,Simulador!$D$24,Simulador!$N$25)*Simulador!$W$12)),0) -> 17 | AT73: 17 | AW73: 0 | AX73: 59
A74: 60 | B74: 0 | D74: 0 | F74: 0 | H74: 0 | L74: =IF(Simulador!$T$37<3,0,J74*Simulador!$W$35*1.16) -> 0 | N74: =IF(B74-H74=0,0,N72) -> 0 | R74: 0 | T74: =IFERROR(IF(Simulador!$T$18=2,0,IF($B74<=0,0,$B74*Simulador!$W$17)),0) -> 0 | V74: =IFERROR(IF($B74<=0,0,IF(Simulador!$T$13=1,0,IF(Simulador!$D$24>0,Simulador!$D$24,Simulador!$N$25)*Simulador!$W$12)),0) -> 0 | Y74: 0 | AA74: 5 | AB74: 0 | AC74: 0 | AD74: 0 | AE74: 0 | AF74: 0 | AG74: 0.105 | AJ74: 0 | AL74: 0 | AM74: 0 | AN74: 0 | AO74: 0 | AP74: 0 | AR74: =IFERROR(IF(Simulador!$T$18=2,0,IF($AL74<=0.01,0,$AL74*Simulador!$W$17)),0)+IFERROR(IF(Simulador!$T$13=1,17,IF($AL74<=0.01,0,IF(Simulador!$D$24>0,Simulador!$D$24,Simulador!$N$25)*Simulador!$W$12)),0) -> 17 | AT74: 17 | AW74: 0 | AX74: 60
A75: 61 | B75: 0 | D75: 0 | F75: 0 | H75: 0 | L75: =IF(Simulador!$T$37<3,0,J75*Simulador!$W$35*1.16) -> 0 | R75: 0 | T75: =IFERROR(IF(Simulador!$T$18=2,0,IF($B75<=0,0,$B75*Simulador!$W$17)),0) -> 0 | V75: =IFERROR(IF($B75<=0,0,IF(Simulador!$T$13=1,0,IF(Simulador!$D$24>0,Simulador!$D$24,Simulador!$N$25)*Simulador!$W$12)),0) -> 0 | Y75: 0 | AA75: 5 | AB75: 1 | AC75: 0 | AD75: 0 | AE75: 0 | AF75: 0 | AG75: 0.105 | AJ75: 0 | AL75: 0 | AM75: 0 | AN75: 0 | AO75: 0 | AP75: 0 | AR75: =IFERROR(IF(Simulador!$T$18=2,0,IF($AL75<=0.01,0,$AL75*Simulador!$W$17)),0)+IFERROR(IF(Simulador!$T$13=1,17,IF($AL75<=0.01,0,IF(Simulador!$D$24>0,Simulador!$D$24,Simulador!$N$25)*Simulador!$W$12)),0) -> 17 | AS75: =IF(AL75<=0,0,$AS$27) -> 0 | AT75: 17 | AW75: 0 | AX75: 61
A76: 62 | B76: 0 | D76: 0 | F76: 0 | H76: 0 | L76: =IF(Simulador!$T$37<3,0,J76*Simulador!$W$35*1.16) -> 0 | N76: =IF(B76-H76=0,0,N74*(1+(Simulador!$U$52))) -> 0 | R76: 0 | T76: =IFERROR(IF(Simulador!$T$18=2,0,IF($B76<=0,0,$B76*Simulador!$W$17)),0) -> 0 | V76: =IFERROR(IF($B76<=0,0,IF(Simulador!$T$13=1,0,IF(Simulador!$D$24>0,Simulador!$D$24,Simulador!$N$25)*Simulador!$W$12)),0) -> 0 | Y76: 0 | AA76: 5 | AB76: 2 | AC76: 0 | AD76: 0 | AE76: 0 | AF76: 0 | AG76: 0.105 | AJ76: 0 | AL76: 0 | AM76: 0 | AN76: 0 | AO76: 0 | AP76: 0 | AR76: =IFERROR(IF(Simulador!$T$18=2,0,IF($AL76<=0.01,0,$AL76*Simulador!$W$17)),0)+IFERROR(IF(Simulador!$T$13=1,17,IF($AL76<=0.01,0,IF(Simulador!$D$24>0,Simulador!$D$24,Simulador!$N$25)*Simulador!$W$12)),0) -> 17 | AT76: 17 | AW76: 0 | AX76: 62
A77: 63 | B77: 0 | D77: 0 | F77: 0 | H77: 0 | L77: =IF(Simulador!$T$37<3,0,J77*Simulador!$W$35*1.16) -> 0 | R77: 0 | T77: =IFERROR(IF(Simulador!$T$18=2,0,IF($B77<=0,0,$B77*Simulador!$W$17)),0) -> 0 | V77: =IFERROR(IF($B77<=0,0,IF(Simulador!$T$13=1,0,IF(Simulador!$D$24>0,Simulador!$D$24,Simulador!$N$25)*Simulador!$W$12)),0) -> 0 | Y77: 0 | AA77: 5 | AB77: 3 | AC77: 0 | AD77: 0 | AE77: 0 | AF77: 0 | AG77: 0.105 | AJ77: 0 | AL77: 0 | AM77: 0 | AN77: 0 | AO77: 0 | AP77: 0 | AR77: =IFERROR(IF(Simulador!$T$18=2,0,IF($AL77<=0.01,0,$AL77*Simulador!$W$17)),0)+IFERROR(IF(Simulador!$T$13=1,17,IF($AL77<=0.01,0,IF(Simulador!$D$24>0,Simulador!$D$24,Simulador!$N$25)*Simulador!$W$12)),0) -> 17 | AT77: 17 | AW77: 0 | AX77: 63
A78: 64 | B78: 0 | D78: 0 | F78: 0 | H78: 0 | L78: =IF(Simulador!$T$37<3,0,J78*Simulador!$W$35*1.16) -> 0 | N78: =IF(B78-H78=0,0,N76) -> 0 | R78: 0 | T78: =IFERROR(IF(Simulador!$T$18=2,0,IF($B78<=0,0,$B78*Simulador!$W$17)),0) -> 0 | V78: =IFERROR(IF($B78<=0,0,IF(Simulador!$T$13=1,0,IF(Simulador!$D$24>0,Simulador!$D$24,Simulador!$N$25)*Simulador!$W$12)),0) -> 0 | Y78: 0 | AA78: 5 | AB78: 4 | AC78: 0 | AD78: 0 | AE78: 0 | AF78: 0 | AG78: 0.105 | AJ78: 0 | AL78: 0 | AM78: 0 | AN78: 0 | AO78: 0 | AP78: 0 | AR78: =IFERROR(IF(Simulador!$T$18=2,0,IF($AL78<=0.01,0,$AL78*Simulador!$W$17)),0)+IFERROR(IF(Simulador!$T$13=1,17,IF($AL78<=0.01,0,IF(Simulador!$D$24>0,Simulador!$D$24,Simulador!$N$25)*Simulador!$W$12)),0) -> 17 | AT78: 17 | AW78: 0 | AX78: 64
A79: 65 | B79: 0 | D79: 0 | F79: =IFERROR(IF(B79=0,0,P79/360*AW79*B79),0) -> 0 | H79: 0 | L79: =IF(Simulador!$T$37<3,0,J79*Simulador!$W$35*1.16) -> 0 | P79: =IF(B79=0,"",AG79) ->  | R79: 0 | T79: =IFERROR(IF(Simulador!$T$18=2,0,IF($B79<=0,0,$B79*Simulador!$W$17)),0) -> 0 | V79: =IFERROR(IF($B79<=0,0,IF(Simulador!$T$13=1,0,IF(Simulador!$D$24>0,Simulador!$D$24,Simulador!$N$25)*Simulador!$W$12)),0) -> 0 | Y79: =IF(B79<=0,0,D79+J79+T79+V79) -> 0 | AA79: 5 | AB79: 5 | AC79: 0 | AD79: 0 | AE79: 0 | AF79: =Y79 -> 0 | AG79: 0.105 | AJ79: 0 | AL79: 0 | AM79: 0 | AN79: =IFERROR((AQ79/360*AW79*AL79),0) -> 0 | AO79: =+AM79-AN79 -> 0 | AP79: 0 | AQ79: =IF(AL79=0,"",AG79) ->  | AR79: =IFERROR(IF(Simulador!$T$18=2,0,IF($AL79<=0.01,0,$AL79*Simulador!$W$17)),0)+IFERROR(IF(Simulador!$T$13=1,17,IF($AL79<=0.01,0,IF(Simulador!$D$24>0,Simulador!$D$24,Simulador!$N$25)*Simulador!$W$12)),0) -> 17 | AT79: =AN79+AO79+AR79 -> 17 | AW79: 0 | AX79: 65
A80: 66 | B80: 0 | D80: 0 | F80: 0 | H80: 0 | L80: =IF(Simulador!$T$37<3,0,J80*Simulador!$W$35*1.16) -> 0 | N80: =IF(B80-H80=0,0,N78) -> 0 | R80: =B80-H80-J80+L80-N80 -> 0 | T80: =IFERROR(IF(Simulador!$T$18=2,0,IF($B80<=0,0,$B80*Simulador!$W$17)),0) -> 0 | V80: =IFERROR(IF($B80<=0,0,IF(Simulador!$T$13=1,0,IF(Simulador!$D$24>0,Simulador!$D$24,Simulador!$N$25)*Simulador!$W$12)),0) -> 0 | Y80: 0 | AA80: 5 | AB80: 6 | AC80: =IF(R80<=0,IF(R79>0,A80,0),0) -> 0 | AD80: =IF(AC80>0,AA80,0) -> 0 | AE80: =IF(AC80>0,AB80,0) -> 0 | AF80: 0 | AG80: 0.105 | AJ80: =IFERROR((AM80/AL80),0) -> 0 | AL80: 0 | AM80: =IFERROR((IF(AL80+AN80-AM79<0, AL80+AN80, AM79*(1+AS80))),0) -> 0 | AN80: 0 | AO80: 0 | AP80: =+AL80-AO80 -> 0 | AR80: =IFERROR(IF(Simulador!$T$18=2,0,IF($AL80<=0.01,0,$AL80*Simulador!$W$17)),0)+IFERROR(IF(Simulador!$T$13=1,17,IF($AL80<=0.01,0,IF(Simulador!$D$24>0,Simulador!$D$24,Simulador!$N$25)*Simulador!$W$12)),0) -> 17 | AT80: 17 | AV80: =IF(AL80=0,"",DATE(YEAR(AV79),MONTH(AV79)+1,1)) ->  | AW80: =IFERROR(DAY(DATE(YEAR(AV80),MONTH(AV80),0)),0) -> 0 | AX80: 66
A81: 67 | B81: =IF(R80<=0,0,R80) -> 0 | D81: =IF(B81+F81-D80<=0,B81+F81,IF($AB$4=2,B81*AJ81,D80)) -> 0 | F81: 0 | H81: =D81-F81 -> 0 | L81: =IF(Simulador!$T$37<3,0,J81*Simulador!$W$35*1.16) -> 0 | R81: 0 | T81: =IFERROR(IF(Simulador!$T$18=2,0,IF($B81<=0,0,$B81*Simulador!$W$17)),0) -> 0 | V81: =IFERROR(IF($B81<=0,0,IF(Simulador!$T$13=1,0,IF(Simulador!$D$24>0,Simulador!$D$24,Simulador!$N$25)*Simulador!$W$12)),0) -> 0 | Y81: 0 | AA81: 5 | AB81: 7 | AC81: 0 | AD81: 0 | AE81: 0 | AF81: 0 | AG81: =AG80 -> 0.105 | AJ81: 0 | AL81: 0 | AM81: 0 | AN81: 0 | AO81: 0 | AP81: 0 | AR81: =IFERROR(IF(Simulador!$T$18=2,0,IF($AL81<=0.01,0,$AL81*Simulador!$W$17)),0)+IFERROR(IF(Simulador!$T$13=1,17,IF($AL81<=0.01,0,IF(Simulador!$D$24>0,Simulador!$D$24,Simulador!$N$25)*Simulador!$W$12)),0) -> 17 | AT81: 17 | AW81: 0 | AX81: 67
A82: 68 | B82: 0 | D82: 0 | F82: 0 | H82: 0 | L82: =IF(Simulador!$T$37<3,0,J82*Simulador!$W$35*1.16) -> 0 | N82: =IF(B82-H82=0,0,N80) -> 0 | R82: 0 | T82: =IFERROR(IF(Simulador!$T$18=2,0,IF($B82<=0,0,$B82*Simulador!$W$17)),0) -> 0 | V82: =IFERROR(IF($B82<=0,0,IF(Simulador!$T$13=1,0,IF(Simulador!$D$24>0,Simulador!$D$24,Simulador!$N$25)*Simulador!$W$12)),0) -> 0 | Y82: 0 | AA82: 5 | AB82: 8 | AC82: 0 | AD82: 0 | AE82: 0 | AF82: 0 | AG82: 0.105 | AJ82: 0 | AL82: 0 | AM82: 0 | AN82: 0 | AO82: 0 | AP82: 0 | AR82: =IFERROR(IF(Simulador!$T$18=2,0,IF($AL82<=0.01,0,$AL82*Simulador!$W$17)),0)+IFERROR(IF(Simulador!$T$13=1,17,IF($AL82<=0.01,0,IF(Simulador!$D$24>0,Simulador!$D$24,Simulador!$N$25)*Simulador!$W$12)),0) -> 17 | AT82: 17 | AW82: 0 | AX82: 68
A83: 69 | B83: 0 | D83: 0 | F83: 0 | H83: 0 | L83: =IF(Simulador!$T$37<3,0,J83*Simulador!$W$35*1.16) -> 0 | R83: 0 | T83: =IFERROR(IF(Simulador!$T$18=2,0,IF($B83<=0,0,$B83*Simulador!$W$17)),0) -> 0 | V83: =IFERROR(IF($B83<=0,0,IF(Simulador!$T$13=1,0,IF(Simulador!$D$24>0,Simulador!$D$24,Simulador!$N$25)*Simulador!$W$12)),0) -> 0 | Y83: 0 | AA83: 5 | AB83: 9 | AC83: 0 | AD83: 0 | AE83: 0 | AF83: 0 | AG83: 0.105 | AJ83: 0 | AL83: 0 | AM83: 0 | AN83: 0 | AO83: 0 | AP83: 0 | AR83: =IFERROR(IF(Simulador!$T$18=2,0,IF($AL83<=0.01,0,$AL83*Simulador!$W$17)),0)+IFERROR(IF(Simulador!$T$13=1,17,IF($AL83<=0.01,0,IF(Simulador!$D$24>0,Simulador!$D$24,Simulador!$N$25)*Simulador!$W$12)),0) -> 17 | AT83: 17 | AW83: 0 | AX83: 69
A84: 70 | B84: 0 | D84: 0 | F84: 0 | H84: 0 | L84: =IF(Simulador!$T$37<3,0,J84*Simulador!$W$35*1.16) -> 0 | N84: =IF(B84-H84=0,0,N82) -> 0 | R84: 0 | T84: =IFERROR(IF(Simulador!$T$18=2,0,IF($B84<=0,0,$B84*Simulador!$W$17)),0) -> 0 | V84: =IFERROR(IF($B84<=0,0,IF(Simulador!$T$13=1,0,IF(Simulador!$D$24>0,Simulador!$D$24,Simulador!$N$25)*Simulador!$W$12)),0) -> 0 | Y84: 0 | AA84: 5 | AB84: 10 | AC84: 0 | AD84: 0 | AE84: 0 | AF84: 0 | AG84: 0.105 | AJ84: 0 | AL84: 0 | AM84: 0 | AN84: 0 | AO84: 0 | AP84: 0 | AR84: =IFERROR(IF(Simulador!$T$18=2,0,IF($AL84<=0.01,0,$AL84*Simulador!$W$17)),0)+IFERROR(IF(Simulador!$T$13=1,17,IF($AL84<=0.01,0,IF(Simulador!$D$24>0,Simulador!$D$24,Simulador!$N$25)*Simulador!$W$12)),0) -> 17 | AT84: 17 | AW84: 0 | AX84: 70
A85: 71 | B85: 0 | D85: 0 | F85: 0 | H85: 0 | L85: =IF(Simulador!$T$37<3,0,J85*Simulador!$W$35*1.16) -> 0 | R85: 0 | T85: =IFERROR(IF(Simulador!$T$18=2,0,IF($B85<=0,0,$B85*Simulador!$W$17)),0) -> 0 | V85: =IFERROR(IF($B85<=0,0,IF(Simulador!$T$13=1,0,IF(Simulador!$D$24>0,Simulador!$D$24,Simulador!$N$25)*Simulador!$W$12)),0) -> 0 | Y85: 0 | AA85: 5 | AB85: 11 | AC85: 0 | AD85: 0 | AE85: 0 | AF85: 0 | AG85: 0.105 | AJ85: 0 | AL85: 0 | AM85: 0 | AN85: 0 | AO85: 0 | AP85: 0 | AR85: =IFERROR(IF(Simulador!$T$18=2,0,IF($AL85<=0.01,0,$AL85*Simulador!$W$17)),0)+IFERROR(IF(Simulador!$T$13=1,17,IF($AL85<=0.01,0,IF(Simulador!$D$24>0,Simulador!$D$24,Simulador!$N$25)*Simulador!$W$12)),0) -> 17 | AT85: 17 | AW85: 0 | AX85: 71
A86: 72 | B86: 0 | D86: 0 | F86: 0 | H86: 0 | L86: =IF(Simulador!$T$37<3,0,J86*Simulador!$W$35*1.16) -> 0 | N86: =IF(B86-H86=0,0,N84) -> 0 | R86: 0 | T86: =IFERROR(IF(Simulador!$T$18=2,0,IF($B86<=0,0,$B86*Simulador!$W$17)),0) -> 0 | V86: =IFERROR(IF($B86<=0,0,IF(Simulador!$T$13=1,0,IF(Simulador!$D$24>0,Simulador!$D$24,Simulador!$N$25)*Simulador!$W$12)),0) -> 0 | Y86: 0 | AA86: 6 | AB86: 0 | AC86: 0 | AD86: 0 | AE86: 0 | AF86: 0 | AG86: 0.105 | AJ86: 0 | AL86: 0 | AM86: 0 | AN86: 0 | AO86: 0 | AP86: 0 | AR86: =IFERROR(IF(Simulador!$T$18=2,0,IF($AL86<=0.01,0,$AL86*Simulador!$W$17)),0)+IFERROR(IF(Simulador!$T$13=1,17,IF($AL86<=0.01,0,IF(Simulador!$D$24>0,Simulador!$D$24,Simulador!$N$25)*Simulador!$W$12)),0) -> 17 | AT86: 17 | AW86: 0 | AX86: 72
A87: 73 | B87: 0 | D87: 0 | F87: 0 | H87: 0 | L87: =IF(Simulador!$T$37<3,0,J87*Simulador!$W$35*1.16) -> 0 | R87: 0 | T87: =IFERROR(IF(Simulador!$T$18=2,0,IF($B87<=0,0,$B87*Simulador!$W$17)),0) -> 0 | V87: =IFERROR(IF($B87<=0,0,IF(Simulador!$T$13=1,0,IF(Simulador!$D$24>0,Simulador!$D$24,Simulador!$N$25)*Simulador!$W$12)),0) -> 0 | Y87: 0 | AA87: 6 | AB87: 1 | AC87: 0 | AD87: 0 | AE87: 0 | AF87: 0 | AG87: 0.105 | AJ87: 0 | AL87: 0 | AM87: 0 | AN87: 0 | AO87: 0 | AP87: 0 | AR87: =IFERROR(IF(Simulador!$T$18=2,0,IF($AL87<=0.01,0,$AL87*Simulador!$W$17)),0)+IFERROR(IF(Simulador!$T$13=1,17,IF($AL87<=0.01,0,IF(Simulador!$D$24>0,Simulador!$D$24,Simulador!$N$25)*Simulador!$W$12)),0) -> 17 | AS87: =IF(AL87<=0,0,$AS$27) -> 0 | AT87: 17 | AW87: 0 | AX87: 73
A88: 74 | B88: 0 | D88: 0 | F88: 0 | H88: 0 | L88: =IF(Simulador!$T$37<3,0,J88*Simulador!$W$35*1.16) -> 0 | N88: =IF(B88-H88=0,0,N86*(1+(Simulador!$U$52))) -> 0 | R88: 0 | T88: =IFERROR(IF(Simulador!$T$18=2,0,IF($B88<=0,0,$B88*Simulador!$W$17)),0) -> 0 | V88: =IFERROR(IF($B88<=0,0,IF(Simulador!$T$13=1,0,IF(Simulador!$D$24>0,Simulador!$D$24,Simulador!$N$25)*Simulador!$W$12)),0) -> 0 | Y88: 0 | AA88: 6 | AB88: 2 | AC88: 0 | AD88: 0 | AE88: 0 | AF88: 0 | AG88: 0.105 | AJ88: 0 | AL88: 0 | AM88: 0 | AN88: 0 | AO88: 0 | AP88: 0 | AR88: =IFERROR(IF(Simulador!$T$18=2,0,IF($AL88<=0.01,0,$AL88*Simulador!$W$17)),0)+IFERROR(IF(Simulador!$T$13=1,17,IF($AL88<=0.01,0,IF(Simulador!$D$24>0,Simulador!$D$24,Simulador!$N$25)*Simulador!$W$12)),0) -> 17 | AT88: 17 | AW88: 0 | AX88: 74
A89: 75 | B89: 0 | D89: 0 | F89: 0 | H89: 0 | L89: =IF(Simulador!$T$37<3,0,J89*Simulador!$W$35*1.16) -> 0 | R89: 0 | T89: =IFERROR(IF(Simulador!$T$18=2,0,IF($B89<=0,0,$B89*Simulador!$W$17)),0) -> 0 | V89: =IFERROR(IF($B89<=0,0,IF(Simulador!$T$13=1,0,IF(Simulador!$D$24>0,Simulador!$D$24,Simulador!$N$25)*Simulador!$W$12)),0) -> 0 | Y89: 0 | AA89: 6 | AB89: 3 | AC89: 0 | AD89: 0 | AE89: 0 | AF89: 0 | AG89: 0.105 | AJ89: 0 | AL89: 0 | AM89: 0 | AN89: 0 | AO89: 0 | AP89: 0 | AR89: =IFERROR(IF(Simulador!$T$18=2,0,IF($AL89<=0.01,0,$AL89*Simulador!$W$17)),0)+IFERROR(IF(Simulador!$T$13=1,17,IF($AL89<=0.01,0,IF(Simulador!$D$24>0,Simulador!$D$24,Simulador!$N$25)*Simulador!$W$12)),0) -> 17 | AT89: 17 | AW89: 0 | AX89: 75
A90: 76 | B90: 0 | D90: 0 | F90: 0 | H90: 0 | L90: =IF(Simulador!$T$37<3,0,J90*Simulador!$W$35*1.16) -> 0 | N90: =IF(B90-H90=0,0,N88) -> 0 | R90: 0 | T90: =IFERROR(IF(Simulador!$T$18=2,0,IF($B90<=0,0,$B90*Simulador!$W$17)),0) -> 0 | V90: =IFERROR(IF($B90<=0,0,IF(Simulador!$T$13=1,0,IF(Simulador!$D$24>0,Simulador!$D$24,Simulador!$N$25)*Simulador!$W$12)),0) -> 0 | Y90: 0 | AA90: 6 | AB90: 4 | AC90: 0 | AD90: 0 | AE90: 0 | AF90: 0 | AG90: 0.105 | AJ90: 0 | AL90: 0 | AM90: 0 | AN90: 0 | AO90: 0 | AP90: 0 | AR90: =IFERROR(IF(Simulador!$T$18=2,0,IF($AL90<=0.01,0,$AL90*Simulador!$W$17)),0)+IFERROR(IF(Simulador!$T$13=1,17,IF($AL90<=0.01,0,IF(Simulador!$D$24>0,Simulador!$D$24,Simulador!$N$25)*Simulador!$W$12)),0) -> 17 | AT90: 17 | AW90: 0 | AX90: 76
A91: 77 | B91: 0 | D91: 0 | F91: 0 | H91: 0 | L91: =IF(Simulador!$T$37<3,0,J91*Simulador!$W$35*1.16) -> 0 | R91: 0 | T91: =IFERROR(IF(Simulador!$T$18=2,0,IF($B91<=0,0,$B91*Simulador!$W$17)),0) -> 0 | V91: =IFERROR(IF($B91<=0,0,IF(Simulador!$T$13=1,0,IF(Simulador!$D$24>0,Simulador!$D$24,Simulador!$N$25)*Simulador!$W$12)),0) -> 0 | Y91: 0 | AA91: 6 | AB91: 5 | AC91: 0 | AD91: 0 | AE91: 0 | AF91: 0 | AG91: 0.105 | AJ91: 0 | AL91: 0 | AM91: 0 | AN91: 0 | AO91: 0 | AP91: 0 | AR91: =IFERROR(IF(Simulador!$T$18=2,0,IF($AL91<=0.01,0,$AL91*Simulador!$W$17)),0)+IFERROR(IF(Simulador!$T$13=1,17,IF($AL91<=0.01,0,IF(Simulador!$D$24>0,Simulador!$D$24,Simulador!$N$25)*Simulador!$W$12)),0) -> 17 | AT91: 17 | AW91: 0 | AX91: 77
A92: 78 | B92: 0 | D92: 0 | F92: 0 | H92: 0 | L92: =IF(Simulador!$T$37<3,0,J92*Simulador!$W$35*1.16) -> 0 | N92: =IF(B92-H92=0,0,N90) -> 0 | R92: 0 | T92: =IFERROR(IF(Simulador!$T$18=2,0,IF($B92<=0,0,$B92*Simulador!$W$17)),0) -> 0 | V92: =IFERROR(IF($B92<=0,0,IF(Simulador!$T$13=1,0,IF(Simulador!$D$24>0,Simulador!$D$24,Simulador!$N$25)*Simulador!$W$12)),0) -> 0 | Y92: 0 | AA92: 6 | AB92: 6 | AC92: 0 | AD92: 0 | AE92: 0 | AF92: 0 | AG92: 0.105 | AJ92: 0 | AL92: 0 | AM92: 0 | AN92: 0 | AO92: 0 | AP92: 0 | AR92: =IFERROR(IF(Simulador!$T$18=2,0,IF($AL92<=0.01,0,$AL92*Simulador!$W$17)),0)+IFERROR(IF(Simulador!$T$13=1,17,IF($AL92<=0.01,0,IF(Simulador!$D$24>0,Simulador!$D$24,Simulador!$N$25)*Simulador!$W$12)),0) -> 17 | AT92: 17 | AW92: 0 | AX92: 78
A93: 79 | B93: 0 | D93: 0 | F93: 0 | H93: 0 | L93: =IF(Simulador!$T$37<3,0,J93*Simulador!$W$35*1.16) -> 0 | R93: 0 | T93: =IFERROR(IF(Simulador!$T$18=2,0,IF($B93<=0,0,$B93*Simulador!$W$17)),0) -> 0 | V93: =IFERROR(IF($B93<=0,0,IF(Simulador!$T$13=1,0,IF(Simulador!$D$24>0,Simulador!$D$24,Simulador!$N$25)*Simulador!$W$12)),0) -> 0 | Y93: 0 | AA93: 6 | AB93: 7 | AC93: 0 | AD93: 0 | AE93: 0 | AF93: 0 | AG93: 0.105 | AJ93: 0 | AL93: =IF(AP92<=0,0,AP92) -> 0 | AM93: 0 | AN93: 0 | AO93: 0 | AP93: 0 | AR93: =IFERROR(IF(Simulador!$T$18=2,0,IF($AL93<=0.01,0,$AL93*Simulador!$W$17)),0)+IFERROR(IF(Simulador!$T$13=1,17,IF($AL93<=0.01,0,IF(Simulador!$D$24>0,Simulador!$D$24,Simulador!$N$25)*Simulador!$W$12)),0) -> 17 | AT93: 17 | AW93: 0 | AX93: 79
A94: 80 | B94: 0 | D94: 0 | F94: 0 | H94: 0 | L94: =IF(Simulador!$T$37<3,0,J94*Simulador!$W$35*1.16) -> 0 | N94: =IF(B94-H94=0,0,N92) -> 0 | R94: 0 | T94: =IFERROR(IF(Simulador!$T$18=2,0,IF($B94<=0,0,$B94*Simulador!$W$17)),0) -> 0 | V94: =IFERROR(IF($B94<=0,0,IF(Simulador!$T$13=1,0,IF(Simulador!$D$24>0,Simulador!$D$24,Simulador!$N$25)*Simulador!$W$12)),0) -> 0 | Y94: 0 | AA94: 6 | AB94: 8 | AC94: 0 | AD94: 0 | AE94: 0 | AF94: 0 | AG94: 0.105 | AJ94: 0 | AL94: 0 | AM94: 0 | AN94: 0 | AO94: 0 | AP94: 0 | AR94: =IFERROR(IF(Simulador!$T$18=2,0,IF($AL94<=0.01,0,$AL94*Simulador!$W$17)),0)+IFERROR(IF(Simulador!$T$13=1,17,IF($AL94<=0.01,0,IF(Simulador!$D$24>0,Simulador!$D$24,Simulador!$N$25)*Simulador!$W$12)),0) -> 17 | AT94: 17 | AW94: 0 | AX94: 80
A95: 81 | B95: 0 | D95: 0 | F95: 0 | H95: 0 | L95: =IF(Simulador!$T$37<3,0,J95*Simulador!$W$35*1.16) -> 0 | R95: 0 | T95: =IFERROR(IF(Simulador!$T$18=2,0,IF($B95<=0,0,$B95*Simulador!$W$17)),0) -> 0 | V95: =IFERROR(IF($B95<=0,0,IF(Simulador!$T$13=1,0,IF(Simulador!$D$24>0,Simulador!$D$24,Simulador!$N$25)*Simulador!$W$12)),0) -> 0 | Y95: 0 | AA95: 6 | AB95: 9 | AC95: 0 | AD95: 0 | AE95: 0 | AF95: 0 | AG95: 0.105 | AJ95: 0 | AL95: 0 | AM95: 0 | AN95: 0 | AO95: 0 | AP95: 0 | AR95: =IFERROR(IF(Simulador!$T$18=2,0,IF($AL95<=0.01,0,$AL95*Simulador!$W$17)),0)+IFERROR(IF(Simulador!$T$13=1,17,IF($AL95<=0.01,0,IF(Simulador!$D$24>0,Simulador!$D$24,Simulador!$N$25)*Simulador!$W$12)),0) -> 17 | AT95: 17 | AW95: 0 | AX95: 81
A96: 82 | B96: 0 | D96: 0 | F96: 0 | H96: 0 | L96: =IF(Simulador!$T$37<3,0,J96*Simulador!$W$35*1.16) -> 0 | N96: =IF(B96-H96=0,0,N94) -> 0 | R96: 0 | T96: =IFERROR(IF(Simulador!$T$18=2,0,IF($B96<=0,0,$B96*Simulador!$W$17)),0) -> 0 | V96: =IFERROR(IF($B96<=0,0,IF(Simulador!$T$13=1,0,IF(Simulador!$D$24>0,Simulador!$D$24,Simulador!$N$25)*Simulador!$W$12)),0) -> 0 | Y96: 0 | AA96: 6 | AB96: 10 | AC96: 0 | AD96: 0 | AE96: 0 | AF96: 0 | AG96: 0.105 | AJ96: 0 | AL96: 0 | AM96: 0 | AN96: 0 | AO96: 0 | AP96: 0 | AR96: =IFERROR(IF(Simulador!$T$18=2,0,IF($AL96<=0.01,0,$AL96*Simulador!$W$17)),0)+IFERROR(IF(Simulador!$T$13=1,17,IF($AL96<=0.01,0,IF(Simulador!$D$24>0,Simulador!$D$24,Simulador!$N$25)*Simulador!$W$12)),0) -> 17 | AT96: 17 | AW96: 0 | AX96: 82
A97: 83 | B97: 0 | D97: 0 | F97: 0 | H97: 0 | L97: =IF(Simulador!$T$37<3,0,J97*Simulador!$W$35*1.16) -> 0 | R97: 0 | T97: =IFERROR(IF(Simulador!$T$18=2,0,IF($B97<=0,0,$B97*Simulador!$W$17)),0) -> 0 | V97: =IFERROR(IF($B97<=0,0,IF(Simulador!$T$13=1,0,IF(Simulador!$D$24>0,Simulador!$D$24,Simulador!$N$25)*Simulador!$W$12)),0) -> 0 | Y97: 0 | AA97: 6 | AB97: 11 | AC97: 0 | AD97: 0 | AE97: 0 | AF97: 0 | AG97: 0.105 | AJ97: 0 | AL97: 0 | AM97: 0 | AN97: 0 | AO97: 0 | AP97: 0 | AR97: =IFERROR(IF(Simulador!$T$18=2,0,IF($AL97<=0.01,0,$AL97*Simulador!$W$17)),0)+IFERROR(IF(Simulador!$T$13=1,17,IF($AL97<=0.01,0,IF(Simulador!$D$24>0,Simulador!$D$24,Simulador!$N$25)*Simulador!$W$12)),0) -> 17 | AT97: 17 | AW97: 0 | AX97: 83
A98: 84 | B98: 0 | D98: 0 | F98: 0 | H98: 0 | L98: =IF(Simulador!$T$37<3,0,J98*Simulador!$W$35*1.16) -> 0 | N98: =IF(B98-H98=0,0,N96) -> 0 | R98: 0 | T98: =IFERROR(IF(Simulador!$T$18=2,0,IF($B98<=0,0,$B98*Simulador!$W$17)),0) -> 0 | V98: =IFERROR(IF($B98<=0,0,IF(Simulador!$T$13=1,0,IF(Simulador!$D$24>0,Simulador!$D$24,Simulador!$N$25)*Simulador!$W$12)),0) -> 0 | Y98: 0 | AA98: 7 | AB98: 0 | AC98: 0 | AD98: 0 | AE98: 0 | AF98: 0 | AG98: 0.105 | AJ98: 0 | AL98: 0 | AM98: 0 | AN98: 0 | AO98: 0 | AP98: 0 | AR98: =IFERROR(IF(Simulador!$T$18=2,0,IF($AL98<=0.01,0,$AL98*Simulador!$W$17)),0)+IFERROR(IF(Simulador!$T$13=1,17,IF($AL98<=0.01,0,IF(Simulador!$D$24>0,Simulador!$D$24,Simulador!$N$25)*Simulador!$W$12)),0) -> 17 | AT98: 17 | AW98: 0 | AX98: 84
A99: 85 | B99: 0 | D99: 0 | F99: 0 | H99: 0 | L99: =IF(Simulador!$T$37<3,0,J99*Simulador!$W$35*1.16) -> 0 | R99: 0 | T99: =IFERROR(IF(Simulador!$T$18=2,0,IF($B99<=0,0,$B99*Simulador!$W$17)),0) -> 0 | V99: =IFERROR(IF($B99<=0,0,IF(Simulador!$T$13=1,0,IF(Simulador!$D$24>0,Simulador!$D$24,Simulador!$N$25)*Simulador!$W$12)),0) -> 0 | Y99: 0 | AA99: 7 | AB99: 1 | AC99: 0 | AD99: 0 | AE99: 0 | AF99: 0 | AG99: 0.105 | AJ99: 0 | AL99: 0 | AM99: 0 | AN99: 0 | AO99: 0 | AP99: 0 | AR99: =IFERROR(IF(Simulador!$T$18=2,0,IF($AL99<=0.01,0,$AL99*Simulador!$W$17)),0)+IFERROR(IF(Simulador!$T$13=1,17,IF($AL99<=0.01,0,IF(Simulador!$D$24>0,Simulador!$D$24,Simulador!$N$25)*Simulador!$W$12)),0) -> 17 | AS99: =IF(AL99<=0,0,$AS$27) -> 0 | AT99: 17 | AW99: 0 | AX99: 85
A100: 86 | B100: 0 | D100: 0 | F100: 0 | H100: 0 | L100: =IF(Simulador!$T$37<3,0,J100*Simulador!$W$35*1.16) -> 0 | N100: =IF(B100-H100=0,0,N98*(1+(Simulador!$U$52))) -> 0 | R100: 0 | T100: =IFERROR(IF(Simulador!$T$18=2,0,IF($B100<=0,0,$B100*Simulador!$W$17)),0) -> 0 | V100: =IFERROR(IF($B100<=0,0,IF(Simulador!$T$13=1,0,IF(Simulador!$D$24>0,Simulador!$D$24,Simulador!$N$25)*Simulador!$W$12)),0) -> 0 | Y100: 0 | AA100: 7 | AB100: 2 | AC100: 0 | AD100: 0 | AE100: 0 | AF100: 0 | AG100: 0.105 | AJ100: 0 | AL100: 0 | AM100: 0 | AN100: 0 | AO100: 0 | AP100: 0 | AR100: =IFERROR(IF(Simulador!$T$18=2,0,IF($AL100<=0.01,0,$AL100*Simulador!$W$17)),0)+IFERROR(IF(Simulador!$T$13=1,17,IF($AL100<=0.01,0,IF(Simulador!$D$24>0,Simulador!$D$24,Simulador!$N$25)*Simulador!$W$12)),0) -> 17 | AT100: 17 | AW100: 0 | AX100: 86
A101: 87 | B101: 0 | D101: 0 | F101: 0 | H101: 0 | L101: =IF(Simulador!$T$37<3,0,J101*Simulador!$W$35*1.16) -> 0 | R101: 0 | T101: =IFERROR(IF(Simulador!$T$18=2,0,IF($B101<=0,0,$B101*Simulador!$W$17)),0) -> 0 | V101: =IFERROR(IF($B101<=0,0,IF(Simulador!$T$13=1,0,IF(Simulador!$D$24>0,Simulador!$D$24,Simulador!$N$25)*Simulador!$W$12)),0) -> 0 | Y101: 0 | AA101: 7 | AB101: 3 | AC101: 0 | AD101: 0 | AE101: 0 | AF101: 0 | AG101: 0.105 | AJ101: 0 | AL101: 0 | AM101: 0 | AN101: 0 | AO101: 0 | AP101: 0 | AR101: =IFERROR(IF(Simulador!$T$18=2,0,IF($AL101<=0.01,0,$AL101*Simulador!$W$17)),0)+IFERROR(IF(Simulador!$T$13=1,17,IF($AL101<=0.01,0,IF(Simulador!$D$24>0,Simulador!$D$24,Simulador!$N$25)*Simulador!$W$12)),0) -> 17 | AT101: 17 | AW101: 0 | AX101: 87
A102: 88 | B102: 0 | D102: 0 | F102: 0 | H102: 0 | L102: =IF(Simulador!$T$37<3,0,J102*Simulador!$W$35*1.16) -> 0 | N102: =IF(B102-H102=0,0,N100) -> 0 | R102: 0 | T102: =IFERROR(IF(Simulador!$T$18=2,0,IF($B102<=0,0,$B102*Simulador!$W$17)),0) -> 0 | V102: =IFERROR(IF($B102<=0,0,IF(Simulador!$T$13=1,0,IF(Simulador!$D$24>0,Simulador!$D$24,Simulador!$N$25)*Simulador!$W$12)),0) -> 0 | Y102: 0 | AA102: 7 | AB102: 4 | AC102: 0 | AD102: 0 | AE102: 0 | AF102: 0 | AG102: 0.105 | AJ102: 0 | AL102: 0 | AM102: 0 | AN102: 0 | AO102: 0 | AP102: 0 | AR102: =IFERROR(IF(Simulador!$T$18=2,0,IF($AL102<=0.01,0,$AL102*Simulador!$W$17)),0)+IFERROR(IF(Simulador!$T$13=1,17,IF($AL102<=0.01,0,IF(Simulador!$D$24>0,Simulador!$D$24,Simulador!$N$25)*Simulador!$W$12)),0) -> 17 | AT102: 17 | AW102: 0 | AX102: 88
A103: 89 | B103: 0 | D103: 0 | F103: 0 | H103: 0 | L103: =IF(Simulador!$T$37<3,0,J103*Simulador!$W$35*1.16) -> 0 | R103: 0 | T103: =IFERROR(IF(Simulador!$T$18=2,0,IF($B103<=0,0,$B103*Simulador!$W$17)),0) -> 0 | V103: =IFERROR(IF($B103<=0,0,IF(Simulador!$T$13=1,0,IF(Simulador!$D$24>0,Simulador!$D$24,Simulador!$N$25)*Simulador!$W$12)),0) -> 0 | Y103: 0 | AA103: 7 | AB103: 5 | AC103: 0 | AD103: 0 | AE103: 0 | AF103: 0 | AG103: 0.105 | AJ103: 0 | AL103: 0 | AM103: 0 | AN103: 0 | AO103: 0 | AP103: 0 | AR103: =IFERROR(IF(Simulador!$T$18=2,0,IF($AL103<=0.01,0,$AL103*Simulador!$W$17)),0)+IFERROR(IF(Simulador!$T$13=1,17,IF($AL103<=0.01,0,IF(Simulador!$D$24>0,Simulador!$D$24,Simulador!$N$25)*Simulador!$W$12)),0) -> 17 | AT103: 17 | AW103: 0 | AX103: 89
A104: 90 | B104: 0 | D104: 0 | F104: 0 | H104: 0 | L104: =IF(Simulador!$T$37<3,0,J104*Simulador!$W$35*1.16) -> 0 | N104: =IF(B104-H104=0,0,N102) -> 0 | R104: 0 | T104: =IFERROR(IF(Simulador!$T$18=2,0,IF($B104<=0,0,$B104*Simulador!$W$17)),0) -> 0 | V104: =IFERROR(IF($B104<=0,0,IF(Simulador!$T$13=1,0,IF(Simulador!$D$24>0,Simulador!$D$24,Simulador!$N$25)*Simulador!$W$12)),0) -> 0 | Y104: 0 | AA104: 7 | AB104: 6 | AC104: 0 | AD104: 0 | AE104: 0 | AF104: 0 | AG104: 0.105 | AJ104: 0 | AL104: 0 | AM104: 0 | AN104: 0 | AO104: 0 | AP104: 0 | AR104: =IFERROR(IF(Simulador!$T$18=2,0,IF($AL104<=0.01,0,$AL104*Simulador!$W$17)),0)+IFERROR(IF(Simulador!$T$13=1,17,IF($AL104<=0.01,0,IF(Simulador!$D$24>0,Simulador!$D$24,Simulador!$N$25)*Simulador!$W$12)),0) -> 17 | AT104: 17 | AW104: 0 | AX104: 90
A105: 91 | B105: 0 | D105: 0 | F105: 0 | H105: 0 | L105: =IF(Simulador!$T$37<3,0,J105*Simulador!$W$35*1.16) -> 0 | R105: 0 | T105: =IFERROR(IF(Simulador!$T$18=2,0,IF($B105<=0,0,$B105*Simulador!$W$17)),0) -> 0 | V105: =IFERROR(IF($B105<=0,0,IF(Simulador!$T$13=1,0,IF(Simulador!$D$24>0,Simulador!$D$24,Simulador!$N$25)*Simulador!$W$12)),0) -> 0 | Y105: 0 | AA105: 7 | AB105: 7 | AC105: 0 | AD105: 0 | AE105: 0 | AF105: 0 | AG105: 0.105 | AJ105: 0 | AL105: 0 | AM105: 0 | AN105: 0 | AO105: 0 | AP105: 0 | AR105: =IFERROR(IF(Simulador!$T$18=2,0,IF($AL105<=0.01,0,$AL105*Simulador!$W$17)),0)+IFERROR(IF(Simulador!$T$13=1,17,IF($AL105<=0.01,0,IF(Simulador!$D$24>0,Simulador!$D$24,Simulador!$N$25)*Simulador!$W$12)),0) -> 17 | AT105: 17 | AW105: 0 | AX105: 91
A106: 92 | B106: 0 | D106: 0 | F106: 0 | H106: 0 | L106: =IF(Simulador!$T$37<3,0,J106*Simulador!$W$35*1.16) -> 0 | N106: =IF(B106-H106=0,0,N104) -> 0 | R106: 0 | T106: =IFERROR(IF(Simulador!$T$18=2,0,IF($B106<=0,0,$B106*Simulador!$W$17)),0) -> 0 | V106: =IFERROR(IF($B106<=0,0,IF(Simulador!$T$13=1,0,IF(Simulador!$D$24>0,Simulador!$D$24,Simulador!$N$25)*Simulador!$W$12)),0) -> 0 | Y106: 0 | AA106: 7 | AB106: 8 | AC106: 0 | AD106: 0 | AE106: 0 | AF106: 0 | AG106: 0.105 | AJ106: 0 | AL106: 0 | AM106: 0 | AN106: 0 | AO106: 0 | AP106: 0 | AR106: =IFERROR(IF(Simulador!$T$18=2,0,IF($AL106<=0.01,0,$AL106*Simulador!$W$17)),0)+IFERROR(IF(Simulador!$T$13=1,17,IF($AL106<=0.01,0,IF(Simulador!$D$24>0,Simulador!$D$24,Simulador!$N$25)*Simulador!$W$12)),0) -> 17 | AT106: 17 | AW106: 0 | AX106: 92
A107: 93 | B107: 0 | D107: 0 | F107: 0 | H107: 0 | L107: =IF(Simulador!$T$37<3,0,J107*Simulador!$W$35*1.16) -> 0 | R107: 0 | T107: =IFERROR(IF(Simulador!$T$18=2,0,IF($B107<=0,0,$B107*Simulador!$W$17)),0) -> 0 | V107: =IFERROR(IF($B107<=0,0,IF(Simulador!$T$13=1,0,IF(Simulador!$D$24>0,Simulador!$D$24,Simulador!$N$25)*Simulador!$W$12)),0) -> 0 | Y107: 0 | AA107: 7 | AB107: 9 | AC107: 0 | AD107: 0 | AE107: 0 | AF107: 0 | AG107: 0.105 | AJ107: 0 | AL107: 0 | AM107: 0 | AN107: 0 | AO107: 0 | AP107: 0 | AR107: =IFERROR(IF(Simulador!$T$18=2,0,IF($AL107<=0.01,0,$AL107*Simulador!$W$17)),0)+IFERROR(IF(Simulador!$T$13=1,17,IF($AL107<=0.01,0,IF(Simulador!$D$24>0,Simulador!$D$24,Simulador!$N$25)*Simulador!$W$12)),0) -> 17 | AT107: 17 | AW107: 0 | AX107: 93
A108: 94 | B108: 0 | D108: 0 | F108: 0 | H108: 0 | L108: =IF(Simulador!$T$37<3,0,J108*Simulador!$W$35*1.16) -> 0 | N108: =IF(B108-H108=0,0,N106) -> 0 | R108: 0 | T108: =IFERROR(IF(Simulador!$T$18=2,0,IF($B108<=0,0,$B108*Simulador!$W$17)),0) -> 0 | V108: =IFERROR(IF($B108<=0,0,IF(Simulador!$T$13=1,0,IF(Simulador!$D$24>0,Simulador!$D$24,Simulador!$N$25)*Simulador!$W$12)),0) -> 0 | Y108: 0 | AA108: 7 | AB108: 10 | AC108: 0 | AD108: 0 | AE108: 0 | AF108: 0 | AG108: 0.105 | AJ108: 0 | AL108: 0 | AM108: 0 | AN108: 0 | AO108: 0 | AP108: 0 | AR108: =IFERROR(IF(Simulador!$T$18=2,0,IF($AL108<=0.01,0,$AL108*Simulador!$W$17)),0)+IFERROR(IF(Simulador!$T$13=1,17,IF($AL108<=0.01,0,IF(Simulador!$D$24>0,Simulador!$D$24,Simulador!$N$25)*Simulador!$W$12)),0) -> 17 | AT108: 17 | AW108: 0 | AX108: 94
A109: 95 | B109: 0 | D109: 0 | F109: 0 | H109: 0 | L109: =IF(Simulador!$T$37<3,0,J109*Simulador!$W$35*1.16) -> 0 | R109: 0 | T109: =IFERROR(IF(Simulador!$T$18=2,0,IF($B109<=0,0,$B109*Simulador!$W$17)),0) -> 0 | V109: =IFERROR(IF($B109<=0,0,IF(Simulador!$T$13=1,0,IF(Simulador!$D$24>0,Simulador!$D$24,Simulador!$N$25)*Simulador!$W$12)),0) -> 0 | Y109: 0 | AA109: 7 | AB109: 11 | AC109: 0 | AD109: 0 | AE109: 0 | AF109: 0 | AG109: 0.105 | AJ109: 0 | AL109: 0 | AM109: 0 | AN109: 0 | AO109: 0 | AP109: 0 | AR109: =IFERROR(IF(Simulador!$T$18=2,0,IF($AL109<=0.01,0,$AL109*Simulador!$W$17)),0)+IFERROR(IF(Simulador!$T$13=1,17,IF($AL109<=0.01,0,IF(Simulador!$D$24>0,Simulador!$D$24,Simulador!$N$25)*Simulador!$W$12)),0) -> 17 | AT109: 17 | AW109: 0 | AX109: 95
A110: 96 | B110: 0 | D110: 0 | F110: 0 | H110: 0 | L110: =IF(Simulador!$T$37<3,0,J110*Simulador!$W$35*1.16) -> 0 | N110: =IF(B110-H110=0,0,N108) -> 0 | R110: 0 | T110: =IFERROR(IF(Simulador!$T$18=2,0,IF($B110<=0,0,$B110*Simulador!$W$17)),0) -> 0 | V110: =IFERROR(IF($B110<=0,0,IF(Simulador!$T$13=1,0,IF(Simulador!$D$24>0,Simulador!$D$24,Simulador!$N$25)*Simulador!$W$12)),0) -> 0 | Y110: 0 | AA110: 8 | AB110: 0 | AC110: 0 | AD110: 0 | AE110: 0 | AF110: 0 | AG110: 0.105 | AJ110: 0 | AL110: 0 | AM110: 0 | AN110: 0 | AO110: 0 | AP110: 0 | AR110: =IFERROR(IF(Simulador!$T$18=2,0,IF($AL110<=0.01,0,$AL110*Simulador!$W$17)),0)+IFERROR(IF(Simulador!$T$13=1,17,IF($AL110<=0.01,0,IF(Simulador!$D$24>0,Simulador!$D$24,Simulador!$N$25)*Simulador!$W$12)),0) -> 17 | AT110: 17 | AW110: 0 | AX110: 96
A111: 97 | B111: 0 | D111: 0 | F111: 0 | H111: 0 | L111: =IF(Simulador!$T$37<3,0,J111*Simulador!$W$35*1.16) -> 0 | R111: 0 | T111: =IFERROR(IF(Simulador!$T$18=2,0,IF($B111<=0,0,$B111*Simulador!$W$17)),0) -> 0 | V111: =IFERROR(IF($B111<=0,0,IF(Simulador!$T$13=1,0,IF(Simulador!$D$24>0,Simulador!$D$24,Simulador!$N$25)*Simulador!$W$12)),0) -> 0 | Y111: 0 | AA111: 8 | AB111: 1 | AC111: 0 | AD111: 0 | AE111: 0 | AF111: 0 | AG111: 0.105 | AJ111: 0 | AL111: 0 | AM111: 0 | AN111: 0 | AO111: 0 | AP111: 0 | AR111: =IFERROR(IF(Simulador!$T$18=2,0,IF($AL111<=0.01,0,$AL111*Simulador!$W$17)),0)+IFERROR(IF(Simulador!$T$13=1,17,IF($AL111<=0.01,0,IF(Simulador!$D$24>0,Simulador!$D$24,Simulador!$N$25)*Simulador!$W$12)),0) -> 17 | AS111: =IF(AL111<=0,0,$AS$27) -> 0 | AT111: 17 | AW111: 0 | AX111: 97
A112: 98 | B112: 0 | D112: 0 | F112: 0 | H112: 0 | L112: =IF(Simulador!$T$37<3,0,J112*Simulador!$W$35*1.16) -> 0 | N112: =IF(B112-H112=0,0,N110*(1+(Simulador!$U$52))) -> 0 | R112: 0 | T112: =IFERROR(IF(Simulador!$T$18=2,0,IF($B112<=0,0,$B112*Simulador!$W$17)),0) -> 0 | V112: =IFERROR(IF($B112<=0,0,IF(Simulador!$T$13=1,0,IF(Simulador!$D$24>0,Simulador!$D$24,Simulador!$N$25)*Simulador!$W$12)),0) -> 0 | Y112: 0 | AA112: 8 | AB112: 2 | AC112: 0 | AD112: 0 | AE112: 0 | AF112: 0 | AG112: 0.105 | AJ112: 0 | AL112: 0 | AM112: 0 | AN112: 0 | AO112: 0 | AP112: 0 | AR112: =IFERROR(IF(Simulador!$T$18=2,0,IF($AL112<=0.01,0,$AL112*Simulador!$W$17)),0)+IFERROR(IF(Simulador!$T$13=1,17,IF($AL112<=0.01,0,IF(Simulador!$D$24>0,Simulador!$D$24,Simulador!$N$25)*Simulador!$W$12)),0) -> 17 | AT112: 17 | AW112: 0 | AX112: 98
A113: 99 | B113: 0 | D113: 0 | F113: 0 | H113: 0 | L113: =IF(Simulador!$T$37<3,0,J113*Simulador!$W$35*1.16) -> 0 | R113: 0 | T113: =IFERROR(IF(Simulador!$T$18=2,0,IF($B113<=0,0,$B113*Simulador!$W$17)),0) -> 0 | V113: =IFERROR(IF($B113<=0,0,IF(Simulador!$T$13=1,0,IF(Simulador!$D$24>0,Simulador!$D$24,Simulador!$N$25)*Simulador!$W$12)),0) -> 0 | Y113: 0 | AA113: 8 | AB113: 3 | AC113: 0 | AD113: 0 | AE113: 0 | AF113: 0 | AG113: 0.105 | AJ113: 0 | AL113: 0 | AM113: 0 | AN113: 0 | AO113: 0 | AP113: 0 | AR113: =IFERROR(IF(Simulador!$T$18=2,0,IF($AL113<=0.01,0,$AL113*Simulador!$W$17)),0)+IFERROR(IF(Simulador!$T$13=1,17,IF($AL113<=0.01,0,IF(Simulador!$D$24>0,Simulador!$D$24,Simulador!$N$25)*Simulador!$W$12)),0) -> 17 | AT113: 17 | AW113: 0 | AX113: 99
A114: 100 | B114: 0 | D114: 0 | F114: 0 | H114: 0 | L114: =IF(Simulador!$T$37<3,0,J114*Simulador!$W$35*1.16) -> 0 | N114: =IF(B114-H114=0,0,N112) -> 0 | R114: 0 | T114: =IFERROR(IF(Simulador!$T$18=2,0,IF($B114<=0,0,$B114*Simulador!$W$17)),0) -> 0 | V114: =IFERROR(IF($B114<=0,0,IF(Simulador!$T$13=1,0,IF(Simulador!$D$24>0,Simulador!$D$24,Simulador!$N$25)*Simulador!$W$12)),0) -> 0 | Y114: 0 | AA114: 8 | AB114: 4 | AC114: 0 | AD114: 0 | AE114: 0 | AF114: 0 | AG114: 0.105 | AJ114: 0 | AL114: 0 | AM114: 0 | AN114: 0 | AO114: 0 | AP114: 0 | AR114: =IFERROR(IF(Simulador!$T$18=2,0,IF($AL114<=0.01,0,$AL114*Simulador!$W$17)),0)+IFERROR(IF(Simulador!$T$13=1,17,IF($AL114<=0.01,0,IF(Simulador!$D$24>0,Simulador!$D$24,Simulador!$N$25)*Simulador!$W$12)),0) -> 17 | AT114: 17 | AW114: 0 | AX114: 100
A115: 101 | B115: 0 | D115: 0 | F115: 0 | H115: 0 | L115: =IF(Simulador!$T$37<3,0,J115*Simulador!$W$35*1.16) -> 0 | R115: 0 | T115: =IFERROR(IF(Simulador!$T$18=2,0,IF($B115<=0,0,$B115*Simulador!$W$17)),0) -> 0 | V115: =IFERROR(IF($B115<=0,0,IF(Simulador!$T$13=1,0,IF(Simulador!$D$24>0,Simulador!$D$24,Simulador!$N$25)*Simulador!$W$12)),0) -> 0 | Y115: 0 | AA115: 8 | AB115: 5 | AC115: 0 | AD115: 0 | AE115: 0 | AF115: 0 | AG115: 0.105 | AJ115: 0 | AL115: 0 | AM115: 0 | AN115: 0 | AO115: 0 | AP115: 0 | AR115: =IFERROR(IF(Simulador!$T$18=2,0,IF($AL115<=0.01,0,$AL115*Simulador!$W$17)),0)+IFERROR(IF(Simulador!$T$13=1,17,IF($AL115<=0.01,0,IF(Simulador!$D$24>0,Simulador!$D$24,Simulador!$N$25)*Simulador!$W$12)),0) -> 17 | AT115: 17 | AW115: 0 | AX115: 101
A116: 102 | B116: 0 | D116: 0 | F116: 0 | H116: 0 | L116: =IF(Simulador!$T$37<3,0,J116*Simulador!$W$35*1.16) -> 0 | N116: =IF(B116-H116=0,0,N114) -> 0 | R116: 0 | T116: =IFERROR(IF(Simulador!$T$18=2,0,IF($B116<=0,0,$B116*Simulador!$W$17)),0) -> 0 | V116: =IFERROR(IF($B116<=0,0,IF(Simulador!$T$13=1,0,IF(Simulador!$D$24>0,Simulador!$D$24,Simulador!$N$25)*Simulador!$W$12)),0) -> 0 | Y116: 0 | AA116: 8 | AB116: 6 | AC116: 0 | AD116: 0 | AE116: 0 | AF116: 0 | AG116: 0.105 | AJ116: 0 | AL116: 0 | AM116: 0 | AN116: 0 | AO116: 0 | AP116: 0 | AR116: =IFERROR(IF(Simulador!$T$18=2,0,IF($AL116<=0.01,0,$AL116*Simulador!$W$17)),0)+IFERROR(IF(Simulador!$T$13=1,17,IF($AL116<=0.01,0,IF(Simulador!$D$24>0,Simulador!$D$24,Simulador!$N$25)*Simulador!$W$12)),0) -> 17 | AT116: 17 | AW116: 0 | AX116: 102
A117: 103 | B117: 0 | D117: 0 | F117: 0 | H117: 0 | L117: =IF(Simulador!$T$37<3,0,J117*Simulador!$W$35*1.16) -> 0 | R117: 0 | T117: =IFERROR(IF(Simulador!$T$18=2,0,IF($B117<=0,0,$B117*Simulador!$W$17)),0) -> 0 | V117: =IFERROR(IF($B117<=0,0,IF(Simulador!$T$13=1,0,IF(Simulador!$D$24>0,Simulador!$D$24,Simulador!$N$25)*Simulador!$W$12)),0) -> 0 | Y117: 0 | AA117: 8 | AB117: 7 | AC117: 0 | AD117: 0 | AE117: 0 | AF117: 0 | AG117: 0.105 | AJ117: 0 | AL117: 0 | AM117: 0 | AN117: 0 | AO117: 0 | AP117: 0 | AR117: =IFERROR(IF(Simulador!$T$18=2,0,IF($AL117<=0.01,0,$AL117*Simulador!$W$17)),0)+IFERROR(IF(Simulador!$T$13=1,17,IF($AL117<=0.01,0,IF(Simulador!$D$24>0,Simulador!$D$24,Simulador!$N$25)*Simulador!$W$12)),0) -> 17 | AT117: 17 | AW117: 0 | AX117: 103
A118: 104 | B118: 0 | D118: 0 | F118: 0 | H118: 0 | L118: =IF(Simulador!$T$37<3,0,J118*Simulador!$W$35*1.16) -> 0 | N118: =IF(B118-H118=0,0,N116) -> 0 | R118: 0 | T118: =IFERROR(IF(Simulador!$T$18=2,0,IF($B118<=0,0,$B118*Simulador!$W$17)),0) -> 0 | V118: =IFERROR(IF($B118<=0,0,IF(Simulador!$T$13=1,0,IF(Simulador!$D$24>0,Simulador!$D$24,Simulador!$N$25)*Simulador!$W$12)),0) -> 0 | Y118: 0 | AA118: 8 | AB118: 8 | AC118: 0 | AD118: 0 | AE118: 0 | AF118: 0 | AG118: 0.105 | AJ118: 0 | AL118: 0 | AM118: 0 | AN118: 0 | AO118: 0 | AP118: 0 | AR118: =IFERROR(IF(Simulador!$T$18=2,0,IF($AL118<=0.01,0,$AL118*Simulador!$W$17)),0)+IFERROR(IF(Simulador!$T$13=1,17,IF($AL118<=0.01,0,IF(Simulador!$D$24>0,Simulador!$D$24,Simulador!$N$25)*Simulador!$W$12)),0) -> 17 | AT118: 17 | AW118: 0 | AX118: 104
A119: 105 | B119: 0 | D119: 0 | F119: 0 | H119: 0 | L119: =IF(Simulador!$T$37<3,0,J119*Simulador!$W$35*1.16) -> 0 | R119: 0 | T119: =IFERROR(IF(Simulador!$T$18=2,0,IF($B119<=0,0,$B119*Simulador!$W$17)),0) -> 0 | V119: =IFERROR(IF($B119<=0,0,IF(Simulador!$T$13=1,0,IF(Simulador!$D$24>0,Simulador!$D$24,Simulador!$N$25)*Simulador!$W$12)),0) -> 0 | Y119: 0 | AA119: 8 | AB119: 9 | AC119: 0 | AD119: 0 | AE119: 0 | AF119: 0 | AG119: 0.105 | AJ119: 0 | AL119: 0 | AM119: 0 | AN119: 0 | AO119: 0 | AP119: 0 | AR119: =IFERROR(IF(Simulador!$T$18=2,0,IF($AL119<=0.01,0,$AL119*Simulador!$W$17)),0)+IFERROR(IF(Simulador!$T$13=1,17,IF($AL119<=0.01,0,IF(Simulador!$D$24>0,Simulador!$D$24,Simulador!$N$25)*Simulador!$W$12)),0) -> 17 | AT119: 17 | AW119: 0 | AX119: 105
A120: 106 | B120: 0 | D120: 0 | F120: 0 | H120: 0 | L120: =IF(Simulador!$T$37<3,0,J120*Simulador!$W$35*1.16) -> 0 | N120: =IF(B120-H120=0,0,N118) -> 0 | R120: 0 | T120: =IFERROR(IF(Simulador!$T$18=2,0,IF($B120<=0,0,$B120*Simulador!$W$17)),0) -> 0 | V120: =IFERROR(IF($B120<=0,0,IF(Simulador!$T$13=1,0,IF(Simulador!$D$24>0,Simulador!$D$24,Simulador!$N$25)*Simulador!$W$12)),0) -> 0 | Y120: 0 | AA120: 8 | AB120: 10 | AC120: 0 | AD120: 0 | AE120: 0 | AF120: 0 | AG120: 0.105 | AJ120: 0 | AL120: 0 | AM120: 0 | AN120: 0 | AO120: 0 | AP120: 0 | AR120: =IFERROR(IF(Simulador!$T$18=2,0,IF($AL120<=0.01,0,$AL120*Simulador!$W$17)),0)+IFERROR(IF(Simulador!$T$13=1,17,IF($AL120<=0.01,0,IF(Simulador!$D$24>0,Simulador!$D$24,Simulador!$N$25)*Simulador!$W$12)),0) -> 17 | AT120: 17 | AW120: 0 | AX120: 106
A121: 107 | B121: 0 | D121: 0 | F121: 0 | H121: 0 | L121: =IF(Simulador!$T$37<3,0,J121*Simulador!$W$35*1.16) -> 0 | R121: 0 | T121: =IFERROR(IF(Simulador!$T$18=2,0,IF($B121<=0,0,$B121*Simulador!$W$17)),0) -> 0 | V121: =IFERROR(IF($B121<=0,0,IF(Simulador!$T$13=1,0,IF(Simulador!$D$24>0,Simulador!$D$24,Simulador!$N$25)*Simulador!$W$12)),0) -> 0 | Y121: 0 | AA121: 8 | AB121: 11 | AC121: 0 | AD121: 0 | AE121: 0 | AF121: 0 | AG121: 0.105 | AJ121: 0 | AL121: 0 | AM121: 0 | AN121: 0 | AO121: 0 | AP121: 0 | AR121: =IFERROR(IF(Simulador!$T$18=2,0,IF($AL121<=0.01,0,$AL121*Simulador!$W$17)),0)+IFERROR(IF(Simulador!$T$13=1,17,IF($AL121<=0.01,0,IF(Simulador!$D$24>0,Simulador!$D$24,Simulador!$N$25)*Simulador!$W$12)),0) -> 17 | AT121: 17 | AW121: 0 | AX121: 107
A122: 108 | B122: 0 | D122: 0 | F122: 0 | H122: 0 | L122: =IF(Simulador!$T$37<3,0,J122*Simulador!$W$35*1.16) -> 0 | N122: =IF(B122-H122=0,0,N120) -> 0 | R122: 0 | T122: =IFERROR(IF(Simulador!$T$18=2,0,IF($B122<=0,0,$B122*Simulador!$W$17)),0) -> 0 | V122: =IFERROR(IF($B122<=0,0,IF(Simulador!$T$13=1,0,IF(Simulador!$D$24>0,Simulador!$D$24,Simulador!$N$25)*Simulador!$W$12)),0) -> 0 | Y122: 0 | AA122: 9 | AB122: 0 | AC122: 0 | AD122: 0 | AE122: 0 | AF122: 0 | AG122: 0.105 | AJ122: 0 | AL122: 0 | AM122: 0 | AN122: 0 | AO122: 0 | AP122: 0 | AR122: =IFERROR(IF(Simulador!$T$18=2,0,IF($AL122<=0.01,0,$AL122*Simulador!$W$17)),0)+IFERROR(IF(Simulador!$T$13=1,17,IF($AL122<=0.01,0,IF(Simulador!$D$24>0,Simulador!$D$24,Simulador!$N$25)*Simulador!$W$12)),0) -> 17 | AT122: 17 | AW122: 0 | AX122: 108
A123: 109 | B123: 0 | D123: 0 | F123: 0 | H123: 0 | L123: =IF(Simulador!$T$37<3,0,J123*Simulador!$W$35*1.16) -> 0 | R123: 0 | T123: =IFERROR(IF(Simulador!$T$18=2,0,IF($B123<=0,0,$B123*Simulador!$W$17)),0) -> 0 | V123: =IFERROR(IF($B123<=0,0,IF(Simulador!$T$13=1,0,IF(Simulador!$D$24>0,Simulador!$D$24,Simulador!$N$25)*Simulador!$W$12)),0) -> 0 | Y123: 0 | AA123: 9 | AB123: 1 | AC123: 0 | AD123: 0 | AE123: 0 | AF123: 0 | AG123: 0.105 | AJ123: 0 | AL123: 0 | AM123: 0 | AN123: 0 | AO123: 0 | AP123: 0 | AR123: =IFERROR(IF(Simulador!$T$18=2,0,IF($AL123<=0.01,0,$AL123*Simulador!$W$17)),0)+IFERROR(IF(Simulador!$T$13=1,17,IF($AL123<=0.01,0,IF(Simulador!$D$24>0,Simulador!$D$24,Simulador!$N$25)*Simulador!$W$12)),0) -> 17 | AS123: =IF(AL123<=0,0,$AS$27) -> 0 | AT123: 17 | AW123: 0 | AX123: 109
A124: 110 | B124: 0 | D124: 0 | F124: 0 | H124: 0 | L124: =IF(Simulador!$T$37<3,0,J124*Simulador!$W$35*1.16) -> 0 | N124: =IF(B124-H124=0,0,N122*(1+(Simulador!$U$52))) -> 0 | R124: 0 | T124: =IFERROR(IF(Simulador!$T$18=2,0,IF($B124<=0,0,$B124*Simulador!$W$17)),0) -> 0 | V124: =IFERROR(IF($B124<=0,0,IF(Simulador!$T$13=1,0,IF(Simulador!$D$24>0,Simulador!$D$24,Simulador!$N$25)*Simulador!$W$12)),0) -> 0 | Y124: 0 | AA124: 9 | AB124: 2 | AC124: 0 | AD124: 0 | AE124: 0 | AF124: 0 | AG124: 0.105 | AJ124: 0 | AL124: 0 | AM124: 0 | AN124: 0 | AO124: 0 | AP124: 0 | AR124: =IFERROR(IF(Simulador!$T$18=2,0,IF($AL124<=0.01,0,$AL124*Simulador!$W$17)),0)+IFERROR(IF(Simulador!$T$13=1,17,IF($AL124<=0.01,0,IF(Simulador!$D$24>0,Simulador!$D$24,Simulador!$N$25)*Simulador!$W$12)),0) -> 17 | AT124: 17 | AW124: 0 | AX124: 110
A125: 111 | B125: 0 | D125: 0 | F125: 0 | H125: 0 | L125: =IF(Simulador!$T$37<3,0,J125*Simulador!$W$35*1.16) -> 0 | R125: 0 | T125: =IFERROR(IF(Simulador!$T$18=2,0,IF($B125<=0,0,$B125*Simulador!$W$17)),0) -> 0 | V125: =IFERROR(IF($B125<=0,0,IF(Simulador!$T$13=1,0,IF(Simulador!$D$24>0,Simulador!$D$24,Simulador!$N$25)*Simulador!$W$12)),0) -> 0 | Y125: 0 | AA125: 9 | AB125: 3 | AC125: 0 | AD125: 0 | AE125: 0 | AF125: 0 | AG125: 0.105 | AJ125: 0 | AL125: 0 | AM125: 0 | AN125: 0 | AO125: 0 | AP125: 0 | AR125: =IFERROR(IF(Simulador!$T$18=2,0,IF($AL125<=0.01,0,$AL125*Simulador!$W$17)),0)+IFERROR(IF(Simulador!$T$13=1,17,IF($AL125<=0.01,0,IF(Simulador!$D$24>0,Simulador!$D$24,Simulador!$N$25)*Simulador!$W$12)),0) -> 17 | AT125: 17 | AW125: 0 | AX125: 111
A126: 112 | B126: 0 | D126: 0 | F126: 0 | H126: 0 | L126: =IF(Simulador!$T$37<3,0,J126*Simulador!$W$35*1.16) -> 0 | N126: =IF(B126-H126=0,0,N124) -> 0 | R126: 0 | T126: =IFERROR(IF(Simulador!$T$18=2,0,IF($B126<=0,0,$B126*Simulador!$W$17)),0) -> 0 | V126: =IFERROR(IF($B126<=0,0,IF(Simulador!$T$13=1,0,IF(Simulador!$D$24>0,Simulador!$D$24,Simulador!$N$25)*Simulador!$W$12)),0) -> 0 | Y126: 0 | AA126: 9 | AB126: 4 | AC126: 0 | AD126: 0 | AE126: 0 | AF126: 0 | AG126: 0.105 | AJ126: 0 | AL126: 0 | AM126: 0 | AN126: 0 | AO126: 0 | AP126: 0 | AR126: =IFERROR(IF(Simulador!$T$18=2,0,IF($AL126<=0.01,0,$AL126*Simulador!$W$17)),0)+IFERROR(IF(Simulador!$T$13=1,17,IF($AL126<=0.01,0,IF(Simulador!$D$24>0,Simulador!$D$24,Simulador!$N$25)*Simulador!$W$12)),0) -> 17 | AT126: 17 | AW126: 0 | AX126: 112
A127: 113 | B127: 0 | D127: 0 | F127: 0 | H127: 0 | L127: =IF(Simulador!$T$37<3,0,J127*Simulador!$W$35*1.16) -> 0 | R127: 0 | T127: =IFERROR(IF(Simulador!$T$18=2,0,IF($B127<=0,0,$B127*Simulador!$W$17)),0) -> 0 | V127: =IFERROR(IF($B127<=0,0,IF(Simulador!$T$13=1,0,IF(Simulador!$D$24>0,Simulador!$D$24,Simulador!$N$25)*Simulador!$W$12)),0) -> 0 | Y127: 0 | AA127: 9 | AB127: 5 | AC127: 0 | AD127: 0 | AE127: 0 | AF127: 0 | AG127: 0.105 | AJ127: 0 | AL127: 0 | AM127: 0 | AN127: 0 | AO127: 0 | AP127: 0 | AR127: =IFERROR(IF(Simulador!$T$18=2,0,IF($AL127<=0.01,0,$AL127*Simulador!$W$17)),0)+IFERROR(IF(Simulador!$T$13=1,17,IF($AL127<=0.01,0,IF(Simulador!$D$24>0,Simulador!$D$24,Simulador!$N$25)*Simulador!$W$12)),0) -> 17 | AT127: 17 | AW127: 0 | AX127: 113
A128: 114 | B128: 0 | D128: 0 | F128: 0 | H128: 0 | L128: =IF(Simulador!$T$37<3,0,J128*Simulador!$W$35*1.16) -> 0 | N128: =IF(B128-H128=0,0,N126) -> 0 | R128: 0 | T128: =IFERROR(IF(Simulador!$T$18=2,0,IF($B128<=0,0,$B128*Simulador!$W$17)),0) -> 0 | V128: =IFERROR(IF($B128<=0,0,IF(Simulador!$T$13=1,0,IF(Simulador!$D$24>0,Simulador!$D$24,Simulador!$N$25)*Simulador!$W$12)),0) -> 0 | Y128: 0 | AA128: 9 | AB128: 6 | AC128: 0 | AD128: 0 | AE128: 0 | AF128: 0 | AG128: 0.105 | AJ128: 0 | AL128: 0 | AM128: 0 | AN128: 0 | AO128: 0 | AP128: 0 | AR128: =IFERROR(IF(Simulador!$T$18=2,0,IF($AL128<=0.01,0,$AL128*Simulador!$W$17)),0)+IFERROR(IF(Simulador!$T$13=1,17,IF($AL128<=0.01,0,IF(Simulador!$D$24>0,Simulador!$D$24,Simulador!$N$25)*Simulador!$W$12)),0) -> 17 | AT128: 17 | AW128: 0 | AX128: 114
A129: 115 | B129: 0 | D129: 0 | F129: 0 | H129: 0 | L129: =IF(Simulador!$T$37<3,0,J129*Simulador!$W$35*1.16) -> 0 | R129: 0 | T129: =IFERROR(IF(Simulador!$T$18=2,0,IF($B129<=0,0,$B129*Simulador!$W$17)),0) -> 0 | V129: =IFERROR(IF($B129<=0,0,IF(Simulador!$T$13=1,0,IF(Simulador!$D$24>0,Simulador!$D$24,Simulador!$N$25)*Simulador!$W$12)),0) -> 0 | Y129: 0 | AA129: 9 | AB129: 7 | AC129: 0 | AD129: 0 | AE129: 0 | AF129: 0 | AG129: 0.105 | AJ129: 0 | AL129: 0 | AM129: 0 | AN129: 0 | AO129: 0 | AP129: 0 | AR129: =IFERROR(IF(Simulador!$T$18=2,0,IF($AL129<=0.01,0,$AL129*Simulador!$W$17)),0)+IFERROR(IF(Simulador!$T$13=1,17,IF($AL129<=0.01,0,IF(Simulador!$D$24>0,Simulador!$D$24,Simulador!$N$25)*Simulador!$W$12)),0) -> 17 | AT129: 17 | AW129: 0 | AX129: 115
A130: 116 | B130: 0 | D130: 0 | F130: 0 | H130: 0 | L130: =IF(Simulador!$T$37<3,0,J130*Simulador!$W$35*1.16) -> 0 | N130: =IF(B130-H130=0,0,N128) -> 0 | R130: 0 | T130: =IFERROR(IF(Simulador!$T$18=2,0,IF($B130<=0,0,$B130*Simulador!$W$17)),0) -> 0 | V130: =IFERROR(IF($B130<=0,0,IF(Simulador!$T$13=1,0,IF(Simulador!$D$24>0,Simulador!$D$24,Simulador!$N$25)*Simulador!$W$12)),0) -> 0 | Y130: 0 | AA130: 9 | AB130: 8 | AC130: 0 | AD130: 0 | AE130: 0 | AF130: 0 | AG130: 0.105 | AJ130: 0 | AL130: 0 | AM130: 0 | AN130: 0 | AO130: 0 | AP130: 0 | AR130: =IFERROR(IF(Simulador!$T$18=2,0,IF($AL130<=0.01,0,$AL130*Simulador!$W$17)),0)+IFERROR(IF(Simulador!$T$13=1,17,IF($AL130<=0.01,0,IF(Simulador!$D$24>0,Simulador!$D$24,Simulador!$N$25)*Simulador!$W$12)),0) -> 17 | AT130: 17 | AW130: 0 | AX130: 116
A131: 117 | B131: 0 | D131: 0 | F131: 0 | H131: 0 | L131: =IF(Simulador!$T$37<3,0,J131*Simulador!$W$35*1.16) -> 0 | R131: 0 | T131: =IFERROR(IF(Simulador!$T$18=2,0,IF($B131<=0,0,$B131*Simulador!$W$17)),0) -> 0 | V131: =IFERROR(IF($B131<=0,0,IF(Simulador!$T$13=1,0,IF(Simulador!$D$24>0,Simulador!$D$24,Simulador!$N$25)*Simulador!$W$12)),0) -> 0 | Y131: 0 | AA131: 9 | AB131: 9 | AC131: 0 | AD131: 0 | AE131: 0 | AF131: 0 | AG131: 0.105 | AJ131: 0 | AL131: 0 | AM131: 0 | AN131: 0 | AO131: 0 | AP131: 0 | AR131: =IFERROR(IF(Simulador!$T$18=2,0,IF($AL131<=0.01,0,$AL131*Simulador!$W$17)),0)+IFERROR(IF(Simulador!$T$13=1,17,IF($AL131<=0.01,0,IF(Simulador!$D$24>0,Simulador!$D$24,Simulador!$N$25)*Simulador!$W$12)),0) -> 17 | AT131: 17 | AW131: 0 | AX131: 117
A132: 118 | B132: 0 | D132: 0 | F132: 0 | H132: 0 | L132: =IF(Simulador!$T$37<3,0,J132*Simulador!$W$35*1.16) -> 0 | N132: =IF(B132-H132=0,0,N130) -> 0 | R132: 0 | T132: =IFERROR(IF(Simulador!$T$18=2,0,IF($B132<=0,0,$B132*Simulador!$W$17)),0) -> 0 | V132: =IFERROR(IF($B132<=0,0,IF(Simulador!$T$13=1,0,IF(Simulador!$D$24>0,Simulador!$D$24,Simulador!$N$25)*Simulador!$W$12)),0) -> 0 | Y132: 0 | AA132: 9 | AB132: 10 | AC132: 0 | AD132: 0 | AE132: 0 | AF132: 0 | AG132: 0.105 | AJ132: 0 | AL132: 0 | AM132: 0 | AN132: 0 | AO132: 0 | AP132: 0 | AR132: =IFERROR(IF(Simulador!$T$18=2,0,IF($AL132<=0.01,0,$AL132*Simulador!$W$17)),0)+IFERROR(IF(Simulador!$T$13=1,17,IF($AL132<=0.01,0,IF(Simulador!$D$24>0,Simulador!$D$24,Simulador!$N$25)*Simulador!$W$12)),0) -> 17 | AT132: 17 | AW132: 0 | AX132: 118
A133: 119 | B133: 0 | D133: 0 | F133: 0 | H133: 0 | L133: =IF(Simulador!$T$37<3,0,J133*Simulador!$W$35*1.16) -> 0 | R133: 0 | T133: =IFERROR(IF(Simulador!$T$18=2,0,IF($B133<=0,0,$B133*Simulador!$W$17)),0) -> 0 | V133: =IFERROR(IF($B133<=0,0,IF(Simulador!$T$13=1,0,IF(Simulador!$D$24>0,Simulador!$D$24,Simulador!$N$25)*Simulador!$W$12)),0) -> 0 | Y133: 0 | AA133: 9 | AB133: 11 | AC133: 0 | AD133: 0 | AE133: 0 | AF133: 0 | AG133: 0.105 | AJ133: 0 | AL133: 0 | AM133: 0 | AN133: 0 | AO133: 0 | AP133: 0 | AR133: =IFERROR(IF(Simulador!$T$18=2,0,IF($AL133<=0.01,0,$AL133*Simulador!$W$17)),0)+IFERROR(IF(Simulador!$T$13=1,17,IF($AL133<=0.01,0,IF(Simulador!$D$24>0,Simulador!$D$24,Simulador!$N$25)*Simulador!$W$12)),0) -> 17 | AT133: 17 | AW133: 0 | AX133: 119
A134: 120 | B134: 0 | D134: 0 | F134: 0 | H134: 0 | L134: =IF(Simulador!$T$37<3,0,J134*Simulador!$W$35*1.16) -> 0 | N134: =IF(B134-H134=0,0,N132) -> 0 | R134: 0 | T134: =IFERROR(IF(Simulador!$T$18=2,0,IF($B134<=0,0,$B134*Simulador!$W$17)),0) -> 0 | V134: =IFERROR(IF($B134<=0,0,IF(Simulador!$T$13=1,0,IF(Simulador!$D$24>0,Simulador!$D$24,Simulador!$N$25)*Simulador!$W$12)),0) -> 0 | Y134: 0 | AA134: 10 | AB134: 0 | AC134: 0 | AD134: 0 | AE134: 0 | AF134: 0 | AG134: 0.105 | AJ134: 0 | AL134: 0 | AM134: 0 | AN134: 0 | AO134: 0 | AP134: 0 | AR134: =IFERROR(IF(Simulador!$T$18=2,0,IF($AL134<=0.01,0,$AL134*Simulador!$W$17)),0)+IFERROR(IF(Simulador!$T$13=1,17,IF($AL134<=0.01,0,IF(Simulador!$D$24>0,Simulador!$D$24,Simulador!$N$25)*Simulador!$W$12)),0) -> 17 | AT134: 17 | AW134: 0 | AX134: 120
A135: 121 | B135: 0 | D135: 0 | F135: 0 | H135: 0 | L135: =IF(Simulador!$T$37<3,0,J135*Simulador!$W$35*1.16) -> 0 | R135: 0 | T135: =IFERROR(IF(Simulador!$T$18=2,0,IF($B135<=0,0,$B135*Simulador!$W$17)),0) -> 0 | V135: =IFERROR(IF($B135<=0,0,IF(Simulador!$T$13=1,0,IF(Simulador!$D$24>0,Simulador!$D$24,Simulador!$N$25)*Simulador!$W$12)),0) -> 0 | Y135: 0 | AA135: 10 | AB135: 1 | AC135: 0 | AD135: 0 | AE135: 0 | AF135: 0 | AG135: 0.105 | AJ135: 0 | AL135: 0 | AM135: 0 | AN135: 0 | AO135: 0 | AP135: 0 | AR135: =IFERROR(IF(Simulador!$T$18=2,0,IF($AL135<=0.01,0,$AL135*Simulador!$W$17)),0)+IFERROR(IF(Simulador!$T$13=1,17,IF($AL135<=0.01,0,IF(Simulador!$D$24>0,Simulador!$D$24,Simulador!$N$25)*Simulador!$W$12)),0) -> 17 | AS135: =IF(AL135<=0,0,$AS$27) -> 0 | AT135: 17 | AW135: 0 | AX135: 121
A136: 122 | B136: 0 | D136: 0 | F136: 0 | H136: 0 | L136: =IF(Simulador!$T$37<3,0,J136*Simulador!$W$35*1.16) -> 0 | N136: =IF(B136-H136=0,0,N134*(1+(Simulador!$U$52))) -> 0 | R136: 0 | T136: =IFERROR(IF(Simulador!$T$18=2,0,IF($B136<=0,0,$B136*Simulador!$W$17)),0) -> 0 | V136: =IFERROR(IF($B136<=0,0,IF(Simulador!$T$13=1,0,IF(Simulador!$D$24>0,Simulador!$D$24,Simulador!$N$25)*Simulador!$W$12)),0) -> 0 | Y136: 0 | AA136: 10 | AB136: 2 | AC136: 0 | AD136: 0 | AE136: 0 | AF136: 0 | AG136: 0.105 | AJ136: 0 | AL136: 0 | AM136: 0 | AN136: 0 | AO136: 0 | AP136: 0 | AR136: =IFERROR(IF(Simulador!$T$18=2,0,IF($AL136<=0.01,0,$AL136*Simulador!$W$17)),0)+IFERROR(IF(Simulador!$T$13=1,17,IF($AL136<=0.01,0,IF(Simulador!$D$24>0,Simulador!$D$24,Simulador!$N$25)*Simulador!$W$12)),0) -> 17 | AT136: 17 | AW136: 0 | AX136: 122
A137: 123 | B137: 0 | D137: 0 | F137: 0 | H137: 0 | L137: =IF(Simulador!$T$37<3,0,J137*Simulador!$W$35*1.16) -> 0 | R137: 0 | T137: =IFERROR(IF(Simulador!$T$18=2,0,IF($B137<=0,0,$B137*Simulador!$W$17)),0) -> 0 | V137: =IFERROR(IF($B137<=0,0,IF(Simulador!$T$13=1,0,IF(Simulador!$D$24>0,Simulador!$D$24,Simulador!$N$25)*Simulador!$W$12)),0) -> 0 | Y137: 0 | AA137: 10 | AB137: 3 | AC137: 0 | AD137: 0 | AE137: 0 | AF137: 0 | AG137: 0.105 | AJ137: 0 | AL137: 0 | AM137: 0 | AN137: 0 | AO137: 0 | AP137: 0 | AR137: =IFERROR(IF(Simulador!$T$18=2,0,IF($AL137<=0.01,0,$AL137*Simulador!$W$17)),0)+IFERROR(IF(Simulador!$T$13=1,17,IF($AL137<=0.01,0,IF(Simulador!$D$24>0,Simulador!$D$24,Simulador!$N$25)*Simulador!$W$12)),0) -> 17 | AT137: 17 | AW137: 0 | AX137: 123
A138: 124 | B138: 0 | D138: 0 | F138: 0 | H138: 0 | L138: =IF(Simulador!$T$37<3,0,J138*Simulador!$W$35*1.16) -> 0 | N138: =IF(B138-H138=0,0,N136) -> 0 | R138: 0 | T138: =IFERROR(IF(Simulador!$T$18=2,0,IF($B138<=0,0,$B138*Simulador!$W$17)),0) -> 0 | V138: =IFERROR(IF($B138<=0,0,IF(Simulador!$T$13=1,0,IF(Simulador!$D$24>0,Simulador!$D$24,Simulador!$N$25)*Simulador!$W$12)),0) -> 0 | Y138: 0 | AA138: 10 | AB138: 4 | AC138: 0 | AD138: 0 | AE138: 0 | AF138: 0 | AG138: 0.105 | AJ138: 0 | AL138: 0 | AM138: 0 | AN138: 0 | AO138: 0 | AP138: 0 | AR138: =IFERROR(IF(Simulador!$T$18=2,0,IF($AL138<=0.01,0,$AL138*Simulador!$W$17)),0)+IFERROR(IF(Simulador!$T$13=1,17,IF($AL138<=0.01,0,IF(Simulador!$D$24>0,Simulador!$D$24,Simulador!$N$25)*Simulador!$W$12)),0) -> 17 | AT138: 17 | AW138: 0 | AX138: 124
A139: 125 | B139: 0 | D139: 0 | F139: 0 | H139: 0 | L139: =IF(Simulador!$T$37<3,0,J139*Simulador!$W$35*1.16) -> 0 | R139: 0 | T139: =IFERROR(IF(Simulador!$T$18=2,0,IF($B139<=0,0,$B139*Simulador!$W$17)),0) -> 0 | V139: =IFERROR(IF($B139<=0,0,IF(Simulador!$T$13=1,0,IF(Simulador!$D$24>0,Simulador!$D$24,Simulador!$N$25)*Simulador!$W$12)),0) -> 0 | Y139: 0 | AA139: 10 | AB139: 5 | AC139: 0 | AD139: 0 | AE139: 0 | AF139: 0 | AG139: 0.105 | AJ139: 0 | AL139: 0 | AM139: 0 | AN139: 0 | AO139: 0 | AP139: 0 | AR139: =IFERROR(IF(Simulador!$T$18=2,0,IF($AL139<=0.01,0,$AL139*Simulador!$W$17)),0)+IFERROR(IF(Simulador!$T$13=1,17,IF($AL139<=0.01,0,IF(Simulador!$D$24>0,Simulador!$D$24,Simulador!$N$25)*Simulador!$W$12)),0) -> 17 | AT139: 17 | AW139: 0 | AX139: 125
A140: 126 | B140: 0 | D140: 0 | F140: 0 | H140: 0 | L140: =IF(Simulador!$T$37<3,0,J140*Simulador!$W$35*1.16) -> 0 | N140: =IF(B140-H140=0,0,N138) -> 0 | R140: 0 | T140: =IFERROR(IF(Simulador!$T$18=2,0,IF($B140<=0,0,$B140*Simulador!$W$17)),0) -> 0 | V140: =IFERROR(IF($B140<=0,0,IF(Simulador!$T$13=1,0,IF(Simulador!$D$24>0,Simulador!$D$24,Simulador!$N$25)*Simulador!$W$12)),0) -> 0 | Y140: 0 | AA140: 10 | AB140: 6 | AC140: 0 | AD140: 0 | AE140: 0 | AF140: 0 | AG140: 0.105 | AJ140: 0 | AL140: 0 | AM140: 0 | AN140: 0 | AO140: 0 | AP140: 0 | AR140: =IFERROR(IF(Simulador!$T$18=2,0,IF($AL140<=0.01,0,$AL140*Simulador!$W$17)),0)+IFERROR(IF(Simulador!$T$13=1,17,IF($AL140<=0.01,0,IF(Simulador!$D$24>0,Simulador!$D$24,Simulador!$N$25)*Simulador!$W$12)),0) -> 17 | AT140: 17 | AW140: 0 | AX140: 126
A141: 127 | B141: 0 | D141: 0 | F141: 0 | H141: 0 | L141: =IF(Simulador!$T$37<3,0,J141*Simulador!$W$35*1.16) -> 0 | R141: 0 | T141: =IFERROR(IF(Simulador!$T$18=2,0,IF($B141<=0,0,$B141*Simulador!$W$17)),0) -> 0 | V141: =IFERROR(IF($B141<=0,0,IF(Simulador!$T$13=1,0,IF(Simulador!$D$24>0,Simulador!$D$24,Simulador!$N$25)*Simulador!$W$12)),0) -> 0 | Y141: 0 | AA141: 10 | AB141: 7 | AC141: 0 | AD141: 0 | AE141: 0 | AF141: 0 | AG141: 0.105 | AJ141: 0 | AL141: 0 | AM141: 0 | AN141: 0 | AO141: 0 | AP141: 0 | AR141: =IFERROR(IF(Simulador!$T$18=2,0,IF($AL141<=0.01,0,$AL141*Simulador!$W$17)),0)+IFERROR(IF(Simulador!$T$13=1,17,IF($AL141<=0.01,0,IF(Simulador!$D$24>0,Simulador!$D$24,Simulador!$N$25)*Simulador!$W$12)),0) -> 17 | AT141: 17 | AW141: 0 | AX141: 127
A142: 128 | B142: 0 | D142: 0 | F142: 0 | H142: 0 | L142: =IF(Simulador!$T$37<3,0,J142*Simulador!$W$35*1.16) -> 0 | N142: =IF(B142-H142=0,0,N140) -> 0 | R142: 0 | T142: =IFERROR(IF(Simulador!$T$18=2,0,IF($B142<=0,0,$B142*Simulador!$W$17)),0) -> 0 | V142: =IFERROR(IF($B142<=0,0,IF(Simulador!$T$13=1,0,IF(Simulador!$D$24>0,Simulador!$D$24,Simulador!$N$25)*Simulador!$W$12)),0) -> 0 | Y142: 0 | AA142: 10 | AB142: 8 | AC142: 0 | AD142: 0 | AE142: 0 | AF142: 0 | AG142: 0.105 | AJ142: 0 | AL142: 0 | AM142: 0 | AN142: 0 | AO142: 0 | AP142: 0 | AR142: =IFERROR(IF(Simulador!$T$18=2,0,IF($AL142<=0.01,0,$AL142*Simulador!$W$17)),0)+IFERROR(IF(Simulador!$T$13=1,17,IF($AL142<=0.01,0,IF(Simulador!$D$24>0,Simulador!$D$24,Simulador!$N$25)*Simulador!$W$12)),0) -> 17 | AT142: 17 | AW142: 0 | AX142: 128
A143: 129 | B143: 0 | D143: 0 | F143: =IFERROR(IF(B143=0,0,P143/360*AW143*B143),0) -> 0 | H143: 0 | L143: =IF(Simulador!$T$37<3,0,J143*Simulador!$W$35*1.16) -> 0 | P143: =IF(B143=0,"",AG143) ->  | R143: 0 | T143: =IFERROR(IF(Simulador!$T$18=2,0,IF($B143<=0,0,$B143*Simulador!$W$17)),0) -> 0 | V143: =IFERROR(IF($B143<=0,0,IF(Simulador!$T$13=1,0,IF(Simulador!$D$24>0,Simulador!$D$24,Simulador!$N$25)*Simulador!$W$12)),0) -> 0 | Y143: =IF(B143<=0,0,D143+J143+T143+V143) -> 0 | AA143: 10 | AB143: 9 | AC143: 0 | AD143: 0 | AE143: 0 | AF143: =Y143 -> 0 | AG143: 0.105 | AJ143: 0 | AL143: 0 | AM143: 0 | AN143: =IFERROR((AQ143/360*AW143*AL143),0) -> 0 | AO143: =+AM143-AN143 -> 0 | AP143: 0 | AQ143: =IF(AL143=0,"",AG143) ->  | AR143: =IFERROR(IF(Simulador!$T$18=2,0,IF($AL143<=0.01,0,$AL143*Simulador!$W$17)),0)+IFERROR(IF(Simulador!$T$13=1,17,IF($AL143<=0.01,0,IF(Simulador!$D$24>0,Simulador!$D$24,Simulador!$N$25)*Simulador!$W$12)),0) -> 17 | AT143: =AN143+AO143+AR143 -> 17 | AW143: 0 | AX143: 129
A144: 130 | B144: 0 | D144: 0 | F144: 0 | H144: 0 | L144: =IF(Simulador!$T$37<3,0,J144*Simulador!$W$35*1.16) -> 0 | N144: =IF(B144-H144=0,0,N142) -> 0 | R144: =B144-H144-J144+L144-N144 -> 0 | T144: =IFERROR(IF(Simulador!$T$18=2,0,IF($B144<=0,0,$B144*Simulador!$W$17)),0) -> 0 | V144: =IFERROR(IF($B144<=0,0,IF(Simulador!$T$13=1,0,IF(Simulador!$D$24>0,Simulador!$D$24,Simulador!$N$25)*Simulador!$W$12)),0) -> 0 | Y144: 0 | AA144: 10 | AB144: 10 | AC144: =IF(R144<=0,IF(R143>0,A144,0),0) -> 0 | AD144: =IF(AC144>0,AA144,0) -> 0 | AE144: =IF(AC144>0,AB144,0) -> 0 | AF144: 0 | AG144: 0.105 | AJ144: =IFERROR((AM144/AL144),0) -> 0 | AL144: 0 | AM144: =IFERROR((IF(AL144+AN144-AM143<0, AL144+AN144, AM143*(1+AS144))),0) -> 0 | AN144: 0 | AO144: 0 | AP144: =+AL144-AO144 -> 0 | AR144: =IFERROR(IF(Simulador!$T$18=2,0,IF($AL144<=0.01,0,$AL144*Simulador!$W$17)),0)+IFERROR(IF(Simulador!$T$13=1,17,IF($AL144<=0.01,0,IF(Simulador!$D$24>0,Simulador!$D$24,Simulador!$N$25)*Simulador!$W$12)),0) -> 17 | AT144: 17 | AV144: =IF(AL144=0,"",DATE(YEAR(AV143),MONTH(AV143)+1,1)) ->  | AW144: =IFERROR(DAY(DATE(YEAR(AV144),MONTH(AV144),0)),0) -> 0 | AX144: 130
A145: 131 | B145: =IF(R144<=0,0,R144) -> 0 | D145: =IF(B145+F145-D144<=0,B145+F145,IF($AB$4=2,B145*AJ145,D144)) -> 0 | F145: 0 | H145: =D145-F145 -> 0 | L145: =IF(Simulador!$T$37<3,0,J145*Simulador!$W$35*1.16) -> 0 | R145: 0 | T145: =IFERROR(IF(Simulador!$T$18=2,0,IF($B145<=0,0,$B145*Simulador!$W$17)),0) -> 0 | V145: =IFERROR(IF($B145<=0,0,IF(Simulador!$T$13=1,0,IF(Simulador!$D$24>0,Simulador!$D$24,Simulador!$N$25)*Simulador!$W$12)),0) -> 0 | Y145: 0 | AA145: 10 | AB145: 11 | AC145: 0 | AD145: 0 | AE145: 0 | AF145: 0 | AG145: =AG144 -> 0.105 | AJ145: 0 | AL145: 0 | AM145: 0 | AN145: 0 | AO145: 0 | AP145: 0 | AR145: =IFERROR(IF(Simulador!$T$18=2,0,IF($AL145<=0.01,0,$AL145*Simulador!$W$17)),0)+IFERROR(IF(Simulador!$T$13=1,17,IF($AL145<=0.01,0,IF(Simulador!$D$24>0,Simulador!$D$24,Simulador!$N$25)*Simulador!$W$12)),0) -> 17 | AT145: 17 | AW145: 0 | AX145: 131
A146: 132 | B146: 0 | D146: 0 | F146: 0 | H146: 0 | L146: =IF(Simulador!$T$37<3,0,J146*Simulador!$W$35*1.16) -> 0 | N146: =IF(B146-H146=0,0,N144) -> 0 | R146: 0 | T146: =IFERROR(IF(Simulador!$T$18=2,0,IF($B146<=0,0,$B146*Simulador!$W$17)),0) -> 0 | V146: =IFERROR(IF($B146<=0,0,IF(Simulador!$T$13=1,0,IF(Simulador!$D$24>0,Simulador!$D$24,Simulador!$N$25)*Simulador!$W$12)),0) -> 0 | Y146: 0 | AA146: 11 | AB146: 0 | AC146: 0 | AD146: 0 | AE146: 0 | AF146: 0 | AG146: 0.105 | AJ146: 0 | AL146: 0 | AM146: 0 | AN146: 0 | AO146: 0 | AP146: 0 | AR146: =IFERROR(IF(Simulador!$T$18=2,0,IF($AL146<=0.01,0,$AL146*Simulador!$W$17)),0)+IFERROR(IF(Simulador!$T$13=1,17,IF($AL146<=0.01,0,IF(Simulador!$D$24>0,Simulador!$D$24,Simulador!$N$25)*Simulador!$W$12)),0) -> 17 | AT146: 17 | AW146: 0 | AX146: 132
A147: 133 | B147: 0 | D147: 0 | F147: 0 | H147: 0 | L147: =IF(Simulador!$T$37<3,0,J147*Simulador!$W$35*1.16) -> 0 | R147: 0 | T147: =IFERROR(IF(Simulador!$T$18=2,0,IF($B147<=0,0,$B147*Simulador!$W$17)),0) -> 0 | V147: =IFERROR(IF($B147<=0,0,IF(Simulador!$T$13=1,0,IF(Simulador!$D$24>0,Simulador!$D$24,Simulador!$N$25)*Simulador!$W$12)),0) -> 0 | Y147: 0 | AA147: 11 | AB147: 1 | AC147: 0 | AD147: 0 | AE147: 0 | AF147: 0 | AG147: 0.105 | AJ147: 0 | AL147: 0 | AM147: 0 | AN147: 0 | AO147: 0 | AP147: 0 | AR147: =IFERROR(IF(Simulador!$T$18=2,0,IF($AL147<=0.01,0,$AL147*Simulador!$W$17)),0)+IFERROR(IF(Simulador!$T$13=1,17,IF($AL147<=0.01,0,IF(Simulador!$D$24>0,Simulador!$D$24,Simulador!$N$25)*Simulador!$W$12)),0) -> 17 | AS147: =IF(AL147<=0,0,$AS$27) -> 0 | AT147: 17 | AW147: 0 | AX147: 133
A148: 134 | B148: 0 | D148: 0 | F148: 0 | H148: 0 | L148: =IF(Simulador!$T$37<3,0,J148*Simulador!$W$35*1.16) -> 0 | N148: =IF(B148-H148=0,0,N146*(1+(Simulador!$U$52))) -> 0 | R148: 0 | T148: =IFERROR(IF(Simulador!$T$18=2,0,IF($B148<=0,0,$B148*Simulador!$W$17)),0) -> 0 | V148: =IFERROR(IF($B148<=0,0,IF(Simulador!$T$13=1,0,IF(Simulador!$D$24>0,Simulador!$D$24,Simulador!$N$25)*Simulador!$W$12)),0) -> 0 | Y148: 0 | AA148: 11 | AB148: 2 | AC148: 0 | AD148: 0 | AE148: 0 | AF148: 0 | AG148: 0.105 | AJ148: 0 | AL148: 0 | AM148: 0 | AN148: 0 | AO148: 0 | AP148: 0 | AR148: =IFERROR(IF(Simulador!$T$18=2,0,IF($AL148<=0.01,0,$AL148*Simulador!$W$17)),0)+IFERROR(IF(Simulador!$T$13=1,17,IF($AL148<=0.01,0,IF(Simulador!$D$24>0,Simulador!$D$24,Simulador!$N$25)*Simulador!$W$12)),0) -> 17 | AT148: 17 | AW148: 0 | AX148: 134
A149: 135 | B149: 0 | D149: 0 | F149: 0 | H149: 0 | L149: =IF(Simulador!$T$37<3,0,J149*Simulador!$W$35*1.16) -> 0 | R149: 0 | T149: =IFERROR(IF(Simulador!$T$18=2,0,IF($B149<=0,0,$B149*Simulador!$W$17)),0) -> 0 | V149: =IFERROR(IF($B149<=0,0,IF(Simulador!$T$13=1,0,IF(Simulador!$D$24>0,Simulador!$D$24,Simulador!$N$25)*Simulador!$W$12)),0) -> 0 | Y149: 0 | AA149: 11 | AB149: 3 | AC149: 0 | AD149: 0 | AE149: 0 | AF149: 0 | AG149: 0.105 | AJ149: 0 | AL149: 0 | AM149: 0 | AN149: 0 | AO149: 0 | AP149: 0 | AR149: =IFERROR(IF(Simulador!$T$18=2,0,IF($AL149<=0.01,0,$AL149*Simulador!$W$17)),0)+IFERROR(IF(Simulador!$T$13=1,17,IF($AL149<=0.01,0,IF(Simulador!$D$24>0,Simulador!$D$24,Simulador!$N$25)*Simulador!$W$12)),0) -> 17 | AT149: 17 | AW149: 0 | AX149: 135
A150: 136 | B150: 0 | D150: 0 | F150: 0 | H150: 0 | L150: =IF(Simulador!$T$37<3,0,J150*Simulador!$W$35*1.16) -> 0 | N150: =IF(B150-H150=0,0,N148) -> 0 | R150: 0 | T150: =IFERROR(IF(Simulador!$T$18=2,0,IF($B150<=0,0,$B150*Simulador!$W$17)),0) -> 0 | V150: =IFERROR(IF($B150<=0,0,IF(Simulador!$T$13=1,0,IF(Simulador!$D$24>0,Simulador!$D$24,Simulador!$N$25)*Simulador!$W$12)),0) -> 0 | Y150: 0 | AA150: 11 | AB150: 4 | AC150: 0 | AD150: 0 | AE150: 0 | AF150: 0 | AG150: 0.105 | AJ150: 0 | AL150: 0 | AM150: 0 | AN150: 0 | AO150: 0 | AP150: 0 | AR150: =IFERROR(IF(Simulador!$T$18=2,0,IF($AL150<=0.01,0,$AL150*Simulador!$W$17)),0)+IFERROR(IF(Simulador!$T$13=1,17,IF($AL150<=0.01,0,IF(Simulador!$D$24>0,Simulador!$D$24,Simulador!$N$25)*Simulador!$W$12)),0) -> 17 | AT150: 17 | AW150: 0 | AX150: 136
A151: 137 | B151: 0 | D151: 0 | F151: 0 | H151: 0 | L151: =IF(Simulador!$T$37<3,0,J151*Simulador!$W$35*1.16) -> 0 | R151: 0 | T151: =IFERROR(IF(Simulador!$T$18=2,0,IF($B151<=0,0,$B151*Simulador!$W$17)),0) -> 0 | V151: =IFERROR(IF($B151<=0,0,IF(Simulador!$T$13=1,0,IF(Simulador!$D$24>0,Simulador!$D$24,Simulador!$N$25)*Simulador!$W$12)),0) -> 0 | Y151: 0 | AA151: 11 | AB151: 5 | AC151: 0 | AD151: 0 | AE151: 0 | AF151: 0 | AG151: 0.105 | AJ151: 0 | AL151: 0 | AM151: 0 | AN151: 0 | AO151: 0 | AP151: 0 | AR151: =IFERROR(IF(Simulador!$T$18=2,0,IF($AL151<=0.01,0,$AL151*Simulador!$W$17)),0)+IFERROR(IF(Simulador!$T$13=1,17,IF($AL151<=0.01,0,IF(Simulador!$D$24>0,Simulador!$D$24,Simulador!$N$25)*Simulador!$W$12)),0) -> 17 | AT151: 17 | AW151: 0 | AX151: 137
A152: 138 | B152: 0 | D152: 0 | F152: 0 | H152: 0 | L152: =IF(Simulador!$T$37<3,0,J152*Simulador!$W$35*1.16) -> 0 | N152: =IF(B152-H152=0,0,N150) -> 0 | R152: 0 | T152: =IFERROR(IF(Simulador!$T$18=2,0,IF($B152<=0,0,$B152*Simulador!$W$17)),0) -> 0 | V152: =IFERROR(IF($B152<=0,0,IF(Simulador!$T$13=1,0,IF(Simulador!$D$24>0,Simulador!$D$24,Simulador!$N$25)*Simulador!$W$12)),0) -> 0 | Y152: 0 | AA152: 11 | AB152: 6 | AC152: 0 | AD152: 0 | AE152: 0 | AF152: 0 | AG152: 0.105 | AJ152: 0 | AL152: 0 | AM152: 0 | AN152: 0 | AO152: 0 | AP152: 0 | AR152: =IFERROR(IF(Simulador!$T$18=2,0,IF($AL152<=0.01,0,$AL152*Simulador!$W$17)),0)+IFERROR(IF(Simulador!$T$13=1,17,IF($AL152<=0.01,0,IF(Simulador!$D$24>0,Simulador!$D$24,Simulador!$N$25)*Simulador!$W$12)),0) -> 17 | AT152: 17 | AW152: 0 | AX152: 138
A153: 139 | B153: 0 | D153: 0 | F153: 0 | H153: 0 | L153: =IF(Simulador!$T$37<3,0,J153*Simulador!$W$35*1.16) -> 0 | R153: 0 | T153: =IFERROR(IF(Simulador!$T$18=2,0,IF($B153<=0,0,$B153*Simulador!$W$17)),0) -> 0 | V153: =IFERROR(IF($B153<=0,0,IF(Simulador!$T$13=1,0,IF(Simulador!$D$24>0,Simulador!$D$24,Simulador!$N$25)*Simulador!$W$12)),0) -> 0 | Y153: 0 | AA153: 11 | AB153: 7 | AC153: 0 | AD153: 0 | AE153: 0 | AF153: 0 | AG153: 0.105 | AJ153: 0 | AL153: 0 | AM153: 0 | AN153: 0 | AO153: 0 | AP153: 0 | AR153: =IFERROR(IF(Simulador!$T$18=2,0,IF($AL153<=0.01,0,$AL153*Simulador!$W$17)),0)+IFERROR(IF(Simulador!$T$13=1,17,IF($AL153<=0.01,0,IF(Simulador!$D$24>0,Simulador!$D$24,Simulador!$N$25)*Simulador!$W$12)),0) -> 17 | AT153: 17 | AW153: 0 | AX153: 139
A154: 140 | B154: 0 | D154: 0 | F154: 0 | H154: 0 | L154: =IF(Simulador!$T$37<3,0,J154*Simulador!$W$35*1.16) -> 0 | N154: =IF(B154-H154=0,0,N152) -> 0 | R154: 0 | T154: =IFERROR(IF(Simulador!$T$18=2,0,IF($B154<=0,0,$B154*Simulador!$W$17)),0) -> 0 | V154: =IFERROR(IF($B154<=0,0,IF(Simulador!$T$13=1,0,IF(Simulador!$D$24>0,Simulador!$D$24,Simulador!$N$25)*Simulador!$W$12)),0) -> 0 | Y154: 0 | AA154: 11 | AB154: 8 | AC154: 0 | AD154: 0 | AE154: 0 | AF154: 0 | AG154: 0.105 | AJ154: 0 | AL154: 0 | AM154: 0 | AN154: 0 | AO154: 0 | AP154: 0 | AR154: =IFERROR(IF(Simulador!$T$18=2,0,IF($AL154<=0.01,0,$AL154*Simulador!$W$17)),0)+IFERROR(IF(Simulador!$T$13=1,17,IF($AL154<=0.01,0,IF(Simulador!$D$24>0,Simulador!$D$24,Simulador!$N$25)*Simulador!$W$12)),0) -> 17 | AT154: 17 | AW154: 0 | AX154: 140
A155: 141 | B155: 0 | D155: 0 | F155: 0 | H155: 0 | L155: =IF(Simulador!$T$37<3,0,J155*Simulador!$W$35*1.16) -> 0 | R155: 0 | T155: =IFERROR(IF(Simulador!$T$18=2,0,IF($B155<=0,0,$B155*Simulador!$W$17)),0) -> 0 | V155: =IFERROR(IF($B155<=0,0,IF(Simulador!$T$13=1,0,IF(Simulador!$D$24>0,Simulador!$D$24,Simulador!$N$25)*Simulador!$W$12)),0) -> 0 | Y155: 0 | AA155: 11 | AB155: 9 | AC155: 0 | AD155: 0 | AE155: 0 | AF155: 0 | AG155: 0.105 | AJ155: 0 | AL155: 0 | AM155: 0 | AN155: 0 | AO155: 0 | AP155: 0 | AR155: =IFERROR(IF(Simulador!$T$18=2,0,IF($AL155<=0.01,0,$AL155*Simulador!$W$17)),0)+IFERROR(IF(Simulador!$T$13=1,17,IF($AL155<=0.01,0,IF(Simulador!$D$24>0,Simulador!$D$24,Simulador!$N$25)*Simulador!$W$12)),0) -> 17 | AT155: 17 | AW155: 0 | AX155: 141
A156: 142 | B156: 0 | D156: 0 | F156: 0 | H156: 0 | L156: =IF(Simulador!$T$37<3,0,J156*Simulador!$W$35*1.16) -> 0 | N156: =IF(B156-H156=0,0,N154) -> 0 | R156: 0 | T156: =IFERROR(IF(Simulador!$T$18=2,0,IF($B156<=0,0,$B156*Simulador!$W$17)),0) -> 0 | V156: =IFERROR(IF($B156<=0,0,IF(Simulador!$T$13=1,0,IF(Simulador!$D$24>0,Simulador!$D$24,Simulador!$N$25)*Simulador!$W$12)),0) -> 0 | Y156: 0 | AA156: 11 | AB156: 10 | AC156: 0 | AD156: 0 | AE156: 0 | AF156: 0 | AG156: 0.105 | AJ156: 0 | AL156: 0 | AM156: 0 | AN156: 0 | AO156: 0 | AP156: 0 | AR156: =IFERROR(IF(Simulador!$T$18=2,0,IF($AL156<=0.01,0,$AL156*Simulador!$W$17)),0)+IFERROR(IF(Simulador!$T$13=1,17,IF($AL156<=0.01,0,IF(Simulador!$D$24>0,Simulador!$D$24,Simulador!$N$25)*Simulador!$W$12)),0) -> 17 | AT156: 17 | AW156: 0 | AX156: 142
A157: 143 | B157: 0 | D157: 0 | F157: 0 | H157: 0 | L157: =IF(Simulador!$T$37<3,0,J157*Simulador!$W$35*1.16) -> 0 | R157: 0 | T157: =IFERROR(IF(Simulador!$T$18=2,0,IF($B157<=0,0,$B157*Simulador!$W$17)),0) -> 0 | V157: =IFERROR(IF($B157<=0,0,IF(Simulador!$T$13=1,0,IF(Simulador!$D$24>0,Simulador!$D$24,Simulador!$N$25)*Simulador!$W$12)),0) -> 0 | Y157: 0 | AA157: 11 | AB157: 11 | AC157: 0 | AD157: 0 | AE157: 0 | AF157: 0 | AG157: 0.105 | AJ157: 0 | AL157: =IF(AP156<=0,0,AP156) -> 0 | AM157: 0 | AN157: 0 | AO157: 0 | AP157: 0 | AR157: =IFERROR(IF(Simulador!$T$18=2,0,IF($AL157<=0.01,0,$AL157*Simulador!$W$17)),0)+IFERROR(IF(Simulador!$T$13=1,17,IF($AL157<=0.01,0,IF(Simulador!$D$24>0,Simulador!$D$24,Simulador!$N$25)*Simulador!$W$12)),0) -> 17 | AT157: 17 | AW157: 0 | AX157: 143
A158: 144 | B158: 0 | D158: 0 | F158: 0 | H158: 0 | L158: =IF(Simulador!$T$37<3,0,J158*Simulador!$W$35*1.16) -> 0 | N158: =IF(B158-H158=0,0,N156) -> 0 | R158: 0 | T158: =IFERROR(IF(Simulador!$T$18=2,0,IF($B158<=0,0,$B158*Simulador!$W$17)),0) -> 0 | V158: =IFERROR(IF($B158<=0,0,IF(Simulador!$T$13=1,0,IF(Simulador!$D$24>0,Simulador!$D$24,Simulador!$N$25)*Simulador!$W$12)),0) -> 0 | Y158: 0 | AA158: 12 | AB158: 0 | AC158: 0 | AD158: 0 | AE158: 0 | AF158: 0 | AG158: 0.105 | AJ158: 0 | AL158: 0 | AM158: 0 | AN158: 0 | AO158: 0 | AP158: 0 | AR158: =IFERROR(IF(Simulador!$T$18=2,0,IF($AL158<=0.01,0,$AL158*Simulador!$W$17)),0)+IFERROR(IF(Simulador!$T$13=1,17,IF($AL158<=0.01,0,IF(Simulador!$D$24>0,Simulador!$D$24,Simulador!$N$25)*Simulador!$W$12)),0) -> 17 | AT158: 17 | AW158: 0 | AX158: 144
A159: 145 | B159: 0 | D159: 0 | F159: 0 | H159: 0 | L159: =IF(Simulador!$T$37<3,0,J159*Simulador!$W$35*1.16) -> 0 | R159: 0 | T159: =IFERROR(IF(Simulador!$T$18=2,0,IF($B159<=0,0,$B159*Simulador!$W$17)),0) -> 0 | V159: =IFERROR(IF($B159<=0,0,IF(Simulador!$T$13=1,0,IF(Simulador!$D$24>0,Simulador!$D$24,Simulador!$N$25)*Simulador!$W$12)),0) -> 0 | Y159: 0 | AA159: 12 | AB159: 1 | AC159: 0 | AD159: 0 | AE159: 0 | AF159: 0 | AG159: 0.105 | AJ159: 0 | AL159: 0 | AM159: 0 | AN159: 0 | AO159: 0 | AP159: 0 | AR159: =IFERROR(IF(Simulador!$T$18=2,0,IF($AL159<=0.01,0,$AL159*Simulador!$W$17)),0)+IFERROR(IF(Simulador!$T$13=1,17,IF($AL159<=0.01,0,IF(Simulador!$D$24>0,Simulador!$D$24,Simulador!$N$25)*Simulador!$W$12)),0) -> 17 | AS159: =IF(AL159<=0,0,$AS$27) -> 0 | AT159: 17 | AW159: 0 | AX159: 145
A160: 146 | B160: 0 | D160: 0 | F160: 0 | H160: 0 | L160: =IF(Simulador!$T$37<3,0,J160*Simulador!$W$35*1.16) -> 0 | N160: =IF(B160-H160=0,0,N158*(1+(Simulador!$U$52))) -> 0 | R160: 0 | T160: =IFERROR(IF(Simulador!$T$18=2,0,IF($B160<=0,0,$B160*Simulador!$W$17)),0) -> 0 | V160: =IFERROR(IF($B160<=0,0,IF(Simulador!$T$13=1,0,IF(Simulador!$D$24>0,Simulador!$D$24,Simulador!$N$25)*Simulador!$W$12)),0) -> 0 | Y160: 0 | AA160: 12 | AB160: 2 | AC160: 0 | AD160: 0 | AE160: 0 | AF160: 0 | AG160: 0.105 | AJ160: 0 | AL160: 0 | AM160: 0 | AN160: 0 | AO160: 0 | AP160: 0 | AR160: =IFERROR(IF(Simulador!$T$18=2,0,IF($AL160<=0.01,0,$AL160*Simulador!$W$17)),0)+IFERROR(IF(Simulador!$T$13=1,17,IF($AL160<=0.01,0,IF(Simulador!$D$24>0,Simulador!$D$24,Simulador!$N$25)*Simulador!$W$12)),0) -> 17 | AT160: 17 | AW160: 0 | AX160: 146
A161: 147 | B161: 0 | D161: 0 | F161: 0 | H161: 0 | L161: =IF(Simulador!$T$37<3,0,J161*Simulador!$W$35*1.16) -> 0 | R161: 0 | T161: =IFERROR(IF(Simulador!$T$18=2,0,IF($B161<=0,0,$B161*Simulador!$W$17)),0) -> 0 | V161: =IFERROR(IF($B161<=0,0,IF(Simulador!$T$13=1,0,IF(Simulador!$D$24>0,Simulador!$D$24,Simulador!$N$25)*Simulador!$W$12)),0) -> 0 | Y161: 0 | AA161: 12 | AB161: 3 | AC161: 0 | AD161: 0 | AE161: 0 | AF161: 0 | AG161: 0.105 | AJ161: 0 | AL161: 0 | AM161: 0 | AN161: 0 | AO161: 0 | AP161: 0 | AR161: =IFERROR(IF(Simulador!$T$18=2,0,IF($AL161<=0.01,0,$AL161*Simulador!$W$17)),0)+IFERROR(IF(Simulador!$T$13=1,17,IF($AL161<=0.01,0,IF(Simulador!$D$24>0,Simulador!$D$24,Simulador!$N$25)*Simulador!$W$12)),0) -> 17 | AT161: 17 | AW161: 0 | AX161: 147
A162: 148 | B162: 0 | D162: 0 | F162: 0 | H162: 0 | L162: =IF(Simulador!$T$37<3,0,J162*Simulador!$W$35*1.16) -> 0 | N162: =IF(B162-H162=0,0,N160) -> 0 | R162: 0 | T162: =IFERROR(IF(Simulador!$T$18=2,0,IF($B162<=0,0,$B162*Simulador!$W$17)),0) -> 0 | V162: =IFERROR(IF($B162<=0,0,IF(Simulador!$T$13=1,0,IF(Simulador!$D$24>0,Simulador!$D$24,Simulador!$N$25)*Simulador!$W$12)),0) -> 0 | Y162: 0 | AA162: 12 | AB162: 4 | AC162: 0 | AD162: 0 | AE162: 0 | AF162: 0 | AG162: 0.105 | AJ162: 0 | AL162: 0 | AM162: 0 | AN162: 0 | AO162: 0 | AP162: 0 | AR162: =IFERROR(IF(Simulador!$T$18=2,0,IF($AL162<=0.01,0,$AL162*Simulador!$W$17)),0)+IFERROR(IF(Simulador!$T$13=1,17,IF($AL162<=0.01,0,IF(Simulador!$D$24>0,Simulador!$D$24,Simulador!$N$25)*Simulador!$W$12)),0) -> 17 | AT162: 17 | AW162: 0 | AX162: 148
A163: 149 | B163: 0 | D163: 0 | F163: 0 | H163: 0 | L163: =IF(Simulador!$T$37<3,0,J163*Simulador!$W$35*1.16) -> 0 | R163: 0 | T163: =IFERROR(IF(Simulador!$T$18=2,0,IF($B163<=0,0,$B163*Simulador!$W$17)),0) -> 0 | V163: =IFERROR(IF($B163<=0,0,IF(Simulador!$T$13=1,0,IF(Simulador!$D$24>0,Simulador!$D$24,Simulador!$N$25)*Simulador!$W$12)),0) -> 0 | Y163: 0 | AA163: 12 | AB163: 5 | AC163: 0 | AD163: 0 | AE163: 0 | AF163: 0 | AG163: 0.105 | AJ163: 0 | AL163: 0 | AM163: 0 | AN163: 0 | AO163: 0 | AP163: 0 | AR163: =IFERROR(IF(Simulador!$T$18=2,0,IF($AL163<=0.01,0,$AL163*Simulador!$W$17)),0)+IFERROR(IF(Simulador!$T$13=1,17,IF($AL163<=0.01,0,IF(Simulador!$D$24>0,Simulador!$D$24,Simulador!$N$25)*Simulador!$W$12)),0) -> 17 | AT163: 17 | AW163: 0 | AX163: 149
A164: 150 | B164: 0 | D164: 0 | F164: 0 | H164: 0 | L164: =IF(Simulador!$T$37<3,0,J164*Simulador!$W$35*1.16) -> 0 | N164: =IF(B164-H164=0,0,N162) -> 0 | R164: 0 | T164: =IFERROR(IF(Simulador!$T$18=2,0,IF($B164<=0,0,$B164*Simulador!$W$17)),0) -> 0 | V164: =IFERROR(IF($B164<=0,0,IF(Simulador!$T$13=1,0,IF(Simulador!$D$24>0,Simulador!$D$24,Simulador!$N$25)*Simulador!$W$12)),0) -> 0 | Y164: 0 | AA164: 12 | AB164: 6 | AC164: 0 | AD164: 0 | AE164: 0 | AF164: 0 | AG164: 0.105 | AJ164: 0 | AL164: 0 | AM164: 0 | AN164: 0 | AO164: 0 | AP164: 0 | AR164: =IFERROR(IF(Simulador!$T$18=2,0,IF($AL164<=0.01,0,$AL164*Simulador!$W$17)),0)+IFERROR(IF(Simulador!$T$13=1,17,IF($AL164<=0.01,0,IF(Simulador!$D$24>0,Simulador!$D$24,Simulador!$N$25)*Simulador!$W$12)),0) -> 17 | AT164: 17 | AW164: 0 | AX164: 150
A165: 151 | B165: 0 | D165: 0 | F165: 0 | H165: 0 | L165: =IF(Simulador!$T$37<3,0,J165*Simulador!$W$35*1.16) -> 0 | R165: 0 | T165: =IFERROR(IF(Simulador!$T$18=2,0,IF($B165<=0,0,$B165*Simulador!$W$17)),0) -> 0 | V165: =IFERROR(IF($B165<=0,0,IF(Simulador!$T$13=1,0,IF(Simulador!$D$24>0,Simulador!$D$24,Simulador!$N$25)*Simulador!$W$12)),0) -> 0 | Y165: 0 | AA165: 12 | AB165: 7 | AC165: 0 | AD165: 0 | AE165: 0 | AF165: 0 | AG165: 0.105 | AJ165: 0 | AL165: 0 | AM165: 0 | AN165: 0 | AO165: 0 | AP165: 0 | AR165: =IFERROR(IF(Simulador!$T$18=2,0,IF($AL165<=0.01,0,$AL165*Simulador!$W$17)),0)+IFERROR(IF(Simulador!$T$13=1,17,IF($AL165<=0.01,0,IF(Simulador!$D$24>0,Simulador!$D$24,Simulador!$N$25)*Simulador!$W$12)),0) -> 17 | AT165: 17 | AW165: 0 | AX165: 151
A166: 152 | B166: 0 | D166: 0 | F166: 0 | H166: 0 | L166: =IF(Simulador!$T$37<3,0,J166*Simulador!$W$35*1.16) -> 0 | N166: =IF(B166-H166=0,0,N164) -> 0 | R166: 0 | T166: =IFERROR(IF(Simulador!$T$18=2,0,IF($B166<=0,0,$B166*Simulador!$W$17)),0) -> 0 | V166: =IFERROR(IF($B166<=0,0,IF(Simulador!$T$13=1,0,IF(Simulador!$D$24>0,Simulador!$D$24,Simulador!$N$25)*Simulador!$W$12)),0) -> 0 | Y166: 0 | AA166: 12 | AB166: 8 | AC166: 0 | AD166: 0 | AE166: 0 | AF166: 0 | AG166: 0.105 | AJ166: 0 | AL166: 0 | AM166: 0 | AN166: 0 | AO166: 0 | AP166: 0 | AR166: =IFERROR(IF(Simulador!$T$18=2,0,IF($AL166<=0.01,0,$AL166*Simulador!$W$17)),0)+IFERROR(IF(Simulador!$T$13=1,17,IF($AL166<=0.01,0,IF(Simulador!$D$24>0,Simulador!$D$24,Simulador!$N$25)*Simulador!$W$12)),0) -> 17 | AT166: 17 | AW166: 0 | AX166: 152
A167: 153 | B167: 0 | D167: 0 | F167: 0 | H167: 0 | L167: =IF(Simulador!$T$37<3,0,J167*Simulador!$W$35*1.16) -> 0 | R167: 0 | T167: =IFERROR(IF(Simulador!$T$18=2,0,IF($B167<=0,0,$B167*Simulador!$W$17)),0) -> 0 | V167: =IFERROR(IF($B167<=0,0,IF(Simulador!$T$13=1,0,IF(Simulador!$D$24>0,Simulador!$D$24,Simulador!$N$25)*Simulador!$W$12)),0) -> 0 | Y167: 0 | AA167: 12 | AB167: 9 | AC167: 0 | AD167: 0 | AE167: 0 | AF167: 0 | AG167: 0.105 | AJ167: 0 | AL167: 0 | AM167: 0 | AN167: 0 | AO167: 0 | AP167: 0 | AR167: =IFERROR(IF(Simulador!$T$18=2,0,IF($AL167<=0.01,0,$AL167*Simulador!$W$17)),0)+IFERROR(IF(Simulador!$T$13=1,17,IF($AL167<=0.01,0,IF(Simulador!$D$24>0,Simulador!$D$24,Simulador!$N$25)*Simulador!$W$12)),0) -> 17 | AT167: 17 | AW167: 0 | AX167: 153
A168: 154 | B168: 0 | D168: 0 | F168: 0 | H168: 0 | L168: =IF(Simulador!$T$37<3,0,J168*Simulador!$W$35*1.16) -> 0 | N168: =IF(B168-H168=0,0,N166) -> 0 | R168: 0 | T168: =IFERROR(IF(Simulador!$T$18=2,0,IF($B168<=0,0,$B168*Simulador!$W$17)),0) -> 0 | V168: =IFERROR(IF($B168<=0,0,IF(Simulador!$T$13=1,0,IF(Simulador!$D$24>0,Simulador!$D$24,Simulador!$N$25)*Simulador!$W$12)),0) -> 0 | Y168: 0 | AA168: 12 | AB168: 10 | AC168: 0 | AD168: 0 | AE168: 0 | AF168: 0 | AG168: 0.105 | AJ168: 0 | AL168: 0 | AM168: 0 | AN168: 0 | AO168: 0 | AP168: 0 | AR168: =IFERROR(IF(Simulador!$T$18=2,0,IF($AL168<=0.01,0,$AL168*Simulador!$W$17)),0)+IFERROR(IF(Simulador!$T$13=1,17,IF($AL168<=0.01,0,IF(Simulador!$D$24>0,Simulador!$D$24,Simulador!$N$25)*Simulador!$W$12)),0) -> 17 | AT168: 17 | AW168: 0 | AX168: 154
A169: 155 | B169: 0 | D169: 0 | F169: 0 | H169: 0 | L169: =IF(Simulador!$T$37<3,0,J169*Simulador!$W$35*1.16) -> 0 | R169: 0 | T169: =IFERROR(IF(Simulador!$T$18=2,0,IF($B169<=0,0,$B169*Simulador!$W$17)),0) -> 0 | V169: =IFERROR(IF($B169<=0,0,IF(Simulador!$T$13=1,0,IF(Simulador!$D$24>0,Simulador!$D$24,Simulador!$N$25)*Simulador!$W$12)),0) -> 0 | Y169: 0 | AA169: 12 | AB169: 11 | AC169: 0 | AD169: 0 | AE169: 0 | AF169: 0 | AG169: 0.105 | AJ169: 0 | AL169: 0 | AM169: 0 | AN169: 0 | AO169: 0 | AP169: 0 | AR169: =IFERROR(IF(Simulador!$T$18=2,0,IF($AL169<=0.01,0,$AL169*Simulador!$W$17)),0)+IFERROR(IF(Simulador!$T$13=1,17,IF($AL169<=0.01,0,IF(Simulador!$D$24>0,Simulador!$D$24,Simulador!$N$25)*Simulador!$W$12)),0) -> 17 | AT169: 17 | AW169: 0 | AX169: 155
A170: 156 | B170: 0 | D170: 0 | F170: 0 | H170: 0 | L170: =IF(Simulador!$T$37<3,0,J170*Simulador!$W$35*1.16) -> 0 | N170: =IF(B170-H170=0,0,N168) -> 0 | R170: 0 | T170: =IFERROR(IF(Simulador!$T$18=2,0,IF($B170<=0,0,$B170*Simulador!$W$17)),0) -> 0 | V170: =IFERROR(IF($B170<=0,0,IF(Simulador!$T$13=1,0,IF(Simulador!$D$24>0,Simulador!$D$24,Simulador!$N$25)*Simulador!$W$12)),0) -> 0 | Y170: 0 | AA170: 13 | AB170: 0 | AC170: 0 | AD170: 0 | AE170: 0 | AF170: 0 | AG170: 0.105 | AJ170: 0 | AL170: 0 | AM170: 0 | AN170: 0 | AO170: 0 | AP170: 0 | AR170: =IFERROR(IF(Simulador!$T$18=2,0,IF($AL170<=0.01,0,$AL170*Simulador!$W$17)),0)+IFERROR(IF(Simulador!$T$13=1,17,IF($AL170<=0.01,0,IF(Simulador!$D$24>0,Simulador!$D$24,Simulador!$N$25)*Simulador!$W$12)),0) -> 17 | AT170: 17 | AW170: 0 | AX170: 156
A171: 157 | B171: 0 | D171: 0 | F171: 0 | H171: 0 | L171: =IF(Simulador!$T$37<3,0,J171*Simulador!$W$35*1.16) -> 0 | R171: 0 | T171: =IFERROR(IF(Simulador!$T$18=2,0,IF($B171<=0,0,$B171*Simulador!$W$17)),0) -> 0 | V171: =IFERROR(IF($B171<=0,0,IF(Simulador!$T$13=1,0,IF(Simulador!$D$24>0,Simulador!$D$24,Simulador!$N$25)*Simulador!$W$12)),0) -> 0 | Y171: 0 | AA171: 13 | AB171: 1 | AC171: 0 | AD171: 0 | AE171: 0 | AF171: 0 | AG171: 0.105 | AJ171: 0 | AL171: 0 | AM171: 0 | AN171: 0 | AO171: 0 | AP171: 0 | AR171: =IFERROR(IF(Simulador!$T$18=2,0,IF($AL171<=0.01,0,$AL171*Simulador!$W$17)),0)+IFERROR(IF(Simulador!$T$13=1,17,IF($AL171<=0.01,0,IF(Simulador!$D$24>0,Simulador!$D$24,Simulador!$N$25)*Simulador!$W$12)),0) -> 17 | AS171: =IF(AL171<=0,0,$AS$27) -> 0 | AT171: 17 | AW171: 0 | AX171: 157
A172: 158 | B172: 0 | D172: 0 | F172: 0 | H172: 0 | L172: =IF(Simulador!$T$37<3,0,J172*Simulador!$W$35*1.16) -> 0 | N172: =IF(B172-H172=0,0,N170*(1+(Simulador!$U$52))) -> 0 | R172: 0 | T172: =IFERROR(IF(Simulador!$T$18=2,0,IF($B172<=0,0,$B172*Simulador!$W$17)),0) -> 0 | V172: =IFERROR(IF($B172<=0,0,IF(Simulador!$T$13=1,0,IF(Simulador!$D$24>0,Simulador!$D$24,Simulador!$N$25)*Simulador!$W$12)),0) -> 0 | Y172: 0 | AA172: 13 | AB172: 2 | AC172: 0 | AD172: 0 | AE172: 0 | AF172: 0 | AG172: 0.105 | AJ172: 0 | AL172: 0 | AM172: 0 | AN172: 0 | AO172: 0 | AP172: 0 | AR172: =IFERROR(IF(Simulador!$T$18=2,0,IF($AL172<=0.01,0,$AL172*Simulador!$W$17)),0)+IFERROR(IF(Simulador!$T$13=1,17,IF($AL172<=0.01,0,IF(Simulador!$D$24>0,Simulador!$D$24,Simulador!$N$25)*Simulador!$W$12)),0) -> 17 | AT172: 17 | AW172: 0 | AX172: 158
A173: 159 | B173: 0 | D173: 0 | F173: 0 | H173: 0 | L173: =IF(Simulador!$T$37<3,0,J173*Simulador!$W$35*1.16) -> 0 | R173: 0 | T173: =IFERROR(IF(Simulador!$T$18=2,0,IF($B173<=0,0,$B173*Simulador!$W$17)),0) -> 0 | V173: =IFERROR(IF($B173<=0,0,IF(Simulador!$T$13=1,0,IF(Simulador!$D$24>0,Simulador!$D$24,Simulador!$N$25)*Simulador!$W$12)),0) -> 0 | Y173: 0 | AA173: 13 | AB173: 3 | AC173: 0 | AD173: 0 | AE173: 0 | AF173: 0 | AG173: 0.105 | AJ173: 0 | AL173: 0 | AM173: 0 | AN173: 0 | AO173: 0 | AP173: 0 | AR173: =IFERROR(IF(Simulador!$T$18=2,0,IF($AL173<=0.01,0,$AL173*Simulador!$W$17)),0)+IFERROR(IF(Simulador!$T$13=1,17,IF($AL173<=0.01,0,IF(Simulador!$D$24>0,Simulador!$D$24,Simulador!$N$25)*Simulador!$W$12)),0) -> 17 | AT173: 17 | AW173: 0 | AX173: 159
A174: 160 | B174: 0 | D174: 0 | F174: 0 | H174: 0 | L174: =IF(Simulador!$T$37<3,0,J174*Simulador!$W$35*1.16) -> 0 | N174: =IF(B174-H174=0,0,N172) -> 0 | R174: 0 | T174: =IFERROR(IF(Simulador!$T$18=2,0,IF($B174<=0,0,$B174*Simulador!$W$17)),0) -> 0 | V174: =IFERROR(IF($B174<=0,0,IF(Simulador!$T$13=1,0,IF(Simulador!$D$24>0,Simulador!$D$24,Simulador!$N$25)*Simulador!$W$12)),0) -> 0 | Y174: 0 | AA174: 13 | AB174: 4 | AC174: 0 | AD174: 0 | AE174: 0 | AF174: 0 | AG174: 0.105 | AJ174: 0 | AL174: 0 | AM174: 0 | AN174: 0 | AO174: 0 | AP174: 0 | AR174: =IFERROR(IF(Simulador!$T$18=2,0,IF($AL174<=0.01,0,$AL174*Simulador!$W$17)),0)+IFERROR(IF(Simulador!$T$13=1,17,IF($AL174<=0.01,0,IF(Simulador!$D$24>0,Simulador!$D$24,Simulador!$N$25)*Simulador!$W$12)),0) -> 17 | AT174: 17 | AW174: 0 | AX174: 160
A175: 161 | B175: 0 | D175: 0 | F175: 0 | H175: 0 | L175: =IF(Simulador!$T$37<3,0,J175*Simulador!$W$35*1.16) -> 0 | R175: 0 | T175: =IFERROR(IF(Simulador!$T$18=2,0,IF($B175<=0,0,$B175*Simulador!$W$17)),0) -> 0 | V175: =IFERROR(IF($B175<=0,0,IF(Simulador!$T$13=1,0,IF(Simulador!$D$24>0,Simulador!$D$24,Simulador!$N$25)*Simulador!$W$12)),0) -> 0 | Y175: 0 | AA175: 13 | AB175: 5 | AC175: 0 | AD175: 0 | AE175: 0 | AF175: 0 | AG175: 0.105 | AJ175: 0 | AL175: 0 | AM175: 0 | AN175: 0 | AO175: 0 | AP175: 0 | AR175: =IFERROR(IF(Simulador!$T$18=2,0,IF($AL175<=0.01,0,$AL175*Simulador!$W$17)),0)+IFERROR(IF(Simulador!$T$13=1,17,IF($AL175<=0.01,0,IF(Simulador!$D$24>0,Simulador!$D$24,Simulador!$N$25)*Simulador!$W$12)),0) -> 17 | AT175: 17 | AW175: 0 | AX175: 161
A176: 162 | B176: 0 | D176: 0 | F176: 0 | H176: 0 | L176: =IF(Simulador!$T$37<3,0,J176*Simulador!$W$35*1.16) -> 0 | N176: =IF(B176-H176=0,0,N174) -> 0 | R176: 0 | T176: =IFERROR(IF(Simulador!$T$18=2,0,IF($B176<=0,0,$B176*Simulador!$W$17)),0) -> 0 | V176: =IFERROR(IF($B176<=0,0,IF(Simulador!$T$13=1,0,IF(Simulador!$D$24>0,Simulador!$D$24,Simulador!$N$25)*Simulador!$W$12)),0) -> 0 | Y176: 0 | AA176: 13 | AB176: 6 | AC176: 0 | AD176: 0 | AE176: 0 | AF176: 0 | AG176: 0.105 | AJ176: 0 | AL176: 0 | AM176: 0 | AN176: 0 | AO176: 0 | AP176: 0 | AR176: =IFERROR(IF(Simulador!$T$18=2,0,IF($AL176<=0.01,0,$AL176*Simulador!$W$17)),0)+IFERROR(IF(Simulador!$T$13=1,17,IF($AL176<=0.01,0,IF(Simulador!$D$24>0,Simulador!$D$24,Simulador!$N$25)*Simulador!$W$12)),0) -> 17 | AT176: 17 | AW176: 0 | AX176: 162
A177: 163 | B177: 0 | D177: 0 | F177: 0 | H177: 0 | L177: =IF(Simulador!$T$37<3,0,J177*Simulador!$W$35*1.16) -> 0 | R177: 0 | T177: =IFERROR(IF(Simulador!$T$18=2,0,IF($B177<=0,0,$B177*Simulador!$W$17)),0) -> 0 | V177: =IFERROR(IF($B177<=0,0,IF(Simulador!$T$13=1,0,IF(Simulador!$D$24>0,Simulador!$D$24,Simulador!$N$25)*Simulador!$W$12)),0) -> 0 | Y177: 0 | AA177: 13 | AB177: 7 | AC177: 0 | AD177: 0 | AE177: 0 | AF177: 0 | AG177: 0.105 | AJ177: 0 | AL177: 0 | AM177: 0 | AN177: 0 | AO177: 0 | AP177: 0 | AR177: =IFERROR(IF(Simulador!$T$18=2,0,IF($AL177<=0.01,0,$AL177*Simulador!$W$17)),0)+IFERROR(IF(Simulador!$T$13=1,17,IF($AL177<=0.01,0,IF(Simulador!$D$24>0,Simulador!$D$24,Simulador!$N$25)*Simulador!$W$12)),0) -> 17 | AT177: 17 | AW177: 0 | AX177: 163
A178: 164 | B178: 0 | D178: 0 | F178: 0 | H178: 0 | L178: =IF(Simulador!$T$37<3,0,J178*Simulador!$W$35*1.16) -> 0 | N178: =IF(B178-H178=0,0,N176) -> 0 | R178: 0 | T178: =IFERROR(IF(Simulador!$T$18=2,0,IF($B178<=0,0,$B178*Simulador!$W$17)),0) -> 0 | V178: =IFERROR(IF($B178<=0,0,IF(Simulador!$T$13=1,0,IF(Simulador!$D$24>0,Simulador!$D$24,Simulador!$N$25)*Simulador!$W$12)),0) -> 0 | Y178: 0 | AA178: 13 | AB178: 8 | AC178: 0 | AD178: 0 | AE178: 0 | AF178: 0 | AG178: 0.105 | AJ178: 0 | AL178: 0 | AM178: 0 | AN178: 0 | AO178: 0 | AP178: 0 | AR178: =IFERROR(IF(Simulador!$T$18=2,0,IF($AL178<=0.01,0,$AL178*Simulador!$W$17)),0)+IFERROR(IF(Simulador!$T$13=1,17,IF($AL178<=0.01,0,IF(Simulador!$D$24>0,Simulador!$D$24,Simulador!$N$25)*Simulador!$W$12)),0) -> 17 | AT178: 17 | AW178: 0 | AX178: 164
A179: 165 | B179: 0 | D179: 0 | F179: 0 | H179: 0 | L179: =IF(Simulador!$T$37<3,0,J179*Simulador!$W$35*1.16) -> 0 | R179: 0 | T179: =IFERROR(IF(Simulador!$T$18=2,0,IF($B179<=0,0,$B179*Simulador!$W$17)),0) -> 0 | V179: =IFERROR(IF($B179<=0,0,IF(Simulador!$T$13=1,0,IF(Simulador!$D$24>0,Simulador!$D$24,Simulador!$N$25)*Simulador!$W$12)),0) -> 0 | Y179: 0 | AA179: 13 | AB179: 9 | AC179: 0 | AD179: 0 | AE179: 0 | AF179: 0 | AG179: 0.105 | AJ179: 0 | AL179: 0 | AM179: 0 | AN179: 0 | AO179: 0 | AP179: 0 | AR179: =IFERROR(IF(Simulador!$T$18=2,0,IF($AL179<=0.01,0,$AL179*Simulador!$W$17)),0)+IFERROR(IF(Simulador!$T$13=1,17,IF($AL179<=0.01,0,IF(Simulador!$D$24>0,Simulador!$D$24,Simulador!$N$25)*Simulador!$W$12)),0) -> 17 | AT179: 17 | AW179: 0 | AX179: 165
A180: 166 | B180: 0 | D180: 0 | F180: 0 | H180: 0 | L180: =IF(Simulador!$T$37<3,0,J180*Simulador!$W$35*1.16) -> 0 | N180: =IF(B180-H180=0,0,N178) -> 0 | R180: 0 | T180: =IFERROR(IF(Simulador!$T$18=2,0,IF($B180<=0,0,$B180*Simulador!$W$17)),0) -> 0 | V180: =IFERROR(IF($B180<=0,0,IF(Simulador!$T$13=1,0,IF(Simulador!$D$24>0,Simulador!$D$24,Simulador!$N$25)*Simulador!$W$12)),0) -> 0 | Y180: 0 | AA180: 13 | AB180: 10 | AC180: 0 | AD180: 0 | AE180: 0 | AF180: 0 | AG180: 0.105 | AJ180: 0 | AL180: 0 | AM180: 0 | AN180: 0 | AO180: 0 | AP180: 0 | AR180: =IFERROR(IF(Simulador!$T$18=2,0,IF($AL180<=0.01,0,$AL180*Simulador!$W$17)),0)+IFERROR(IF(Simulador!$T$13=1,17,IF($AL180<=0.01,0,IF(Simulador!$D$24>0,Simulador!$D$24,Simulador!$N$25)*Simulador!$W$12)),0) -> 17 | AT180: 17 | AW180: 0 | AX180: 166
A181: 167 | B181: 0 | D181: 0 | F181: 0 | H181: 0 | L181: =IF(Simulador!$T$37<3,0,J181*Simulador!$W$35*1.16) -> 0 | R181: 0 | T181: =IFERROR(IF(Simulador!$T$18=2,0,IF($B181<=0,0,$B181*Simulador!$W$17)),0) -> 0 | V181: =IFERROR(IF($B181<=0,0,IF(Simulador!$T$13=1,0,IF(Simulador!$D$24>0,Simulador!$D$24,Simulador!$N$25)*Simulador!$W$12)),0) -> 0 | Y181: 0 | AA181: 13 | AB181: 11 | AC181: 0 | AD181: 0 | AE181: 0 | AF181: 0 | AG181: 0.105 | AJ181: 0 | AL181: 0 | AM181: 0 | AN181: 0 | AO181: 0 | AP181: 0 | AR181: =IFERROR(IF(Simulador!$T$18=2,0,IF($AL181<=0.01,0,$AL181*Simulador!$W$17)),0)+IFERROR(IF(Simulador!$T$13=1,17,IF($AL181<=0.01,0,IF(Simulador!$D$24>0,Simulador!$D$24,Simulador!$N$25)*Simulador!$W$12)),0) -> 17 | AT181: 17 | AW181: 0 | AX181: 167
A182: 168 | B182: 0 | D182: 0 | F182: 0 | H182: 0 | L182: =IF(Simulador!$T$37<3,0,J182*Simulador!$W$35*1.16) -> 0 | N182: =IF(B182-H182=0,0,N180) -> 0 | R182: 0 | T182: =IFERROR(IF(Simulador!$T$18=2,0,IF($B182<=0,0,$B182*Simulador!$W$17)),0) -> 0 | V182: =IFERROR(IF($B182<=0,0,IF(Simulador!$T$13=1,0,IF(Simulador!$D$24>0,Simulador!$D$24,Simulador!$N$25)*Simulador!$W$12)),0) -> 0 | Y182: 0 | AA182: 14 | AB182: 0 | AC182: 0 | AD182: 0 | AE182: 0 | AF182: 0 | AG182: 0.105 | AJ182: 0 | AL182: 0 | AM182: 0 | AN182: 0 | AO182: 0 | AP182: 0 | AR182: =IFERROR(IF(Simulador!$T$18=2,0,IF($AL182<=0.01,0,$AL182*Simulador!$W$17)),0)+IFERROR(IF(Simulador!$T$13=1,17,IF($AL182<=0.01,0,IF(Simulador!$D$24>0,Simulador!$D$24,Simulador!$N$25)*Simulador!$W$12)),0) -> 17 | AT182: 17 | AW182: 0 | AX182: 168
A183: 169 | B183: 0 | D183: 0 | F183: 0 | H183: 0 | L183: =IF(Simulador!$T$37<3,0,J183*Simulador!$W$35*1.16) -> 0 | R183: 0 | T183: =IFERROR(IF(Simulador!$T$18=2,0,IF($B183<=0,0,$B183*Simulador!$W$17)),0) -> 0 | V183: =IFERROR(IF($B183<=0,0,IF(Simulador!$T$13=1,0,IF(Simulador!$D$24>0,Simulador!$D$24,Simulador!$N$25)*Simulador!$W$12)),0) -> 0 | Y183: 0 | AA183: 14 | AB183: 1 | AC183: 0 | AD183: 0 | AE183: 0 | AF183: 0 | AG183: 0.105 | AJ183: 0 | AL183: 0 | AM183: 0 | AN183: 0 | AO183: 0 | AP183: 0 | AR183: =IFERROR(IF(Simulador!$T$18=2,0,IF($AL183<=0.01,0,$AL183*Simulador!$W$17)),0)+IFERROR(IF(Simulador!$T$13=1,17,IF($AL183<=0.01,0,IF(Simulador!$D$24>0,Simulador!$D$24,Simulador!$N$25)*Simulador!$W$12)),0) -> 17 | AS183: =IF(AL183<=0,0,$AS$27) -> 0 | AT183: 17 | AW183: 0 | AX183: 169
A184: 170 | B184: 0 | D184: 0 | F184: 0 | H184: 0 | L184: =IF(Simulador!$T$37<3,0,J184*Simulador!$W$35*1.16) -> 0 | N184: =IF(B184-H184=0,0,N182*(1+(Simulador!$U$52))) -> 0 | R184: 0 | T184: =IFERROR(IF(Simulador!$T$18=2,0,IF($B184<=0,0,$B184*Simulador!$W$17)),0) -> 0 | V184: =IFERROR(IF($B184<=0,0,IF(Simulador!$T$13=1,0,IF(Simulador!$D$24>0,Simulador!$D$24,Simulador!$N$25)*Simulador!$W$12)),0) -> 0 | Y184: 0 | AA184: 14 | AB184: 2 | AC184: 0 | AD184: 0 | AE184: 0 | AF184: 0 | AG184: 0.105 | AJ184: 0 | AL184: 0 | AM184: 0 | AN184: 0 | AO184: 0 | AP184: 0 | AR184: =IFERROR(IF(Simulador!$T$18=2,0,IF($AL184<=0.01,0,$AL184*Simulador!$W$17)),0)+IFERROR(IF(Simulador!$T$13=1,17,IF($AL184<=0.01,0,IF(Simulador!$D$24>0,Simulador!$D$24,Simulador!$N$25)*Simulador!$W$12)),0) -> 17 | AT184: 17 | AW184: 0 | AX184: 170
A185: 171 | B185: 0 | D185: 0 | F185: 0 | H185: 0 | L185: =IF(Simulador!$T$37<3,0,J185*Simulador!$W$35*1.16) -> 0 | R185: 0 | T185: =IFERROR(IF(Simulador!$T$18=2,0,IF($B185<=0,0,$B185*Simulador!$W$17)),0) -> 0 | V185: =IFERROR(IF($B185<=0,0,IF(Simulador!$T$13=1,0,IF(Simulador!$D$24>0,Simulador!$D$24,Simulador!$N$25)*Simulador!$W$12)),0) -> 0 | Y185: 0 | AA185: 14 | AB185: 3 | AC185: 0 | AD185: 0 | AE185: 0 | AF185: 0 | AG185: 0.105 | AJ185: 0 | AL185: 0 | AM185: 0 | AN185: 0 | AO185: 0 | AP185: 0 | AR185: =IFERROR(IF(Simulador!$T$18=2,0,IF($AL185<=0.01,0,$AL185*Simulador!$W$17)),0)+IFERROR(IF(Simulador!$T$13=1,17,IF($AL185<=0.01,0,IF(Simulador!$D$24>0,Simulador!$D$24,Simulador!$N$25)*Simulador!$W$12)),0) -> 17 | AT185: 17 | AW185: 0 | AX185: 171
A186: 172 | B186: 0 | D186: 0 | F186: 0 | H186: 0 | L186: =IF(Simulador!$T$37<3,0,J186*Simulador!$W$35*1.16) -> 0 | N186: =IF(B186-H186=0,0,N184) -> 0 | R186: 0 | T186: =IFERROR(IF(Simulador!$T$18=2,0,IF($B186<=0,0,$B186*Simulador!$W$17)),0) -> 0 | V186: =IFERROR(IF($B186<=0,0,IF(Simulador!$T$13=1,0,IF(Simulador!$D$24>0,Simulador!$D$24,Simulador!$N$25)*Simulador!$W$12)),0) -> 0 | Y186: 0 | AA186: 14 | AB186: 4 | AC186: 0 | AD186: 0 | AE186: 0 | AF186: 0 | AG186: 0.105 | AJ186: 0 | AL186: 0 | AM186: 0 | AN186: 0 | AO186: 0 | AP186: 0 | AR186: =IFERROR(IF(Simulador!$T$18=2,0,IF($AL186<=0.01,0,$AL186*Simulador!$W$17)),0)+IFERROR(IF(Simulador!$T$13=1,17,IF($AL186<=0.01,0,IF(Simulador!$D$24>0,Simulador!$D$24,Simulador!$N$25)*Simulador!$W$12)),0) -> 17 | AT186: 17 | AW186: 0 | AX186: 172
A187: 173 | B187: 0 | D187: 0 | F187: 0 | H187: 0 | L187: =IF(Simulador!$T$37<3,0,J187*Simulador!$W$35*1.16) -> 0 | R187: 0 | T187: =IFERROR(IF(Simulador!$T$18=2,0,IF($B187<=0,0,$B187*Simulador!$W$17)),0) -> 0 | V187: =IFERROR(IF($B187<=0,0,IF(Simulador!$T$13=1,0,IF(Simulador!$D$24>0,Simulador!$D$24,Simulador!$N$25)*Simulador!$W$12)),0) -> 0 | Y187: 0 | AA187: 14 | AB187: 5 | AC187: 0 | AD187: 0 | AE187: 0 | AF187: 0 | AG187: 0.105 | AJ187: 0 | AL187: 0 | AM187: 0 | AN187: 0 | AO187: 0 | AP187: 0 | AR187: =IFERROR(IF(Simulador!$T$18=2,0,IF($AL187<=0.01,0,$AL187*Simulador!$W$17)),0)+IFERROR(IF(Simulador!$T$13=1,17,IF($AL187<=0.01,0,IF(Simulador!$D$24>0,Simulador!$D$24,Simulador!$N$25)*Simulador!$W$12)),0) -> 17 | AT187: 17 | AW187: 0 | AX187: 173
A188: 174 | B188: 0 | D188: 0 | F188: 0 | H188: 0 | L188: =IF(Simulador!$T$37<3,0,J188*Simulador!$W$35*1.16) -> 0 | N188: =IF(B188-H188=0,0,N186) -> 0 | R188: 0 | T188: =IFERROR(IF(Simulador!$T$18=2,0,IF($B188<=0,0,$B188*Simulador!$W$17)),0) -> 0 | V188: =IFERROR(IF($B188<=0,0,IF(Simulador!$T$13=1,0,IF(Simulador!$D$24>0,Simulador!$D$24,Simulador!$N$25)*Simulador!$W$12)),0) -> 0 | Y188: 0 | AA188: 14 | AB188: 6 | AC188: 0 | AD188: 0 | AE188: 0 | AF188: 0 | AG188: 0.105 | AJ188: 0 | AL188: 0 | AM188: 0 | AN188: 0 | AO188: 0 | AP188: 0 | AR188: =IFERROR(IF(Simulador!$T$18=2,0,IF($AL188<=0.01,0,$AL188*Simulador!$W$17)),0)+IFERROR(IF(Simulador!$T$13=1,17,IF($AL188<=0.01,0,IF(Simulador!$D$24>0,Simulador!$D$24,Simulador!$N$25)*Simulador!$W$12)),0) -> 17 | AT188: 17 | AW188: 0 | AX188: 174
A189: 175 | B189: 0 | D189: 0 | F189: 0 | H189: 0 | L189: =IF(Simulador!$T$37<3,0,J189*Simulador!$W$35*1.16) -> 0 | R189: 0 | T189: =IFERROR(IF(Simulador!$T$18=2,0,IF($B189<=0,0,$B189*Simulador!$W$17)),0) -> 0 | V189: =IFERROR(IF($B189<=0,0,IF(Simulador!$T$13=1,0,IF(Simulador!$D$24>0,Simulador!$D$24,Simulador!$N$25)*Simulador!$W$12)),0) -> 0 | Y189: 0 | AA189: 14 | AB189: 7 | AC189: 0 | AD189: 0 | AE189: 0 | AF189: 0 | AG189: 0.105 | AJ189: 0 | AL189: 0 | AM189: 0 | AN189: 0 | AO189: 0 | AP189: 0 | AR189: =IFERROR(IF(Simulador!$T$18=2,0,IF($AL189<=0.01,0,$AL189*Simulador!$W$17)),0)+IFERROR(IF(Simulador!$T$13=1,17,IF($AL189<=0.01,0,IF(Simulador!$D$24>0,Simulador!$D$24,Simulador!$N$25)*Simulador!$W$12)),0) -> 17 | AT189: 17 | AW189: 0 | AX189: 175
A190: 176 | B190: 0 | D190: 0 | F190: 0 | H190: 0 | L190: =IF(Simulador!$T$37<3,0,J190*Simulador!$W$35*1.16) -> 0 | N190: =IF(B190-H190=0,0,N188) -> 0 | R190: 0 | T190: =IFERROR(IF(Simulador!$T$18=2,0,IF($B190<=0,0,$B190*Simulador!$W$17)),0) -> 0 | V190: =IFERROR(IF($B190<=0,0,IF(Simulador!$T$13=1,0,IF(Simulador!$D$24>0,Simulador!$D$24,Simulador!$N$25)*Simulador!$W$12)),0) -> 0 | Y190: 0 | AA190: 14 | AB190: 8 | AC190: 0 | AD190: 0 | AE190: 0 | AF190: 0 | AG190: 0.105 | AJ190: 0 | AL190: 0 | AM190: 0 | AN190: 0 | AO190: 0 | AP190: 0 | AR190: =IFERROR(IF(Simulador!$T$18=2,0,IF($AL190<=0.01,0,$AL190*Simulador!$W$17)),0)+IFERROR(IF(Simulador!$T$13=1,17,IF($AL190<=0.01,0,IF(Simulador!$D$24>0,Simulador!$D$24,Simulador!$N$25)*Simulador!$W$12)),0) -> 17 | AT190: 17 | AW190: 0 | AX190: 176
A191: 177 | B191: 0 | D191: 0 | F191: 0 | H191: 0 | L191: =IF(Simulador!$T$37<3,0,J191*Simulador!$W$35*1.16) -> 0 | R191: 0 | T191: =IFERROR(IF(Simulador!$T$18=2,0,IF($B191<=0,0,$B191*Simulador!$W$17)),0) -> 0 | V191: =IFERROR(IF($B191<=0,0,IF(Simulador!$T$13=1,0,IF(Simulador!$D$24>0,Simulador!$D$24,Simulador!$N$25)*Simulador!$W$12)),0) -> 0 | Y191: 0 | AA191: 14 | AB191: 9 | AC191: 0 | AD191: 0 | AE191: 0 | AF191: 0 | AG191: 0.105 | AJ191: 0 | AL191: 0 | AM191: 0 | AN191: 0 | AO191: 0 | AP191: 0 | AR191: =IFERROR(IF(Simulador!$T$18=2,0,IF($AL191<=0.01,0,$AL191*Simulador!$W$17)),0)+IFERROR(IF(Simulador!$T$13=1,17,IF($AL191<=0.01,0,IF(Simulador!$D$24>0,Simulador!$D$24,Simulador!$N$25)*Simulador!$W$12)),0) -> 17 | AT191: 17 | AW191: 0 | AX191: 177
A192: 178 | B192: 0 | D192: 0 | F192: 0 | H192: 0 | L192: =IF(Simulador!$T$37<3,0,J192*Simulador!$W$35*1.16) -> 0 | N192: =IF(B192-H192=0,0,N190) -> 0 | R192: 0 | T192: =IFERROR(IF(Simulador!$T$18=2,0,IF($B192<=0,0,$B192*Simulador!$W$17)),0) -> 0 | V192: =IFERROR(IF($B192<=0,0,IF(Simulador!$T$13=1,0,IF(Simulador!$D$24>0,Simulador!$D$24,Simulador!$N$25)*Simulador!$W$12)),0) -> 0 | Y192: 0 | AA192: 14 | AB192: 10 | AC192: 0 | AD192: 0 | AE192: 0 | AF192: 0 | AG192: 0.105 | AJ192: 0 | AL192: 0 | AM192: 0 | AN192: 0 | AO192: 0 | AP192: 0 | AR192: =IFERROR(IF(Simulador!$T$18=2,0,IF($AL192<=0.01,0,$AL192*Simulador!$W$17)),0)+IFERROR(IF(Simulador!$T$13=1,17,IF($AL192<=0.01,0,IF(Simulador!$D$24>0,Simulador!$D$24,Simulador!$N$25)*Simulador!$W$12)),0) -> 17 | AT192: 17 | AW192: 0 | AX192: 178
A193: 179 | B193: 0 | D193: 0 | F193: 0 | H193: 0 | L193: =IF(Simulador!$T$37<3,0,J193*Simulador!$W$35*1.16) -> 0 | R193: 0 | T193: =IFERROR(IF(Simulador!$T$18=2,0,IF($B193<=0,0,$B193*Simulador!$W$17)),0) -> 0 | V193: =IFERROR(IF($B193<=0,0,IF(Simulador!$T$13=1,0,IF(Simulador!$D$24>0,Simulador!$D$24,Simulador!$N$25)*Simulador!$W$12)),0) -> 0 | Y193: 0 | AA193: 14 | AB193: 11 | AC193: 0 | AD193: 0 | AE193: 0 | AF193: 0 | AG193: 0.105 | AJ193: 0 | AL193: 0 | AM193: 0 | AN193: 0 | AO193: 0 | AP193: 0 | AR193: =IFERROR(IF(Simulador!$T$18=2,0,IF($AL193<=0.01,0,$AL193*Simulador!$W$17)),0)+IFERROR(IF(Simulador!$T$13=1,17,IF($AL193<=0.01,0,IF(Simulador!$D$24>0,Simulador!$D$24,Simulador!$N$25)*Simulador!$W$12)),0) -> 17 | AT193: 17 | AW193: 0 | AX193: 179
A194: 180 | B194: 0 | D194: 0 | F194: 0 | H194: 0 | L194: =IF(Simulador!$T$37<3,0,J194*Simulador!$W$35*1.16) -> 0 | N194: =IF(B194-H194=0,0,N192) -> 0 | R194: 0 | T194: =IFERROR(IF(Simulador!$T$18=2,0,IF($B194<=0,0,$B194*Simulador!$W$17)),0) -> 0 | V194: =IFERROR(IF($B194<=0,0,IF(Simulador!$T$13=1,0,IF(Simulador!$D$24>0,Simulador!$D$24,Simulador!$N$25)*Simulador!$W$12)),0) -> 0 | Y194: 0 | AA194: 15 | AB194: 0 | AC194: 0 | AD194: 0 | AE194: 0 | AF194: 0 | AG194: 0.105 | AJ194: 0 | AL194: 0 | AM194: 0 | AN194: 0 | AO194: 0 | AP194: 0 | AR194: =IFERROR(IF(Simulador!$T$18=2,0,IF($AL194<=0.01,0,$AL194*Simulador!$W$17)),0)+IFERROR(IF(Simulador!$T$13=1,17,IF($AL194<=0.01,0,IF(Simulador!$D$24>0,Simulador!$D$24,Simulador!$N$25)*Simulador!$W$12)),0) -> 17 | AT194: 17 | AW194: 0 | AX194: 180
A195: 181 | B195: 0 | D195: 0 | F195: 0 | H195: 0 | L195: =IF(Simulador!$T$37<3,0,J195*Simulador!$W$35*1.16) -> 0 | R195: 0 | T195: =IFERROR(IF(Simulador!$T$18=2,0,IF($B195<=0,0,$B195*Simulador!$W$17)),0) -> 0 | V195: =IFERROR(IF($B195<=0,0,IF(Simulador!$T$13=1,0,IF(Simulador!$D$24>0,Simulador!$D$24,Simulador!$N$25)*Simulador!$W$12)),0) -> 0 | Y195: 0 | AA195: 15 | AB195: 1 | AC195: 0 | AD195: 0 | AE195: 0 | AF195: 0 | AG195: 0.105 | AJ195: 0 | AL195: 0 | AM195: 0 | AN195: 0 | AO195: 0 | AP195: 0 | AR195: =IFERROR(IF(Simulador!$T$18=2,0,IF($AL195<=0.01,0,$AL195*Simulador!$W$17)),0)+IFERROR(IF(Simulador!$T$13=1,17,IF($AL195<=0.01,0,IF(Simulador!$D$24>0,Simulador!$D$24,Simulador!$N$25)*Simulador!$W$12)),0) -> 17 | AS195: =IF(AL195<=0,0,$AS$27) -> 0 | AT195: 17 | AW195: 0 | AX195: 181
A196: 182 | B196: 0 | D196: 0 | F196: 0 | H196: 0 | L196: =IF(Simulador!$T$37<3,0,J196*Simulador!$W$35*1.16) -> 0 | N196: =IF(B196-H196=0,0,N194*(1+(Simulador!$U$52))) -> 0 | R196: 0 | T196: =IFERROR(IF(Simulador!$T$18=2,0,IF($B196<=0,0,$B196*Simulador!$W$17)),0) -> 0 | V196: =IFERROR(IF($B196<=0,0,IF(Simulador!$T$13=1,0,IF(Simulador!$D$24>0,Simulador!$D$24,Simulador!$N$25)*Simulador!$W$12)),0) -> 0 | Y196: 0 | AA196: 15 | AB196: 2 | AC196: 0 | AD196: 0 | AE196: 0 | AF196: 0 | AG196: 0.105 | AJ196: 0 | AL196: 0 | AM196: 0 | AN196: 0 | AO196: 0 | AP196: 0 | AR196: =IFERROR(IF(Simulador!$T$18=2,0,IF($AL196<=0.01,0,$AL196*Simulador!$W$17)),0)+IFERROR(IF(Simulador!$T$13=1,17,IF($AL196<=0.01,0,IF(Simulador!$D$24>0,Simulador!$D$24,Simulador!$N$25)*Simulador!$W$12)),0) -> 17 | AT196: 17 | AW196: 0 | AX196: 182
A197: 183 | B197: 0 | D197: 0 | F197: 0 | H197: 0 | L197: =IF(Simulador!$T$37<3,0,J197*Simulador!$W$35*1.16) -> 0 | R197: 0 | T197: =IFERROR(IF(Simulador!$T$18=2,0,IF($B197<=0,0,$B197*Simulador!$W$17)),0) -> 0 | V197: =IFERROR(IF($B197<=0,0,IF(Simulador!$T$13=1,0,IF(Simulador!$D$24>0,Simulador!$D$24,Simulador!$N$25)*Simulador!$W$12)),0) -> 0 | Y197: 0 | AA197: 15 | AB197: 3 | AC197: 0 | AD197: 0 | AE197: 0 | AF197: 0 | AG197: 0.105 | AJ197: 0 | AL197: 0 | AM197: 0 | AN197: 0 | AO197: 0 | AP197: 0 | AR197: =IFERROR(IF(Simulador!$T$18=2,0,IF($AL197<=0.01,0,$AL197*Simulador!$W$17)),0)+IFERROR(IF(Simulador!$T$13=1,17,IF($AL197<=0.01,0,IF(Simulador!$D$24>0,Simulador!$D$24,Simulador!$N$25)*Simulador!$W$12)),0) -> 17 | AT197: 17 | AW197: 0 | AX197: 183
A198: 184 | B198: 0 | D198: 0 | F198: 0 | H198: 0 | L198: =IF(Simulador!$T$37<3,0,J198*Simulador!$W$35*1.16) -> 0 | N198: =IF(B198-H198=0,0,N196) -> 0 | R198: 0 | T198: =IFERROR(IF(Simulador!$T$18=2,0,IF($B198<=0,0,$B198*Simulador!$W$17)),0) -> 0 | V198: =IFERROR(IF($B198<=0,0,IF(Simulador!$T$13=1,0,IF(Simulador!$D$24>0,Simulador!$D$24,Simulador!$N$25)*Simulador!$W$12)),0) -> 0 | Y198: 0 | AA198: 15 | AB198: 4 | AC198: 0 | AD198: 0 | AE198: 0 | AF198: 0 | AG198: 0.105 | AJ198: 0 | AL198: 0 | AM198: 0 | AN198: 0 | AO198: 0 | AP198: 0 | AR198: =IFERROR(IF(Simulador!$T$18=2,0,IF($AL198<=0.01,0,$AL198*Simulador!$W$17)),0)+IFERROR(IF(Simulador!$T$13=1,17,IF($AL198<=0.01,0,IF(Simulador!$D$24>0,Simulador!$D$24,Simulador!$N$25)*Simulador!$W$12)),0) -> 17 | AT198: 17 | AW198: 0 | AX198: 184
A199: 185 | B199: 0 | D199: 0 | F199: 0 | H199: 0 | L199: =IF(Simulador!$T$37<3,0,J199*Simulador!$W$35*1.16) -> 0 | R199: 0 | T199: =IFERROR(IF(Simulador!$T$18=2,0,IF($B199<=0,0,$B199*Simulador!$W$17)),0) -> 0 | V199: =IFERROR(IF($B199<=0,0,IF(Simulador!$T$13=1,0,IF(Simulador!$D$24>0,Simulador!$D$24,Simulador!$N$25)*Simulador!$W$12)),0) -> 0 | Y199: 0 | AA199: 15 | AB199: 5 | AC199: 0 | AD199: 0 | AE199: 0 | AF199: 0 | AG199: 0.105 | AJ199: 0 | AL199: 0 | AM199: 0 | AN199: 0 | AO199: 0 | AP199: 0 | AR199: =IFERROR(IF(Simulador!$T$18=2,0,IF($AL199<=0.01,0,$AL199*Simulador!$W$17)),0)+IFERROR(IF(Simulador!$T$13=1,17,IF($AL199<=0.01,0,IF(Simulador!$D$24>0,Simulador!$D$24,Simulador!$N$25)*Simulador!$W$12)),0) -> 17 | AT199: 17 | AW199: 0 | AX199: 185
A200: 186 | B200: 0 | D200: 0 | F200: 0 | H200: 0 | L200: =IF(Simulador!$T$37<3,0,J200*Simulador!$W$35*1.16) -> 0 | N200: =IF(B200-H200=0,0,N198) -> 0 | R200: 0 | T200: =IFERROR(IF(Simulador!$T$18=2,0,IF($B200<=0,0,$B200*Simulador!$W$17)),0) -> 0 | V200: =IFERROR(IF($B200<=0,0,IF(Simulador!$T$13=1,0,IF(Simulador!$D$24>0,Simulador!$D$24,Simulador!$N$25)*Simulador!$W$12)),0) -> 0 | Y200: 0 | AA200: 15 | AB200: 6 | AC200: 0 | AD200: 0 | AE200: 0 | AF200: 0 | AG200: 0.105 | AJ200: 0 | AL200: 0 | AM200: 0 | AN200: 0 | AO200: 0 | AP200: 0 | AR200: =IFERROR(IF(Simulador!$T$18=2,0,IF($AL200<=0.01,0,$AL200*Simulador!$W$17)),0)+IFERROR(IF(Simulador!$T$13=1,17,IF($AL200<=0.01,0,IF(Simulador!$D$24>0,Simulador!$D$24,Simulador!$N$25)*Simulador!$W$12)),0) -> 17 | AT200: 17 | AW200: 0 | AX200: 186
... 57 more rows

Sheet Carat_cont
A2: Carátula de Crédito
D3: Nombre del Acreditado y/o Coacreditado:
D4: =IF(Simulador!G12="","",Simulador!G12) -> 
D5: Número de Crédito:
A7: Nombre comercial del producto: | B7: =VLOOKUP(Simulador!$T$28,Simulador!$U$27:$W$29,2,0) -> Fovissste para todos Individual
A9: Tipo de Crédito: Crédito Hipotecario
A10: CAT | B10: TASA DE INTERES | C10: MONTO O LINEA DE | D10: MONTO TOTAL A PAGAR O
A11: (Costo Anual Total) | B11: ANUAL ORDINARIA | C11: CRÉDITO | D11: MINIMO A PAGAR
A12: =Simulador!I42 -> 0 | B12: =IFERROR(IF(Simulador!D23=0,0,Simulador!I44),0) -> 0 | C12: =IFERROR(IF(Simulador!O27="",Simulador!I26,Simulador!O27),0) -> 0 | D12: =IFERROR(SUM('Tabla de amortizacion'!$Y$15:$Y$254),0) -> 0
A13: Sin IVA | D13: Moneda en
A14: Para fines | D14: Pesos
A15: informativos y de | D15: Mexicanos
A16: comparación | B16: Tasa Fija
A17: PLAZO DEL CRÉDITO: | B17: Fecha Límite de pago:
A18: =Simulador!T67 -> 20 años | B18: =IF(Simulador!U35=2,"Tu fecha de pago es el día 3 de cada mes",IF(AND(DAY(Simulador!L15)>=3,DAY(Simulador!L15)<=16),"Si tu fecha de corte es el día 3, tu fecha de pago es el día 3 de cada mes.","Si tu fecha de corte es el día 17, tu fecha de pago es el día 17 de cada mes.")) -> Tu fecha de pago es el día 3 de cada mes
B19: Fecha de corte:
B20: =IF(Simulador!U35=2,"Tu fecha de corte será el día 3 de cada mes",IF(AND(DAY(Simulador!L15)>=3,DAY(Simulador!L15)<=16),"Si tu fecha de disposición es entre el dia 3 y 16, tu fecha de corte será el día 3 de cada mes.","Si tu fecha de disposición es entre el día 17 y 2, tu fecha de corte será el día 17 de cada mes.")) -> Tu fecha de corte será el día 3 de cada mes
A21: COMISIONES RELEVANTES
A22: ="Apertura: "&TEXT(Simulador!O34,"$###,###.00") -> Apertura: $.00 | C22: =IF(Simulador!T28=2,"Cobranza: $350.00 más IVA por pago tardío","Cobranza: $500.00 más IVA por pago tardío") -> Cobranza: $500.00 más IVA por pago tardío
A23: ="Prepago: "&IF(Simulador!T37=1,"0% ","3% ")&"más IVA sobre el monto anticipado" -> Prepago: 0% más IVA sobre el monto anticipado | C23: Para otras comisiones consulte la cláusula décimo tercera
A24: ADVERTENCIAS
A26: Incumplir tus obligaciones te puede generar comisiones e intereses moratorios.
A27: Contratar créditos que excedan tu capacidad de pago afecta tu historial crediticio.
A28: El avalista, obligado solidario o coacreditado responderá como obligado principal por el total del pago frente a la Institución Financiera.
A29: SEGUROS
A30: Seguros Obligatorios: | B30: Aseguradora: | C30: Cláusulas:
A32: Vida y Desempleo | B32: Cardif México Seguros de Vida, S.A. de C.V. | C32: Vigésima Cuarta
C33: Scotiabank Inverlat le ofrece al acreditado y/o coacreditado, la posibilidad de contratar a nombre de este (os) último(s) los seguros establecidos en la cláusula vigésima cuarta. Lo anterior sin perjuicio del derecho innegable que el cliente tiene de contratarlos a través de terceros.
A34: Daños y Responsabilidad Civil | B34: Cardif México Seguros de Vida, S.A. de C.V.
A37: ESTADO DE CUENTA
A38: Enviar a Domicilio ü Consulta vía Internet ___ Envio por Correo Electrónico ___
A39: Aclaraciones y reclamaciones:
A40: Unidad Especializada de Aclaraciones:
A41: Domicilio: Río Usumacinta S/N, esq. con Fernando Montes de Oca, Col. La Presita, Municipio de Cuautitlán Izcalli, Estado de México, C.P. 54763
A42: Teléfono: (55) 5123 0990
A43: Correo electrónico: une@scotiabank.com.mx
A44: Página de Internet: www.scotiabank.com.mx
A45: Registro de Contratos de Adhesión Núm: | C45: =VLOOKUP(Simulador!$T$28,Simulador!$U$27:$W$29,3,0) -> 0319-138-034644/07-00094-0124
A46: Comisión Nacional para la Protección y Defensa de los Usuarios de Servicios Financieros (CONDUSEF):
A47: Teléfono: 800 999 8080 y (55) 5340 0999. Página de Internet. www.condusef.gob.mx

Sheet RECAS
A1: =Simulador!$U$35&"-"&Simulador!$T$53&"-"&IF(OR(Simulador!$D$44>0,Simulador!$D$46>0),2,1) -> 2--1 | B1: RECAS
A2: Clave | B2: No. | C2: Nombre | D2: RECA | E2: Fecha de expedición | F2: Tipo Crédito | G2: Esquema | H2: Mancomunado
B3: 42 | C3: Fovissste para todos Individual | D3: 0319-138-034644/07-00094-0124 | E3: 2024-01-15
B4: 43 | C4: Fovissste para todos Mancomunado | D4: 0319-138-034645/07-00095-0124 | E4: 2024-01-15

Sheet Pol (hidden)
J1: http://mxmtyipr1as2029:90/intranet/normatividad/Manuales%20Publicados/92EF8FF4A3C8837A8625798F005DF729.aspx
A2: A) PORCENTAJE DE AFORO VS. PRODUCTO PARA CRÉDITOS MENORES O IGUALES A $5,000,000 | J2: Visión General del Manual de Créditos al Menudeo, Crédito Hipotecario
A3: El Aforo estará alineado al producto que se desee adquirir vs Índice de Riesgo, acorde a lo siguiente:
A4: IR | B4: VALORA Y PAGOS OPORTUNOS
B5: Adquisición (1) | F5: Liquidez Vivienda Terrenos | G5: Construcción / Renovación II, III y IV | H5: Renovación I
B6: Empleados | C6: Empleados | D6: Independientes | E6: Vivienda
B7: con apoyo | C7: sin apoyo | E7: Descanso
A8: 1 | B8: 0.95 | C8: 0.95 | D8: 0.9 | E8: 0.65 | F8: Hasta el 50% de acuerdo al valor del avalúo de la garantía. | G8: Hasta el 70% del valor proyectado (o de referencia) de la vivienda o el 100% del valor de construcción, el menor. | H8: Hasta el 70% de acuerdo al valor del avalúo de la garantía.
A9: 2 | B9: 0.95 | C9: 0.9 | E9: 0.65
A10: 3 | C10: 0.85 | D10: 0.85 | E10: 0.5 | G10: Nota: en el apartado A.7 se muestra la metodología de cálculo para valor proyectado o de referencia.
A11: 4 | B11: 0.85 | C11: 0.8 | D11: 0.75 | E11: 0.5
A12: 5 | B12: 0.8 | C12: 0.7 | D12: 0.5 | E12: 0.5
B16: B) AFORO PARA CRÉDITOS MAYORES A $5,000,000:
B18: Para créditos que superen los 5,000,000, el Aforo máximo está en función del importe del crédito, como se indica a continuación:
B19: ADQUISICIÓN
B20: Índice de Riesgo / Rango del crédito | C20: Mayor a $5 MDP hasta $6.5 MDP | D20: Mayor a $6.5 MDP hasta $8 MDP | E20: Mayor a $8 MDP
B21: 1 | C21: 0.8 | D21: 0.8 | E21: 0.65
B22: 2
B23: 3 | C23: 0.7 | D23: 0.7 | E23: 0.55
B24: 4 | C24: 0.65 | D24: 0.55
B25: 5 | C25: 0.5 | D25: 0.5 | E25: 0.5
B27: CRÉDITOS DE CONSTRUCCIÓN Y RENOVACIÓN
B28: Índice de Riesgo / Rango del crédito | C28: Mayor a $5 MDP Menor o igual a $6.5 MDP | D28: Mayor a $6.5 MDP
B29: 1 | C29: 0.7 | D29: 0.65
B30: 2
B31: 3 | C31: 0.65
B32: 4
B33: 5
B34: Nota: Para CrediLiquidez, el aforo será de acuerdo a la tabla del inciso A)
B53: 51 | C53: Crediliquidez Libre Valora | D53: 0319-138-027732/02-04095-0717 | E53: 2017-07-28
B54: 52 | C54: Crediliquidez Libre Hipoteca 7X5 | D54: 0319-138-027733/02-04096-0717 | E54: 2017-07-28
B55: 53 | C55: Crediliquidez Libre Pagos Oportunos | D55: 0319-138-027734/02-04097-0717 | E55: 2017-07-28
B61: Pagos Oprtunos (Versión Incorrecta)
B72: 7x5
A82: A aparti del 05 de abril 2017
A84: Esquemas | B84: Valora
A85: Plazo / (IR) | B85: 1+ | C85: 1 | D85: 2 | E85: 3 | F85: 4 | G85: R
A86: Tasa | B86: 0.0975 | C86: 0.1025 | D86: 0.1075 | E86: 0.11 | F86: 0.115 | G86: 0.1175
A87: PPM 20 años | B87: 8.48 | C87: 8.85 | D87: 9.27 | E87: 9.5 | F87: 9.95 | G87: 10.15
A88: PPM 15 años | B88: 9.58 | C88: 9.84 | D88: 10.14 | E88: 10.51 | F88: 10.69 | G88: 10.98
A89: PPM 10 años | B89: 12.06 | C89: 12.32 | D89: 12.63 | E89: 12.98 | F89: 13.2 | G89: 13.46
A90: Inc. Anual (%) | B90: 2.7 | C90: 2.7 | D90: 2.6 | E90: 2.1 | F90: 2.1 | G90: 1.7
A92: Pagos Oprtunos
A93: Año | B93: 7 años | C93: 10 años | D93: 15 años | E93: 20 años
A94: 1 | B94: 0.103 | C94: 0.104 | D94: 0.106 | E94: 0.1075
A95: 2 | B95: 0.101 | C95: 0.102 | D95: 10.40% | E95: 0.1055
A96: 3 | B96: 0.099 | C96: 0.1 | D96: 10.20% | E96: 0.1035
A97: 4 | B97: 0.097 | C97: 0.098 | D97: 10.00% | E97: 0.1015
A98: 5 | B98: 0.0955 | C98: 0.0965 | D98: 9.85% | E98: 0.1
A99: Pago por Mil | B99: 16.84 | C99: 13.53 | D99: 11.22 | E99: 10.26 | F99: 10.26
A104: A.6 Monto mínimo y máximo del préstamo
A106: Residencial | B106: Apoyo Gobierno | D106: Construcción | E106: Liquidez | G106: Renovación
A107: Preventa | E107: Vivienda | F107: Destino Libre
A108: Mínimo | B108: COFINAVIT | C108: INFONAVIT | G108: I y IV | H108: II y III
A109: $250,000 MXN | B109: FOVISSSTE | C109: FOVISSSTE
B110: (Alia2) | C110: (Respalda2) | D110: Mínimo: | E110: Mínimo | F110: Mínimo
A111: Máximo | D111: $ 150,000 MXN | E111: $150,000 MXN | F111: $100,000 MXN
A112: $8,000,000 MXN
D113: Máximo: | E113: Máximo $2,500,000 MXN | F113: Máximo
B114: Mínimo | C114: Mínimo | D114: $5,000,000 MXN | F114: $2,500,000 MXN | G114: Mínimo | H114: Mínimo
B115: $120,000 MXN | C115: $250,000 MXN | G115: 150000 | H115: 250000
B117: Máximo: | C117: Máximo | G117: Máximo $5,000,000 | H117: Máximo $5,000,000
B118: $8,000,000 MXN | C118: $8,000,000 MXN
A121: A.7 Valor mínimo y máximo del inmueble
A124: Valor mínimo del inmueble
A125: COFINAVIT | B125: *Residencial | C125: Construcción | D125: Sustitución de deudor
A126: FOVISSSTE (Alia2 /Respalda2) | B126: Preventa | C126: Liquidez (Vivienda y destino libre)
B127: Apoyo INFONAVIT | C127: Renovación I, II, III, IV
D128: No aplica
A129: MEX, GDL, MTY | B129: $400,000 MXN | C129: MEX, GDL, MTY
A130: $300,000 MXN | C130: $1,000,000 MXN
A132: Resto del país | C132: Resto del país
A133: $275,000 MXN | C133: $750,000 MXN
A136: A.16 Comisiones y Gastos
A138: Al momento de aperturar el crédito, el cliente cuenta con dos opciones para el pago de la comisión son las siguientes:
A140: Esquema | B140: Opción | C140: A) Comisión de Apertura | D140: B) Comisión por Prepago
A141: Valora y | B141: Opción 1 | C141: Ver tabla #1 | D141: 0
A142: Pagos Oportunos | B142: Opción 2 | C142: 0 | D142: 3.00% + IVA
A143: Hipoteca 7x5 (Única) | B143: Opción 1 | C143: Ver tabla #1 | D143: Sin comisión por pre-pago
A145: Tabla #1
B146: Adquisición | C146: Construcción | D146: Apoyo INFONAVIT | E146: CrediLiquidez Libre | F146: Switch Hipotecario (Pago de Pasivos)
B147: Liquidez | C147: Preventa | D147: COFINAVIT | F147: CrediRenovación III
C148: CrediRenovación I,II,III,IV | D148: Cofinanciamiento
D149: FOVISSSTE
D150: Alia2
D151: Respalda2
A152: Comisión por apertura | B152: 0.0125 | C152: 1.00% por cada ministración | D152: 0.0075 | E152: 2% más IVA, financiable a elección del cliente | F152: 0.015
F153: Financiable a elección del cliente
A154: Comisión por apertura especial | B154: Del 0.50%
B156: Aplica para:
B157: · Nominatarios.
B158: · Clientes de Casa de Bolsa y Banca Patrimonial.
B159: · Inversionistas en Pagarés.
B160: · Inversión igual o mayor a $200,000. Deberá estar vigente al momento de la firma y tener una duración mínima de 3 meses, previo a la firma del crédito o contratada a un plazo que garantice la duración mínima (por ejemplo, un pagaré a 91 días).
B161: · La inversión en pagaré se podrá comprobar mediante el estado de cuenta del cliente.
A163: Consideraciones Especiales para Comisión por apertura:
A164: Para Hipoteca 7x5 (Única) no aplica Comisión por apertura para:
A165: créditos con plazo a 5 años,
A166: clientes de Casa de Bolsa y Banca Patrimonial
A167: clientes Premium
A168: Para Switch Hipotecario no aplica la Comisión por apertura especial del 0.50%, para:
A169: nominatarios
A170: clientes de Casa de Bolsa y Patrimonial
A171: inversionistas en pagarés
A172: Para CrediLiquidez Libre no aplica la Comisión por apertura para:
A174: o clientes que hayan liquidado previamente una hipoteca con Scotiabank
A175: B) Comisión por pre-pago
A177: Aplica solo cuando el solicitante haya escogido la modalidad de Pre-pago en lugar de pagar la Comisión de Apertura al frente
